{"text_format":"1","workbook":"xlsx","n_sheets":18,"sheets":["สรุป","INDEX","Goal ","Goal (CSR)","C1 (CR1,CR2,CR3)","C2 (NW1)","I1 OM1(SAIFISAIDI)","I2 OM1(LOSS)","I3 OM1(GIS)","I4 OM4(SLA)","I5 IP1(นวัตกรรม)","I6 RS1 (พลังงาน)","L1 (DT1)","L2 OC1(สู่ความยั่งยืน)","L3 OC1 (ความปลอดภัย)","L4 OC1(ลดกระดาษ)","L5 ประเมินผล Enablers 8 ด้าน","L6 OC1 (งานตามนโยบาย)"],"not_rendered":{"charts":0,"images":0,"macros":1,"external_links":0,"defined_names":18,"comments":3,"pivot_tables":0},"unopened":[],"bounds":{"document_bytes":16777216,"sheet_cells":100000,"rows_first":2000,"rows_last":500,"rows_between":2000,"halvings":0,"cell_chars":16384,"cell_head_chars":4096},"cells_cut":0,"cells_raw":0,"read":"whole","date_system":"1900"}

{"sheet":"สรุป","index":0,"n_rows":25,"n_cols":2,"rows_kept":25,"cut":false,"hidden":true,"merged":[[1,0,1,1]]}
[]
["สรุปจำนวนกิจกรรมตามแผนปฏิบัติการ ประจำปี 2563\n(ฉบับทบทวนครั้งที่ 1)\nสายงานการไฟฟ้า ภาค 2"]
["ผู้รับผิดชอบหลัก","จำนวนกิจกรรม"]
["กกค.",10]
["กซข.",1]
["กซข.,กบญ.",1]
["กบญ.,กกค.",2]
["กบญ.,กบล.",4]
["กบล.",69]
["กบล.,กซข.",1]
["กบล.,กบญ.,กบษ.,กรท.",1]
["กบษ.",12]
["กปบ.",12]
["กรท.,กบญ.,กบล.",1]
["กรท.,กอก.",1]
["กวว.",18]
["กวว.,กกค.",3]
["กอก.",9]
["กอก.,กบษ.,กบล.",1]
["คณะทำงานฯ GO",5]
["คณะทำงานฯ ภ2",12]
["คณะอนุกรรมการฯ ภ2",1]
["กบว.(ภ2)",3]
["ฝวธ.(ภ2)",1]
["ผลรวมทั้งหมด",168]

{"sheet":"INDEX","index":1,"n_rows":170,"n_cols":6,"rows_kept":170,"cut":false,"hidden":false,"merged":[]}
["ลำดับ","แผนงาน","กิจกรรม","หน่วยงานดำเนินการ","หน่วยงานหลัก","GO TO"]
[1,"Goal ","1.1 จัดอบรม/ประชุมชี้แจงให้ความรู้ด้านระบบ CS, WMS ในการสร้างข้อมูลหลัก","(ผบธ.,ผมม.)กบล.","(ผบธ.,ผมม.)กบล.","Go to"]
[2,"Goal ","2.1 เร่งรัดการเบิกต้นทุนงานเข้าใบสั่งงานงานติดตั้งมิเตอร์ใหม่และงานสับเปลี่ยนมิเตอร์ให้","กฟฟ.ชั้น 1-3,กฟส.","ผบต.กบญ.","Go to"]
[3,"Goal ","2.2 เร่งรัดการเบิกต้นทุนงานเข้าใบสั่งงานบริการหลังการขาย (ZW03) ที่มีการรับชำระเงิน","กฟฟ.ชั้น 1-3,กฟส.","ผบต.กบญ.","Go to"]
[4,"Goal ","3.1.1 ตรวจสอบมิเตอร์และเส้นทางการพาดสายสื่อสารระหว่างมิเตอร์  ","กฟฟ.ชั้น 1-3,กฟส.","ผธท.กบล.","Go to"]
[5,"Goal ","3.1.2 จัดทำและจัดส่งใบแจ้งค่าใช้จ่าย (ใบเสนอราคา) ค่าพาดสายสื่อสารก่อนได้รับอนุญาต","กฟฟ.ชั้น 1-3,กฟส.","ผธท.กบล.","Go to"]
[6,"Goal ","4.1 มีการจัดประชุมกระบวนงานการโอนค่าใช้จ่ายเกี่ยวกับงานก่อสร้างขึ้นต้นทุนงาน","กบญ.,กวว.,กบล.,กบษ.","กบญ.,กวว.,กบล.,กบษ.","Go to"]
[7,"Goal ","4.2 การนำเทคโนโลยีดิจิทัลมาใช้สนับสนุนการบริการลูกค้าเพื่อลดค่าใช้จ่าย","กบญ.,ผบธ.กบล.","กบญ.,ผบธ.กบล.","Go to"]
[8,"Goal ","5.1 การปิดงานก่อสร้าง (สถานะ Closed F4 และ Close E2 (ยกเลิกงาน))","กฟฟ.ชั้น 1-3,กฟส.","กบญ.,กกค.","Go to"]
[9,"Goal ","5.2 การปิดงานก่อสร้าง (สถานะ Closed F4 และ Close E2 (ยกเลิกงาน))","กฟฟ.ชั้น 1-3,กฟส.","กบญ.,กกค.","Go to"]
[10,"Goal (CSR)","6.1 ดำเนินงานตามกิจกรรมของแผนงาน CSR ตามที่ กฟภ. กำหนด","กอก.,กฟฟ.ชั้น 1-3","ผสส.กอก.","Go to"]
[11,"Goal (CSR)","6.2 ดำเนินงานตามแผนปรับภูมิทัศน์ระบบจำหน่ายแบบบูรณาการ ","กฟฟ.ชั้น 1-3","ผสส.กอก.,กบษ.","Go to"]
[12,"Goal (CSR)","7.1 ดำเนินงานตามแผนงานพัฒนาและเสริมสร้างความเข้มแข็งของชุมชนสำคัญ ปี 2563","ผสส.กอก.","ผสส.กอก.","Go to"]
[13,"C1 (CR1,CR2,CR3)","1.1 จัดอบรมหลักสูตร Front Manager ให้ กฟฟ.ชั้น 1-3 และ กฟส.","ฝวธ.(ภ2)","ฝวธ.(ภ2)","Go to"]
[14,"C1 (CR1,CR2,CR3)","1.2 ติดตามและประเมินผลการดำเนินงาน (KPI) ของผู้จัดการศูนย์งานบริการลูกค้า ","กฟฟ.ชั้น 1-3","ผลส.กบล.","Go to"]
[15,"C1 (CR1,CR2,CR3)","2.1 จัดอบรมหลักสูตรการบริการด้วยใจ (Service mind) ให้กับพนักงานที่ติดต่อกับ","กบว.(ภ2)","กบว.(ภ2)","Go to"]
[16,"C1 (CR1,CR2,CR3)","2.2 กฟฟ.ชั้น 1-3 จัดอบรม/OJT การบริการด้วยใจ (Service mind) ให้กับตัวแทน เช่น ","ผสบ.กรท.","ผสบ.กรท.","Go to"]
[17,"C1 (CR1,CR2,CR3)","3.1 ทุก กฟฟ. จัดกิจกรรมประชาสัมพันธ์เชิญชวนลูกค้ารับบริการผ่าน Internet และ ","กฟฟ.ชั้น 1-3,กฟส.","กรท.,กอก.","Go to"]
[18,"C1 (CR1,CR2,CR3)","4.1 การให้บริการทางธุรกิจเพื่ออำนวยความสะดวกให้บริการขอใช้ไฟฟ้า","กฟฟ.ชั้น 1-3","ผบธ.กบล.","Go to"]
[19,"C1 (CR1,CR2,CR3)","5.1 การให้บริการเสริมโดยไม่คิดค่าใช้จ่ายกับลูกค้ารายสำคัญ (ตามคู่มือ KAMT)","ผลส.กบล.","ผลส.กบล.","Go to"]
[20,"C1 (CR1,CR2,CR3)","6.1 ดำเนินการตาม SLA การจัดการข้อร้องเรียน แยกตามประเภทข้อร้องเรียน ","ผลส.กบล.","ผลส.กบล.","Go to"]
[21,"C1 (CR1,CR2,CR3)","7.1 ทุก กฟฟ. ดำเนินการระบุสถานะการปิดข้อร้องเรียน/ข้อเสนอแนะ และอื่นๆ ","กฟฟ.ชั้น 1-3,กฟส.","ผลส.กบล.","Go to"]
[22,"C1 (CR1,CR2,CR3)","7.2 ตรวจสอบและคัดกรองข้อร้องเรียน/ข้อเสนอแนะ และอื่นๆด้านคุณภาพไฟฟ้า ","กฟฟ.ชั้น 1-3,กฟส.","ผลส.กบล.","Go to"]
[23,"C2 (NW1)","8.1 ทบทวนคณะทำงานด้านธุรกิจเสริม และธุรกิจเกี่ยวเนื่อง ","ฝวธ.(ภ2)","ฝวธ.(ภ2)","Go to"]
[24,"C2 (NW1)","8.2 ทบทวนกลยุทธ์, เป้าหมาย และแผนงานด้านการตลาด","คณะทำงานฯ ภ2","คณะทำงานฯ ภ2","Go to"]
[25,"C2 (NW1)","8.3 จัดประชุมชี้แจงระเบียบ กฟภ. ว่าด้วยธุรกิจเสริม ปี 2561 ให้ทุก กฟฟ. ทราบ ","ผบธ.กบล.","ผบธ.กบล.","Go to"]
[26,"C2 (NW1)","9.1.1 แต่งตั้ง พนักงานขาย ครบทุก กฟฟ. ชั้น 1-3, กฟส. และ กฟข. ละ 1 คน","กฟฟ.ชั้น 1-3,กฟส.","ผลส.กบล.","Go to"]
[27,"C2 (NW1)","9.1.2 จัดอบรม/ประชุมชี้แจงให้ความรู้ด้านการตลาด แก่พนักงานขาย","ผลส.กบล.","ผลส.กบล.","Go to"]
[28,"I1 OM1(SAIFISAIDI)","1.1.1 สำรวจขออนุมัติติดตั้ง Cover และเปลี่ยนสายหลีดของหม้อแปลงเป็น","กฟฟ.ชั้น 1-3","ผตบ.กบษ.","Go to"]
[29,"I1 OM1(SAIFISAIDI)","1.1.2 ดำเนินการติดตั้ง Cover และเปลี่ยนสายหลีดของหม้อแปลงเป็นชนิดหุ้มฉนวน ","กฟฟ.ชั้น 1-3","ผตบ.กบษ.","Go to"]
[30,"I1 OM1(SAIFISAIDI)","1.1.3 สำรวจขออนุมัติติดตั้ง Animal Barrier ที่จุดติดตั้งฟิวส์แรงสูงป้องกันไลน์แยก,","กฟฟ.ชั้น 1-3","ผตบ.กบษ.","Go to"]
[31,"I1 OM1(SAIFISAIDI)","1.1.4 ดำเนินการติดตั้ง Animal Barrier (ตามข้อ 1.1.3) ให้แล้วเสร็จภายในไตรมาส 4","กฟฟ.ชั้น 1-3","ผตบ.กบษ.","Go to"]
[32,"I1 OM1(SAIFISAIDI)","1.2.1 วิเคราะห์สถิติสายไฟฟ้าแรงสูงขาด และกำหนดมาตรการพร้อมจัดทำ","คณะทำงานฯ ภ2","คณะทำงานฯ ภ2","Go to"]
[33,"I1 OM1(SAIFISAIDI)","1.3.1 จัดประชุมทบทวนเพื่อปรับปรุงกระบวนการตัดต้นไม้ และทบทวนการกำหนดระยะห่าง","คณะทำงานฯ ภ2","คณะทำงานฯ ภ2","Go to"]
[34,"I1 OM1(SAIFISAIDI)","1.3.2 ทุก กฟฟ.ชั้น 1-3 กำหนดเส้นทางและ ดำเนินการตัดต้นไม้เพื่อทัศนียภาพที่สวยงาม ","กฟฟ.ชั้น 1-3","ผตบ.กบษ.","Go to"]
[35,"I1 OM1(SAIFISAIDI)","1.4.1 สำรวจออกแบบ และดำเนินการปรับปรุงเสริมความมั่นคงระบบจำหน่าย","กฟฟ.ชั้น 1-3,กฟส.","ผตบ.กบษ.","Go to"]
[36,"I1 OM1(SAIFISAIDI)","1.4.2 สำรวจออกแบบ และดำเนินการปรับปรุงเสริมความมั่นคงระบบจำหน่าย","กฟฟ.ชั้น 1-3,กฟส.","ผตบ.กบษ.","Go to"]
[37,"I1 OM1(SAIFISAIDI)","1.4.3 สรุปเหตุการณ์เสาล้มจากวาตภัยในปี 2563 เพื่อประเมินผลการดำเนินการป้องกันฯ","คณะทำงานฯ ภ2","คณะทำงานฯ ภ2","Go to"]
[38,"I1 OM1(SAIFISAIDI)","1.5 เปลี่ยนสายเปลือยเป็นสาย SAC  ในเขตเทศบาลเมือง 100% (ทุกโครงการที่อนุมัติแล้ว )","กฟฟ.ชั้น 1-3,กฟส.","ผจร.กกค.","Go to"]
[39,"I1 OM1(SAIFISAIDI)","1.6 เปลี่ยนสายเปลือยเป็นสาย SAC  ในเขตเทศบาลนคร 100% (ทุกโครงการที่อนุมัติแล้ว )","กฟฟ.ชั้น 1-3","ผจร.กกค.","Go to"]
[40,"I1 OM1(SAIFISAIDI)","2.1 สำรวจ-ปรับปรุงระบบไฟฟ้า วงจรที่ชำรุดเสื่อมสภาพจำนวนมาก ตามแผนงานเปลี่ยนทดแทนฯ","กฟฟ.ชั้น 1-3,กฟส.","ผตบ.กบษ.","Go to"]
[41,"I1 OM1(SAIFISAIDI)","3.1 ก่อสร้างระบบสายส่ง (งบ I,P) ","กฟฉ.2","กฟฉ.2","Go to"]
[42,"I1 OM1(SAIFISAIDI)","3.2 ก่อสร้างระบบจำหน่ายแรงสูง (งบ I,P)","กฟฟ.ชั้น 1-3,กฟส.","ผจร.กกค.","Go to"]
[43,"I1 OM1(SAIFISAIDI)","3.3 ก่อสร้างระบบจำหน่ายแรงต่ำ (งบ I,P)","กฟฟ.ชั้น 1-3,กฟส.","ผปร.กวว.","Go to"]
[44,"I1 OM1(SAIFISAIDI)","3.4 ติดตั้งระบบหม้อแปลง  (งบ I,P)","กฟฟ.ชั้น 1-3,กฟส.","ผปร.กวว.","Go to"]
[45,"I2 OM1(LOSS)","4.1.1.1 การตรวจสอบและแก้ปัญหามิเตอร์ผิดปกติ ตามใบสั่งงาน U-Cube โดยพิจารณาจาก","กฟฟ.ชั้น 1-3,กฟส.","ผมม.กบล.","Go to"]
[46,"I2 OM1(LOSS)","4.1.1.2 สำรวจและปรับปรุงอุปกรณ์ประกอบมิเตอร์ ที่มีสภาพเอียง ชำรุด เสื่อมสภาพ","กฟฟ.ชั้น 1-3,กฟส.","ผมม.กบล.","Go to"]
[47,"I2 OM1(LOSS)","4.1.2.1 มิเตอร์ AMR ดำเนินการตรวจสอบหาสาเหตุและแก้ไขตามใบสั่งงานจากระบบ AMR","กฟฟ.ชั้น 1-3,กฟส.","ผมม.กบล.","Go to"]
[48,"I2 OM1(LOSS)","4.1.2.2 ตรวจสอบมิเตอร์ผู้ใช้ไฟฟ้ารายใหญ่ที่หน่วยการใช้ไฟฟ้าลดลงมากกว่า 25% ทุกเครื่อง","กฟฟ.ชั้น 1-3,กฟส.","ผมม.กบล.,กซข.","Go to"]
[49,"I2 OM1(LOSS)","4.2 มาตรการตรวจสอบและแก้ไขมิเตอร์ที่มีสภาพผิดปกติที่ได้รับรายงาน","กฟฟ.ชั้น 1-3,กฟส.","ผมม.กบล.","Go to"]
[50,"I2 OM1(LOSS)","4.3.1 มิเตอร์แรงสูง 115 kV ทุกเครื่อง (มิเตอร์ผู้ใช้ไฟ)","ผมม.กบล.","ผมม.กบล.","Go to"]
[51,"I2 OM1(LOSS)","4.3.2 มิเตอร์แรงสูง 22/33 เควีทุกเครื่อง  (มิเตอร์ผู้ใช้ไฟ)","กฟฟ.ชั้น 1-3","ผมม.กบล.","Go to"]
[52,"I2 OM1(LOSS)","4.3.3 มิเตอร์ประกอบซีทีแรงต่ำทุกเครื่อง (รวมมิเตอร์ผู้ใช้ไฟหม้อแปลงเฉพาะราย) (ทุกราย)","กฟฟ.ชั้น 1-3,กฟส.","ผมม.กบล.","Go to"]
[53,"I2 OM1(LOSS)","4.3.4 มิเตอร์แรงต่ำ (รายย่อย ; 33% ของจำนวนผู้ใช้ไฟทั้งหมด )","กฟฟ.ชั้น 1-3,กฟส.","ผมม.กบล.","Go to"]
[54,"I2 OM1(LOSS)","4.3.5 ตรวจสอบมิเตอร์แบ่งแดนระหว่างเขต ปีละ 1 ครั้ง","ผมม.กบล.","ผมม.กบล.","Go to"]
[55,"I2 OM1(LOSS)","4.3.6 ตรวจสอบความเที่ยงตรงมิเตอร์จุดรับซื้อ VSPP ทุกแห่ง  ปีละ 1 ครั้ง","ผมม.กบล.","ผมม.กบล.","Go to"]
[56,"I2 OM1(LOSS)","4.4.1 ตรวจสอบมิเตอร์ที่มีความเสี่ยงต่อการละเมิด เช่น โรงโม่หิน โรงน้ำแข็ง","กฟฟ.ชั้น 1-3,กฟส.","ผมม.กบล.","Go to"]
[57,"I2 OM1(LOSS)","4.4.2 ตรวจสอบมิเตอร์ที่มีประวัติการละเมิดฯ  ","กฟฟ.ชั้น 1-3,กฟส.","ผมม.กบล.","Go to"]
[58,"I2 OM1(LOSS)","4.5.1 สำรวจจุดติดตั้งดวงโคมเหมาจ่ายไฟสาธารณะและประเมินหน่วยการใช้ไฟฟ้า","กฟฟ.ชั้น 1-3,กฟส.","ผมม.กบล.,กซข.","Go to"]
[59,"I2 OM1(LOSS)","4.5.2 ตรวจสอบและบำรุงรักษามิเตอร์ไฟฟ้าสาธารณะ  และไฟทางหลวง ให้อยู่ในสภาพที่ปลอดภัย  ","กฟฟ.ชั้น 1-3,กฟส.","ผมม.กบล.","Go to"]
[60,"I2 OM1(LOSS)","4.6.1 สำรวจจุดติดตั้ง ตู้โทรศัพท์สาธารณะ Wifi CCTV  และประเมินหน่วยการใช้ไฟฟ้า","กฟฟ.ชั้น 1-3,กฟส.","ผมม.กบล.","Go to"]
[61,"I2 OM1(LOSS)","4.6.2 ตรวจสอบและบำรุงรักษามิเตอร์อุปกรณ์สื่อสารต่างๆ ให้อยู่ในสภาพที่ปลอดภัย   ","กฟฟ.ชั้น 1-3,กฟส.","ผมม.กบล.","Go to"]
[62,"I2 OM1(LOSS)","4.7.1  การติดตั้งและตรวจสอบและบำรุงรักษามิเตอร์แบ่งแดน","คณะทำงานฯ Loss","คณะทำงานฯ Loss","Go to"]
[63,"I2 OM1(LOSS)","4.7.2 การสร้างแผนงานและดำเนินกิจกรรมลดหน่วยสูญเสียในวงจรไฟฟ้าที่มีหน่วยสูญเสียสูง","คณะทำงานฯ Loss","คณะทำงานฯ Loss","Go to"]
[64,"I2 OM1(LOSS)","4.7.3 สำรวจความต้องการใช้งานสำหรับติดตั้งมิเตอร์ ซีที. วีที.จุดแบ่งแดนในแต่ละ กฟข.","ผมม.กบล.","ผมม.กบล.","Go to"]
[65,"I2 OM1(LOSS)","4.8 มาตรการตรวจสอบมิเตอร์ประกอบซีที. แรงต่ำ และมิเตอร์ประกอบซีที. วีที.แรงสูง","กฟฟ.ชั้น 1-3,กฟส.","ผมม.กบล.","Go to"]
[66,"I2 OM1(LOSS)","4.9.1 สับเปลี่ยนมิเตอร์อิเล็กทรอนิกส์ 1 เฟส","กฟฟ.ชั้น 1-3,กฟส.","ผมม.กบล.","Go to"]
[67,"I2 OM1(LOSS)","4.9.2 สับเปลี่ยนมิเตอร์อิเล็กทรอนิกส์ 3 เฟส","กฟฟ.ชั้น 1-3,กฟส.","ผมม.กบล.","Go to"]
[68,"I2 OM1(LOSS)","4.10.1 การอบรมพนักงานตรวจสอบมิเตอร์ /ตรวจสอบหน่วย ปีละ 1 ครั้ง","ผมม.กบล.","ผมม.กบล.","Go to"]
[69,"I2 OM1(LOSS)","4.10.2 การอบรม พบช.ควบคุมผู้ใช้ไฟฟ้ารายใหญ่ /ตรวจสอบหน่วยรายย่อย ปีละ 1 ครั้ง","กซข.","กซข.","Go to"]
[70,"I2 OM1(LOSS)","4.10.3 การอบรมพนักงานอ่านหน่วย ปีละ 1 ครั้ง","กรท.,กซข.,กบล.","กรท.,กซข.,กบล.","Go to"]
[71,"I2 OM1(LOSS)","4.10.4 จัดทำแผนประชาสัมพันธ์เพื่อรณรงค์ป้องกันการละเมิดฯ และดำเนินการ","ผสส.กอก.","ผสส.กอก.","Go to"]
[72,"I2 OM1(LOSS)","5.1.1 การจ่ายไฟสถานีไฟฟ้าฯ ชั่วคราว","ผจค.กกค.","ผจค.กกค.","Go to"]
[73,"I2 OM1(LOSS)","5.1.2 การจ่ายไฟสถานีไฟฟ้าฯ  ถาวร ","ผจค.กกค.","ผจค.กกค.","Go to"]
[74,"I2 OM1(LOSS)","5.2 การตัดจ่ายไฟใหม่     ","ผวว.กปบ.","ผวว.กปบ.","Go to"]
[75,"I2 OM1(LOSS)","5.3 การเปลี่ยนสายขนาดใหญ่ขึ้น 22/33 เควี  ","กฟฟ.ชั้น 1-3,กฟส.","ผจร.กกค.","Go to"]
[76,"I2 OM1(LOSS)","5.4 การแก้ไขกระแสไฟฟ้า Unbalance เกินกว่า 10% ในฟีดเดอร์ที่ โหลด","ผวว.กปบ.","ผวว.กปบ.","Go to"]
[77,"I2 OM1(LOSS)","5.5.1 Fixed Capacitor","ผวว.กปบ.","ผวว.กปบ.","Go to"]
[78,"I2 OM1(LOSS)","5.5.2 Switching Capacitor","ผวว.กปบ.","ผวว.กปบ.","Go to"]
[79,"I2 OM1(LOSS)","5.6.1.1 การตรวจสอบแก้ไขจุดต่อจุดสัมผัสใน สถานีไฟฟ้า","ผบฟ.กบษ.","ผบฟ.กบษ.","Go to"]
[80,"I2 OM1(LOSS)","5.6.1.2 การตรวจสอบแก้ไขจุดต่อจุดสัมผัสใน สายส่ง","ผตบ.กบษ.","ผตบ.กบษ.","Go to"]
[81,"I2 OM1(LOSS)","5.6.1.3 การตรวจสอบแก้ไขจุดต่อจุดสัมผัสใน ระบบจำหน่าย","กฟฟ.ชั้น 1-3,กฟส.","ผตบ.กบษ.","Go to"]
[82,"I2 OM1(LOSS)","5.6.2 การแก้ไขคาปาซิเตอร์ 22/33 เควี ที่หลุดจากระบบให้สามารถ ใช้ได้(100%)","กฟฟ.ชั้น 1-3,กฟส.","ผบอ.กบษ.","Go to"]
[83,"I2 OM1(LOSS)","5.7.1.1 การคำนวณ Technical Loss ระบบสายส่ง 115 kV","คณะทำงานฯ Loss,กปบ.","คณะทำงานฯ Loss,กปบ.","Go to"]
[84,"I2 OM1(LOSS)","5.7.1.2 การคำนวณ Technical Loss หม้อแปลงกำลัง","คณะทำงานฯ Loss,กปบ.","คณะทำงานฯ Loss,กปบ.","Go to"]
[85,"I2 OM1(LOSS)","5.7.1.3 การคำนวณ Technical Loss ระบบ 22 - 33 kV","คณะทำงานฯ Loss,กปบ.","คณะทำงานฯ Loss,กปบ.","Go to"]
[86,"I2 OM1(LOSS)","5.7.1.4 การคำนวณ Technical Loss หม้อแปลงจำหน่าย","คณะทำงานฯ Loss,กวว.","คณะทำงานฯ Loss,กวว.","Go to"]
[87,"I2 OM1(LOSS)","5.7.1.5 การคำนวณ Technical Loss ระบบจำหน่ายแรงต่ำ","คณะทำงานฯ Loss,กวว.","คณะทำงานฯ Loss,กวว.","Go to"]
[88,"I2 OM1(LOSS)","5.7.2 การคำนวณ Technical Loss ของ SPP/VSPP ที่ขนานเข้าระบบ","ผวว.กปบ.","ผวว.กปบ.","Go to"]
[89,"I2 OM1(LOSS)","5.8 การวิเคราะห์ Technical Loss แยกตามระดับแรงดันและจัดทำแผนแก้ไข","ผวว.กปบ.","ผวว.กปบ.","Go to"]
[90,"I2 OM1(LOSS)","5.9.1 การแก้ไขหม้อแปลง Unbalance เกินกว่า 20%  (เครื่อง)","กฟฟ.ชั้น 1-3,กฟส.","ผมม.กบล.","Go to"]
[91,"I2 OM1(LOSS)","5.9.2 การสับเปลี่ยนหม้อแปลงที่จ่ายโหลดไม่เหมาะสม","กฟฟ.ชั้น 1-3,กฟส.","ผมม.กบล./ผปร.กวว.","Go to"]
[92,"I2 OM1(LOSS)","5.9.3 การติดตั้งหม้อแปลงเสริมเพื่อเพิ่มประสิทธิภาพการจ่ายไฟ (เควีเอ)","กฟฟ.ชั้น 1-3,กฟส.","ผปร.กวว.","Go to"]
[93,"I2 OM1(LOSS)","5.10.1 การเปลี่ยนสายแรงต่ำให้มีขนาดใหญ่ขึ้น","กฟฟ.ชั้น 1-3,กฟส.","ผปร.กวว.","Go to"]
[94,"I2 OM1(LOSS)","5.10.2 การตัดจ่ายไฟใหม่แรงต่ำ (หน่วยนับจากจำนวนเครื่องหม้อแปลง)","กฟฟ.ชั้น 1-3,กฟส.","ผปร.กวว.","Go to"]
[95,"I2 OM1(LOSS)","5.10.3 การปรับปรุงระบบ 1 เฟส 2 สาย เป็นระบบ 1 เฟส 3 สาย","กฟฟ.ชั้น 1-3,กฟส.","ผปร.กวว.","Go to"]
[96,"I3 OM1(GIS)","6.1 การปรับปรุงข้อมูลงานก่อสร้างระบบจำหน่ายไฟฟ้าก่อนปี 2562  (เป้าหมายจำนวนงาน ","กฟฟ.ชั้น 1-3,กฟส.","ผผร.กวว.","Go to"]
[97,"I3 OM1(GIS)","6.2 การปรับปรุงข้อมูลงานก่อสร้างระบบจำหน่ายไฟฟ้าปี 2562  (เป้าหมายจำนวนงาน ","กฟฟ.ชั้น 1-3,กฟส.","ผผร.กวว.","Go to"]
[98,"I3 OM1(GIS)","6.3 การปรับปรุงข้อมูลงานก่อสร้างระบบจำหน่ายไฟฟ้าปี 2563  (เป้าหมายจำนวนงาน ","กฟฟ.ชั้น 1-3,กฟส.","ผผร.กวว.","Go to"]
[99,"I3 OM1(GIS)","6.4 ปรับปรุงพิกัดมิเตอร์ในระบบ GIS ให้ตรงกันกับข้อมูลพิกัดมิเตอร์จากระบบจดหน่วยที่มี","กฟฟ.ชั้น 1-3","ผผร.กวว.","Go to"]
[100,"I3 OM1(GIS)","6.5 ปรับปรุงพิกัดมิเตอร์ในระบบจดหน่วยสำหรับข้อมูลพิกัดมิเตอร์จากระบบจดหน่วยที่มี","กฟฟ.ชั้น 1-3","ผผร.กวว.","Go to"]
[101,"I3 OM1(GIS)","6.6 สำรวจและปรับปรุงข้อมูลเฟสมิเตอร์ในระบบ GIS 30% ของจำนวนหม้อแปลง กฟภ.","กฟฟ.ชั้น 1-3,กฟส.","ผผร.กวว.","Go to"]
[102,"I4 OM4(SLA)","7.1 รายงานผลการดำเนินงานการจัดทำข้อตกลงระดับการให้บริการ (SLA)","กฟฟ.ชั้น 1-3,กฟส.","(ผผธ.,ผบธ.)กบล.","Go to"]
[103,"I5 IP1(นวัตกรรม)","8.1 ให้รายงานตามแผนงานส่งเสริมและผลักดันงานวิจัยไปใช้ประโยชน์","ผพอ.กอก.","ผพอ.กอก.","Go to"]
[104,"I5 IP1(นวัตกรรม)","8.2 ขยายผลนวัตกรรมใช้งานภายใน กฟข. อย่างน้อย 2 ชิ้นงาน","ผพอ.กอก.","ผพอ.กอก.","Go to"]
[105,"I5 IP1(นวัตกรรม)","8.3 ขยายผลนวัตกรรมใช้งานภายในภาค อย่างน้อย 1 ชิ้นงาน","ฝวธ.(ภ2)","คณะทำงานฯ ภ2","Go to"]
[106,"I5 IP1(นวัตกรรม)","8.4 จัดอบรมเพื่อพัฒนาศักยภาพของนักประดิษฐ์ แบ่งเป็น 2 ด้าน ได้แก่ ","ฝวธ.(ภ2)","กบว.(ภ2)","Go to"]
[107,"I5 IP1(นวัตกรรม)","8.5 จัดประชุมทบทวนนวัตกรรมและดิจิทัลของสายงานการไฟฟ้าภาค 2","คณะทำงานฯ ภ2","คณะทำงานฯ ภ2","Go to"]
[108,"I6 RS1 (พลังงาน)","9.1 ดำเนินโครงการนำร่องมาตรการบังคับใช้เกณฑ์มาตรฐานอนุรักษ์พลังงานสำหรับ","ผสอ.กวว.","ผสอ.กวว.","Go to"]
[109,"L1 (DT1)","1.1 จัดอบรมผู้บริหารของสายงานการไฟฟ้า ภาค 2 เพื่อเตรียมความพร้อม","คณะทำงานฯ ภ2","คณะทำงานฯ ภ2","Go to"]
[110,"L1 (DT1)","1.2 จัดอบรม ผจก.กฟย. เพื่อเตรียมความพร้อมสู่การเป็น PEA Digital Utility","คณะทำงานฯ ภ2","คณะทำงานฯ ภ2","Go to"]
[111,"L1 (DT1)","1.3 จัดอบรมพนักงานในสายงานฯ ภาค 2 ตั้งแต่ หผ.ขึ้นไป หรือ The Trainner ","คณะทำงานฯ ภ2","คณะทำงานฯ ภ2","Go to"]
[112,"L1 (DT1)","1.4 จัดอบรมให้ความรู้เกี่ยวกับ Big Data และ Data Analytics","คณะทำงานฯ ภ2","คณะทำงานฯ ภ2","Go to"]
[113,"L2 OC1(สู่ความยั่งยืน)","2.1 กอก.กฟข. จัดการบรรยายหรือกิจกรรมที่สอดแทรกเนื้อหาด้านการกำกับ","ผพอ.กอก.","ผพอ.กอก.","Go to"]
[114,"L2 OC1(สู่ความยั่งยืน)","3.1 ดำเนินการตามแผนงานยกระดับความผูกพันของบุคลากร กฟภ. ","ผบก.กอก.","ผบก.กอก.","Go to"]
[115,"L2 OC1(สู่ความยั่งยืน)","3.2 ติดตามรายงานผลความก้าวหน้าตามแผนงานข้อ 3.1 ส่งให้ ฝวธ.(ภ2) ตามกำหนด ","ผบก.กอก.","ผบก.กอก.","Go to"]
[116,"L3 OC1 (ความปลอดภัย)","4.1 ทุกหน่วยงาน ทบทวนการแต่งตั้งและขึ้นทะเบียน จป. ให้เป็นปัจจุบัน","ผปอ.กวว.","ผปอ.กวว.","Go to"]
[117,"L3 OC1 (ความปลอดภัย)","4.2 จัดหลักสูตรฝึกอบรมเจ้าหน้าที่ความปลอดภัยในการทำงาน (จป.)","ผปอ.กวว.","ผปอ.กวว.","Go to"]
[118,"L3 OC1 (ความปลอดภัย)","4.3 จัดหลักสูตรฝึกอบรมเจ้าหน้าที่ความปลอดภัยในการทำงาน (จป.บริหาร) ","ผปอ.กวว.","ผปอ.กวว.","Go to"]
[119,"L3 OC1 (ความปลอดภัย)","4.4 ฝึกอบรมทบทวนการปฏิบัติงานด้วยความปลอดภัยสำหรับ พนักงาน, ลูกจ้าง","กวว. หรือ กฟฟ.ชั้น 1-3 จัดอบรม***","ผปอ.กวว.","Go to"]
[120,"L3 OC1 (ความปลอดภัย)","4.5 จัดประชุมสัมมนางานด้านความปลอดภัยของ จป.วิชาชีพ/ เทคนิค","ผปอ.กวว.","ผปอ.กวว.","Go to"]
[121,"L3 OC1 (ความปลอดภัย)","4.6 ศึกษาดูงาน ด้านความปลอดภัย หน่วยงานภายนอกเพื่อยกระดับความปลอดภัย ของ ","ฝวธ.(ภ2)","ฝวธ.(ภ2)","Go to"]
[122,"L3 OC1 (ความปลอดภัย)","5.1 กฟฟ. ทุกแห่ง ตรวจสอบและดำเนินการแก้ไขระบบไฟฟ้าจุดที่อาจก่อให้เกิดอันตรายแก่ประชาชน","กฟฟ.ชั้น 1-3,กฟส.","ผปอ.กวว.","Go to"]
[123,"L3 OC1 (ความปลอดภัย)","6.1 ติดตามการตรวจประเมิน ระบบการจัดการความปลอดภัยของ กฟภ. (PEA- SMS)  ","ผปอ.กวว.","ผปอ.กวว.","Go to"]
[124,"L3 OC1 (ความปลอดภัย)","7.1 จัดกิจกรรม สัปดาห์ ความปลอดภัย ประจำปี (แต่ละ กฟข.) ภายในไตรมาส 2","ผปอ.กวว.","ผปอ.กวว.","Go to"]
[125,"L3 OC1 (ความปลอดภัย)","7.2 จัดอบรมปรับเปลี่ยน mind set ด้านความปลอดภัย สำหรับพนักงานสายงานการไฟฟ้า ","ฝวธ.(ภ2)","ฝวธ.(ภ2)","Go to"]
[126,"L4 OC1(ลดกระดาษ)","8.1 แต่งตั้งคณะทำงานลดการใช้กระดาษ เพื่อทำหน้าที่ติดตามและตรวจสอบ","กอก.","กอก.","Go to"]
[127,"L5 ประเมินผล Enablers 8 ด้าน","9.1 จัดทำแผนบริหารความเสี่ยงระดับสายงาน ปี 2563","คณะทำงานฯ ภ2","คณะทำงานฯ ภ2","Go to"]
[128,"L5 ประเมินผล Enablers 8 ด้าน","9.2 ดำเนินการ ติดตามผล และจัดทำรายงานตามแผนบริหาร","ผผธ.กบล.","ผผธ.กบล.","Go to"]
[129,"L5 ประเมินผล Enablers 8 ด้าน","10.1 ปรับปรุง/จัดวางระบบการควบคุมภายในของหน่วยงานประจำ ปี 2563","กฟฟ.ชั้น 1-3,กฟส.","ผผธ.กบล.","Go to"]
[130,"L5 ประเมินผล Enablers 8 ด้าน","10.2 ดำเนินการ ติดตามผล และจัดทำรายงานตามแผนการปรับปรุงการควบคุมภายใน","กฟฟ.ชั้น 1-3","ผผธ.กบล.","Go to"]
[131,"L5 ประเมินผล Enablers 8 ด้าน","11.1.1 จัดทำแผนการดำเนินการ โดยระบุกิจกรรมย่อย และเป้าหมายของแต่ละ","ฝวธ.(ภ2)","ฝวธ.(ภ2)","Go to"]
[132,"L5 ประเมินผล Enablers 8 ด้าน","12.1 สรุปข้อมูลเสียงของลูกค้า (ความต้องการ ความคาดหวัง ความไม่พึงพอใจ ","ผลส.กบล.","ผลส.กบล.","Go to"]
[133,"L5 ประเมินผล Enablers 8 ด้าน","12.2.1 การรับฟังเสียงลูกค้าทางโทรศัพท์ (Voice-based) (VOC-03-005)","กฟฟ.ชั้น 1-3","ผลส.กบล.","Go to"]
[134,"L5 ประเมินผล Enablers 8 ด้าน","12.2.2 การรับฟังด้วยการปฏิสัมพันธ์ (Interaction-based)","กฟฟ.ชั้น 1-3","ผลส.กบล.","Go to"]
[135,"L5 ประเมินผล Enablers 8 ด้าน","12.2.3 การสำรวจข้อมูลลูกค้าธุรกิจเสริมโดยการใช้โทรศัพท์สอบถามความ","กฟฟ.ชั้น 1-3","ผลส.กบล.","Go to"]
[136,"L5 ประเมินผล Enablers 8 ด้าน","12.3.1 สรุปผลการสำรวจความพึงพอใจของลูกค้าที่ใช้บริการธุรกิจเสริม ทุกไตรมาส ","กฟฟ.ชั้น 1-3","ผลส.กบล.","Go to"]
[137,"L5 ประเมินผล Enablers 8 ด้าน","12.4 จัดทำแผนการปรับปรุงกระบวนการทำงาน/แผนปฏิบัติการจากข้อมูลเสียงของลูกค้า","ฝวธ.(ภ2)","ฝวธ.(ภ2)","Go to"]
[138,"L5 ประเมินผล Enablers 8 ด้าน","12.5 ดำเนินการปิดข้อร้องเรียนทั่วไปได้ภายใน 15 วัน","กฟฟ.ชั้น 1-3","ผลส.กบล.","Go to"]
[139,"L5 ประเมินผล Enablers 8 ด้าน","12.6 ดำเนินการปิดข้อร้องเรียนทั่วไป ปิดได้ภายใน 30 วัน","กฟฟ.ชั้น 1-3","ผลส.กบล.","Go to"]
[140,"L5 ประเมินผล Enablers 8 ด้าน","12.7.1 จัดทำแผน/แนวทางการปฏิบัติงานเชิงป้องกันข้อร้องเรียนของลูกค้า","ผลส.กบล.","ผลส.กบล.","Go to"]
[141,"L5 ประเมินผล Enablers 8 ด้าน","12.7.2 รายงานผลตามแผน/แนวทางการปฏิบัติงานเชิงป้องกันข้อร้องเรียนของลูกค้า","ผลส.กบล.","ผลส.กบล.","Go to"]
[142,"L5 ประเมินผล Enablers 8 ด้าน","13.1.1.1 สุ่มสอบถามลูกค้าโดยวิธีโทรศัพท์ ดังนี้","กฟฟ.ชั้น 1-3","ผลส.กบล.","Go to"]
[143,"L5 ประเมินผล Enablers 8 ด้าน","13.1.1.2 สรุปรายงานสถิติ วิเคราะห์ความพึงพอใจ/ข้อคิดเห็น/ความต้องการ/ข้อเสนอแนะ","กฟฟ.ชั้น 1-3","ผลส.กบล.","Go to"]
[144,"L5 ประเมินผล Enablers 8 ด้าน","13.1.2  นำข้อมูลป้อนกลับจากลูกค้า จากระบบประเมินความพึงพอใจ (Smile Box)","กฟฟ.ชั้น 1-3","ผลส.กบล.","Go to"]
[145,"L5 ประเมินผล Enablers 8 ด้าน","13.2 เพิ่มสัดส่วนจำนวนลูกค้าที่กดประเมินความพึงพอใจ ผ่านระบบกล่อง","กฟฟ.ชั้น 1-3","ผลส.กบล.","Go to"]
[146,"L5 ประเมินผล Enablers 8 ด้าน","13.3.1 สรุปรายงานการสนับสนุนลูกค้ารายใหม่ตามข้อมูล BOI/หน่วยงานท้องถิ่น","กฟฟ.ชั้น 1-3","ผลส.กบล.","Go to"]
[147,"L5 ประเมินผล Enablers 8 ด้าน","13.3.2 การเยี่ยมเยือนลูกค้า high value และ/หรือลูกค้ารายสำคัญอื่น ","กฟฟ.ชั้น 1-3","ผลส.กบล.","Go to"]
[148,"L5 ประเมินผล Enablers 8 ด้าน","13.3.3 เยี่ยมเยือนลูกค้ารายสำคัญโดยผู้บริหารระดับสูง/หรือผู้แทนของหน่วยงาน ","กฟฟ.ชั้น 1-3","ผลส.กบล.","Go to"]
[149,"L5 ประเมินผล Enablers 8 ด้าน","13.3.4 พนักงาน KAMR สรุปวิเคราะห์ปัญหา/ความต้องการลูกค้า high value ","กฟฟ.ชั้น 1-3","ผลส.กบล.","Go to"]
[150,"L5 ประเมินผล Enablers 8 ด้าน","13.4 จัดสัมมนาลูกค้ากลุ่มอุตสาหกรรม กลุ่มพาณิชย์ และหน่วยงานราชการรายใหญ่","กฟฟ.ชั้น 1-3","ผลส.กบล.","Go to"]
[151,"L5 ประเมินผล Enablers 8 ด้าน","14.1.1 สรุปข้อมูลการประเมินประสิทธิภาพการส่งจ่ายแยกเป็นพื้นที่ด้านแรงดันไฟฟ้า  ","ผวฟ.กบล.","ผวฟ.กบล.","Go to"]
[152,"L5 ประเมินผล Enablers 8 ด้าน","14.1.2 สรุปข้อมูลการประเมินประสิทธิภาพการส่งจ่ายแยกเป็นพื้นที่ ด้านความเพียงพอ      ","ผวว.กปบ.","ผวว.กปบ.","Go to"]
[153,"L6 OC1 (งานตามนโยบาย)","15.1 งานสำรวจนำเข้าข้อมูลสายสื่อสารโทรคมนาคมของหน่วยงานต่างๆ ","กฟฟ.ชั้น 1-3,กฟส.","ผธท.กบล.","Go to"]
[154,"L6 OC1 (งานตามนโยบาย)","16.1.1 จัดระเบียบฯ เส้นทางที่มีขนาดเส้นผ่านศูนย์กลางของสายสื่อสารรวม มากกว่า 300 มม.","กฟฟ.ชั้น 1-3,กฟส.","ผธท.กบล.","Go to"]
[155,"L6 OC1 (งานตามนโยบาย)","16.1.2 จัดระเบียบฯ เส้นทางที่มีขนาดเส้นผ่านศูนย์กลางของสายสื่อสารรวม 100- 300 มม.                  ","กฟฟ.ชั้น 1-3,กฟส.","ผธท.กบล.","Go to"]
[156,"L6 OC1 (งานตามนโยบาย)","16.2 สำรวจตรวจสอบสายสื่อสารที่หย่อนยาน และมีความสูง  ต่ำกว่าระดับมาตรฐาน","กฟฟ.ชั้น 1-3,กฟส.","ผธท.กบล.","Go to"]
[157,"L6 OC1 (งานตามนโยบาย)","16.3 สำรวจตรวจสอบสายสื่อสารที่หย่อนยาน และมีความสูง  ต่ำกว่าระดับมาตรฐาน","กฟฟ.ชั้น 1-3,กฟส.","ผธท.กบล.","Go to"]
[158,"L6 OC1 (งานตามนโยบาย)","17.1 ขยายผลโครงการสำนักงานสีเขียว (Green  Office) และตรวจประเมิน ","กฟฟ.ที่เข้าร่วม","คณะทำงานฯ GO","Go to"]
[159,"L6 OC1 (งานตามนโยบาย)","17.1.1 จัดอบรมให้ความรู้ กฟฟ. ที่สมัครเข้าร่วมโครงการ และ กฟฟ. ที่ ขอต่ออายุ ","คณะทำงานฯ GO","คณะทำงานฯ GO","Go to"]
[160,"L6 OC1 (งานตามนโยบาย)","17.1.2 ดำเนินการ Internal Audit ให้กับการไฟฟ้าที่เข้าโครงการสำนักงานสีเขียว โดยทีม","คณะทำงานฯ GO","คณะทำงานฯ GO","Go to"]
[161,"L6 OC1 (งานตามนโยบาย)","17.2 รักษามาตรฐานการพัฒนาสำนักงาน กฟภ. ให้เป็นสำนักงานสีเขียว (Green Office)","กฟฟ.ที่เข้าร่วม","คณะทำงานฯ GO","Go to"]
[162,"L6 OC1 (งานตามนโยบาย)","17.3 ดำเนินการ Internal Audit ให้กับ กฟฟ. ที่ขอต่ออายุ โดย ทีม Auditor ของ กฟฟ.เขต ","คณะทำงานฯ GO","คณะทำงานฯ GO","Go to"]
[163,"L6 OC1 (งานตามนโยบาย)","18.1 รักษามาตรฐานการให้บริการของศูนย์ราชการสะดวก (Government Easy Contact","กฟฟ.ที่เข้าร่วม","ผลส.กบล.","Go to"]
[164,"L6 OC1 (งานตามนโยบาย)","18.1.1 จัดอบรมให้ความรู้ เกี่ย่วกับมาตรฐานศูนย์ราชการสะดวก (GECC) ให้กับ กฟฟ.ที่ขอ","กฟฟ.ที่เข้าร่วม","ผลส.กบล.","Go to"]
[165,"L6 OC1 (งานตามนโยบาย)","18.2 ขยายผลการดำเนินงานได้รับการรับรองมาตรฐานการให้บริการของศูนย์ราชการสะดวก","กฟฟ. ที่เข้าร่วม","ผลส.กบล.","Go to"]
[166,"L6 OC1 (งานตามนโยบาย)","19.1 ติดตามประเมินผลการจัดเก็บข้อมูลงานยานพาหนะ โดยมีการ Update ","กฟฟ.ชั้น 1-3,กฟส.","ผยค.กกค.","Go to"]
[167,"L6 OC1 (งานตามนโยบาย)","19.2 ประชุมชี้แจงแผนงานและเร่งรัดดำเนินงานทุกงบทุกโครงการ","คณะทำงานฯ ภ2","คณะทำงานฯ ภ2","Go to"]
[168,"L6 OC1 (งานตามนโยบาย)","20.1.1 รายงานการเบิกจ่ายเงินงบลงทุนทุกโครงการ","ผงป.กซข.","ผงป.กซข.","Go to"]
[169,"L6 OC1 (งานตามนโยบาย)","20.1.2 รายงานจัดซื้อจัดจ้าง","ผจซ.กบญ.","ผจซ.กบญ.","Go to"]

{"sheet":"Goal ","index":2,"n_rows":67,"n_cols":14,"rows_kept":67,"cut":false,"hidden":false,"merged":[[11,1,11,3],[12,1,12,3],[10,1,10,3],[10,5,10,12],[11,5,11,12]]}
["แผนปฏิบัติการ กฟฉ.1 ประจำปี 2563",null,"ด้านเป้าหมายองค์กร"]
["(ฉบับทบทวนครั้งที่ 1)",null,"(Goal)  "]
["1. วัตถุประสงค์เชิงยุทธศาสตร์",null," 2. กลยุทธ์ระดับองค์กร",null,"3. เกณฑ์วัดการดำเนินงานระดับองค์กร",null,null,null,null,null,null,null,"4. เป้าหมาย"]
["(Strategic Objective)",null,"             -",null,"- อัตราผลตอบแทนต่อสินทรัพย์รวม (ROA)",null,null,null,null,null,null,null,"- ไม่น้อยกว่าร้อยละ  4.83"]
[null,null," 5. กลยุทธ์ระดับสายงาน",null," - การบริหารค่าใช้จ่ายในการดำเนินงาน CPI-X",null,null,null,null,null,null,null,"- ไม่มากกว่า 31,723 ล้านบาท"]
[null,null,"             -",null,"6. เกณฑ์วัดการดำเนินงานระดับสายงาน",null,null,null,null,null,null,null,"7. เป้าหมาย"]
[null,null,null,null," - อัตราผลตอบแทนต่อสินทรัพย์รวม (ROA)µ",null,null,null,null,null,null,null,"- ไม่น้อยกว่าร้อยละ  4.83"]
[null,null,null,null," - ค่าใช้จ่ายในการดำเนินงานส่วนกลาง",null,null,null,null,null,null,null,"- ไม่มากกว่าร้อยละ ……."]
[null,null,null,null," - ค่าใช้จ่ายในการดำเนินงานส่วนภูมิภาค",null,null,null,null,null,null,null,"- ไม่มากกว่า……... ล้านบาท "]
[]
["8. แผนงาน/โครงการ/งาน","9. แผนปฏิบัติ",null,null,10,11,null,null,null,null,null,null,null,12]
["(Operating Strategies หรือ Strategic Initiatives)","(ระบุกิจกรรมหลักพร้อมปริมาณหรือเป้าหมาย)",null,null,"หน่วยงาน","ช่วงเวลาดำเนินการ และหรือ ปริมาณงานในไตรมาส",null,null,null,null,null,null,null,"หน่วยงาน"]
[null,"(Activities / Action Steps)",null,null,"ดำเนินการ","Plan Q1 ","Action Q1 ","Plan Q2 ","Action Q2 ","Plan Q23","Action Q3 ","Plan Q4","Action Q4","หลัก"]
["2. แผนงานเร่งรัดการปิดใบสั่งงานงานบริการ","2.1 เร่งรัดการเบิกต้นทุนงานเข้าใบสั่งงานงานติดตั้งมิเตอร์ใหม่และงานสับเปลี่ยนมิเตอร์ให้",null,null,"กฟฟ.ชั้น 1-3,กฟส.",null,null,null,null,null,null,null,null,"ผบต.กบญ."]
[null,"ผู้ใช้ไฟ (ZW01, ZW02) ที่มีการรับชำระเงินจากผู้ใช้ไฟให้ครบถ้วนและปิดใบสั่งงานให้ทัน"]
[null,"ภายในรอบการรับชำระเงินของทุกเดือนจากผู้ขอบริการงานบริการ (WMS)"]
[null," (เฉพาะที่ได้รับชำระเงิน) ไม่น้อยกว่าร้อยละ 90"]
[null,"กฟจ.หนองบัวลำภู",0.9,null,null,0.9,null,0.9,null,0.9,null,0.9]
[null,"กฟส.ศรีบุญเรือง",0.9,null,null,0.9,null,0.9,null,0.9,null,0.9]
[null,"กฟส.นากลาง",0.9,null,null,0.9,null,0.9,null,0.9,null,0.9]
[null,"กฟจ.หนองบัวลำภู (รวมสังกัด)",0.9,null,null,0.9,null,0.9,null,0.9,null,0.9]
[null,"กฟอ.บ้านไผ่",0.9,null,null,0.9,null,0.9,null,0.9,null,null,0.9]
[null,"กฟส.พล",0.9,null,null,0.9,null,0.9,null,0.9,null,null,0.9]
[null,"กฟส.มัญจาคีรี",0.9,null,null,0.9,null,0.9,null,0.9,null,null,0.9]
[null,"กฟส.หนองสองห้อง",0.9,null,null,0.9,null,0.9,null,0.9,null,null,0.9]
[null,"2.2 เร่งรัดการเบิกต้นทุนงานเข้าใบสั่งงานบริการหลังการขาย (ZW03) ที่มีการรับชำระเงิน",null,null,"กฟฟ.ชั้น 1-3,กฟส.",null,null,null,null,null,null,null,null,"ผบต.กบญ."]
[null,"จากผู้ใช้ไฟให้ครบถ้วนและปิดใบสั่งงานให้ทันภายในรอบการรับชำระเงินจากผู้ขอบริการ"]
[null,"งานบริการ (WMS) (เฉพาะที่ได้รับชำระเงิน) ไม่น้อยกว่าร้อยละ 90"]
[null,"กฟจ.หนองบัวลำภู",0.9,null,null,0.9,null,0.9,null,0.9,null,0.9]
[null,"กฟส.ศรีบุญเรือง",0.9,null,null,0.9,null,0.9,null,0.9,null,0.9]
[null,"กฟส.นากลาง",0.9,null,null,0.9,null,0.9,null,0.9,null,0.9]
[null,"กฟจ.หนองบัวลำภู (รวมสังกัด)",0.9,null,null,0.9,null,0.9,null,0.9,null,0.9]
[null,"กฟอ.บ้านไผ่",0.9,null,null,0.9,null,0.9,null,0.9,null,null,0.9]
[null,"กฟส.พล",0.9,null,null,0.9,null,0.9,null,0.9,null,null,0.9]
[null,"กฟส.มัญจาคีรี",0.9,null,null,0.9,null,0.9,null,0.9,null,null,0.9]
[null,"กฟส.หนองสองห้อง",0.9,null,null,0.9,null,0.9,null,0.9,null,null,0.9]
["3. แผนงานเพิ่มรายได้อื่น","3.1 ตรวจสอบการละเมิดพาดสายสื่อสาร ด้วยระบบ TAMS ในส่วนที่เหลือจากปี 2562"]
[null,"ดำเนินการตรวจสอบผู้ประกอบการทุกราย ทุก กฟฟ.ชั้น 1-3  รวม กฟฟ.ในสังกัด"]
[null,"3.1.1 ตรวจสอบมิเตอร์และเส้นทางการพาดสายสื่อสารระหว่างมิเตอร์  ",null,null,"กฟฟ.ชั้น 1-3,กฟส.",null,null,null,null,null,null,null,null,"ผธท.กบล."]
[null,"ของผู้ประกอบการด้านสื่อสาร"]
[null,"กฟฉ.1",1,null,null,null,null,1]
[null,"3.1.2 จัดทำและจัดส่งใบแจ้งค่าใช้จ่าย (ใบเสนอราคา) ค่าพาดสายสื่อสารก่อนได้รับอนุญาต",null,null,"กฟฟ.ชั้น 1-3,กฟส.",null,null,null,null,null,null,null,null,"ผธท.กบล."]
[null,"ทุก operater ภายใน 7 วัน"]
[null,"กฟฉ.1",1,null,null,null,null,1]
["5. แผนงานบริหารจัดการสินทรัพย์","5.1 การปิดงานก่อสร้าง (สถานะ Closed F4 และ Close E2 (ยกเลิกงาน))",null,null,"กฟฟ.ชั้น 1-3,กฟส.",null,null,null,null,null,null,null,null,"กบญ.,กกค."]
[null,"ทุกงบ (C,P,I) งานโครงการ เฉพาะ คฟม.2,คขก.2 ในส่วน ที่เกิดขึ้น ก่อนปี 2562 ให้ได้ 100%"]
[null,"(ยกเว้นงานที่ดิน-หมู่บ้านจัดสรร และงานก่อสร้างที่ส่วนกลางดำเนินงาน)"]
[null,"กฟจ.หนองบัวลำภู",1,null,null,0.15,null,0.5,null,0.85,null,1]
[null,"กฟส.ศรีบุญเรือง",1,null,null,0.15,null,0.5,null,0.85,null,1]
[null,"กฟส.นากลาง",1,null,null,0.15,null,0.5,null,0.85,null,1]
[null,"กฟจ.หนองบัวลำภู (รวมสังกัด)",1,null,null,0.15,null,0.5,null,0.85,null,1]
[null,"กฟอ.บ้านไผ่",1,null,null,0.15,null,0.5,null,0.85,null,null,1]
[null,"กฟส.พล",1,null,null,0.15,null,0.5,null,0.85,null,null,1]
[null,"กฟส.มัญจาคีรี",1,null,null,0.15,null,0.5,null,0.85,null,null,1]
[null,"กฟส.หนองสองห้อง",1,null,null,0.15,null,0.5,null,0.85,null,null,1]
[null,"5.2 การปิดงานก่อสร้าง (สถานะ Closed F4 และ Close E2 (ยกเลิกงาน))",null,null,"กฟฟ.ชั้น 1-3,กฟส.",null,null,null,null,null,null,null,null,"กบญ.,กกค."]
[null,"ทุกงบ (C,P,I) งานโครงการ เฉพาะ คฟม.2,คขก.2 ในส่วน ที่เกิดขึ้น ในปี 2562 ให้ได้ 80%"]
[null,"(ยกเว้นงานที่ดิน-หมู่บ้านจัดสรร และงานก่อสร้างที่ส่วนกลางดำเนินงาน)"]
[null,"กฟจ.หนองบัวลำภู",0.8,null,null,0.15,null,0.4,null,0.65,null,0.8]
[null,"กฟส.ศรีบุญเรือง",0.8,null,null,0.15,null,0.4,null,0.65,null,0.8]
[null,"กฟส.นากลาง",0.8,null,null,0.15,null,0.4,null,0.65,null,0.8]
[null,"กฟจ.หนองบัวลำภู (รวมสังกัด)",0.8,null,null,0.15,null,0.4,null,0.65,null,0.8]
[null,"กฟอ.บ้านไผ่",0.8,null,null,0.15,null,0.4,null,0.65,null,null,0.8]
[null,"กฟส.พล",0.8,null,null,0.15,null,0.4,null,0.65,null,null,0.8]
[null,"กฟส.มัญจาคีรี",0.8,null,null,0.15,null,0.4,null,0.65,null,null,0.8]
[null,"กฟส.หนองสองห้อง",0.8,null,null,0.15,null,0.4,null,0.65,null,null,0.8]
[null,"end",null,null,null,null,null,null,null,null,null,null,5,9]

{"sheet":"Goal (CSR)","index":3,"n_rows":31,"n_cols":14,"rows_kept":31,"cut":false,"hidden":false,"merged":[[23,5,23,12],[9,1,9,3],[7,1,7,3],[2,11,2,13],[3,4,3,8],[3,11,3,13],[4,4,4,8],[5,11,5,13],[8,1,8,3],[7,5,7,12],[8,5,8,12],[6,4,6,8],[6,11,6,13]]}
["แผนปฏิบัติการ กฟฉ.1 ประจำปี 2563",null,"ด้านเป้าหมายองค์กร"]
["(ฉบับทบทวนครั้งที่ 1)",null,"(Goal)  (Social and Environment)"]
["1. วัตถุประสงค์เชิงยุทธศาสตร์",null,"2. กลยุทธ์ระดับองค์กร",null,"3. เกณฑ์วัดการดำเนินงานระดับองค์กร",null,null,null,null,null,null,"4. เป้าหมาย"]
["(Strategic Objective)",null,"     -",null,"     -",null,null,null,null,null,null,"     -"]
["SO1 ดำเนินธุรกิจตามหลักธรรมาภิบาลเพื่อการเติบโตอย่างยั่งยืน"]
[null,null,"5. กลยุทธ์ระดับสายงาน",null,"6. เกณฑ์วัดการดำเนินงานระดับสายงาน",null,null,null,null,null,null,"7. เป้าหมาย"]
[null,null,"     -",null,"     -",null,null,null,null,null,null,"     -"]
["8. แผนงาน/โครงการ/งาน","9. แผนปฏิบัติ",null,null,10,11,null,null,null,null,null,null,null,12]
["(Operating Strategies หรือ Strategic Initiatives)","(ระบุกิจกรรมหลักพร้อมปริมาณหรือเป้าหมาย)",null,null,"หน่วยงาน","ช่วงเวลาดำเนินการ และหรือ ปริมาณงานในไตรมาส",null,null,null,null,null,null,null,"หน่วยงาน"]
[null,"(Activities / Action Steps)",null,null,"ดำเนินการ","Plan Q1 ","Action Q1 ","Plan Q2 ","Action Q2 ","Plan Q3","Action Q3 ","Plan Q4","Action Q4 ","หลัก"]
["6. แผนปฏิบัติการด้าน CSR ประจำปี 2563","6.1 ดำเนินงานตามกิจกรรมของแผนงาน CSR ตามที่ กฟภ. กำหนด",null,null,"กอก.,กฟฟ.ชั้น 1-3",null,null,null,null,null,null,null,null,"ผสส.กอก."]
["(นโยบาย KEEN 14 ด้าน NH 4 : Smart CSV.)","  1. โครงการ PEA รักษ์น้ำ สร้างฝาย"]
[null,"  2. โครงการ PEA LED"]
[null,"  3. โครงการชุมชนปลอดภัยใช้ไฟ PEA"]
[null,"  4. โครงการ  1 ตำบล 1 ช่างไฟฟ้า"]
[null,"  5. โครงการ PEA ส่งเสริมพลังงานทดแทนเพื่อวิสาหกิจชุมชน"]
[null,"  6. โครงการ ปันยิ้ม อิ่มบุญ คืนความสุขสู่สังคม"]
[null,"  7. โครงการ PEA ทำนุบำรุงศาสนา"]
[null,"  8. โครงการ PEA หน่วยแพทย์เคลื่อนที่"]
[null,"  9. โครงการ PEA วันเด็กแห่งชาติ"]
[null," 10. โครงการ \"Save Your Life ใส่ใจเลือดสมอง\" "]
[null," 11. โครงการ PEA ใส่ใจทุกชีวิต บริจาคโลหิต"]
[null," 12. โครงการ PEA พลังงานสะอาดเพื่อชุมชน (สนับสนุนพลังงานทดแทนด้วยระบบ Solar Pump)"]
[null,"กฟฉ.1",null,null,null,"รออนุมัติหลักการจาก ฝสส. "]
[null,"จัดส่งรายงานให้ ฝวธ.(ภ2) ภายในวันที่ 1 หลังสิ้นไตรมาส"]
["6. แผนปฏิบัติการด้าน CSR ประจำปี 2563 (ต่อ)","6.2 ดำเนินงานตามแผนปรับภูมิทัศน์ระบบจำหน่ายแบบบูรณาการ ",null,null,"กฟฟ.ชั้น 1-3",null,null,null,null,null,null,null,null,"ผสส.กอก.,กบษ."]
["(นโยบาย KEEN 14 ด้าน NH 4 : Smart CSV.)","(Integrated Distribution System Townescape) (IDST)"]
[null,"- ดำเนินการตามหลักรุกขกรรม (CSV)"]
[null,"กฟจ.หนองบัวลำภู (รวมสังกัด)",5,"กม.",null,null,null,"5 กม."]
[null,"end",null,null,null,null,null,null,null,null,null,null,2,3]
[null,null,null,null,null,null,null,null,null,null,null,null,{"$f":"M30+'Goal '!M67","v":7},{"$f":"N30+'Goal '!N67","v":12}]

{"sheet":"C1 (CR1,CR2,CR3)","index":4,"n_rows":65,"n_cols":22,"rows_kept":65,"cut":false,"hidden":false,"merged":[[23,5,23,11],[24,1,24,3],[25,1,25,3],[23,1,23,3],[24,5,24,12]]}
["แผนปฏิบัติการ กฟฉ.1 ประจำปี 2563",null,"ด้านลูกค้า"]
["(ฉบับทบทวนครั้งที่ 1)",null,"(Customer Value Proposition )"]
["1. วัตถุประสงค์เชิงยุทธศาสตร์",null,"2. กลยุทธ์ระดับองค์กร",null,"3. เกณฑ์วัดการดำเนินงานระดับองค์กร",null,null,null,null,null,null,"4. เป้าหมาย"]
["(Strategic Objective)",null,"   CR1 ยกระดับมาตรฐานของผลิตภัณฑ์",null,"   - ความพึงพอใจของลูกค้า",null,null,null,null,null,null," - ไม่น้อยกว่าระดับ  4.37"]
["SO3   มุ่งเน้นการตอบสนองความต้องการของทุกกลุ่มลูกค้า",null,"         และการให้บริการของลูกค้า โดยใช้เทคโนโลยีดิจิทัล",null,"        กลุ่มลูกค้ารายย่อย (บ้านอยู่อาศัย และพาณิชย์รายย่อย)",null,null,null,null,null,null," - ไม่น้อยกว่าร้อยละ 4.40"]
["         ",null,"        (Customer Service)",null,"        กลุ่มลูกค้ารายใหญ่ (อุตสาหกรรม และพาณิชย์รายใหญ่)",null,null,null,null,null,null," - ไม่น้อยกว่าร้อยละ 4.32"]
[null,null,"   CR2  การสร้างความสัมพันธ์กับลูกค้าในระยะยาว",null,"        ภาครัฐและอื่นๆ (ราชการ และรัฐวิสาหกิจ และอื่นๆ)",null,null,null,null,null,null," - ไม่น้อยกว่าร้อยละ 4.33"]
[null,null,"          และรักษาฐานลูกค้ารายสำคัญ (CRM)",null,"   - ร้อยละต้นทุนการให้บริการลูกค้าที่ลดลง",null,null,null,null,null,null," - ไม่น้อยกว่าร้อยละ 10"]
[null,null,"   CR3  สร้างประสบการณ์ที่ดีกับลูกค้า  (Customer Experience)",null," -ความสำเร็จในการวิเคราะห์และจัดทาฐานข้อมูลของ Potential",null,null,null,null,null,null," - ไม่น้อยกว่าระดับ 5"]
[null,null,null,null," Customer (Strategic และ Star) เพื่อกาหนด กลยุทธ์ทางการตลาด"]
[null,null,null,null,"ในกลุ่มธุรกิจเกี่ยวเนื่อง"]
[null,null,null,null,"   - ความพึงพอใจลูกค้า Key Account, High Valua",null,null,null,null,null,null," - ไม่น้อยกว่าร้อยละ 4.34"]
[null,null,null,null,"   - ความสำเร็จของแผนงานพัฒนา PEA Customer Journey",null,null,null,null,null,null," - ไม่น้อยกว่าร้อยละ 100"]
[]
[null,null,"5. กลยุทธ์ระดับสายงาน",null,"6. เกณฑ์วัดการดำเนินงานระดับสายงาน",null,null,null,null,null,null,"7. เป้าหมาย"]
[null,null,"   CR1 ยกระดับมาตรฐานของผลิตภัณฑ์",null,"   - ความพึงพอใจของลูกค้าของสายงานการไฟฟ้า ภาค 2",null,null,null,null,null,null," - ไม่น้อยกว่าระดับ  4.37"]
[null,null,"         และการให้บริการของลูกค้า โดยใช้เทคโนโลยีดิจิทัล",null,"   - ความพึงพอใจลูกค้า"]
[null,null,"        (Customer Service)",null,"        กลุ่มลูกค้ารายย่อย (บ้านอยู่อาศัย และพาณิชย์รายย่อย)",null,null,null,null,null,null," - ไม่น้อยกว่าระดับ…………"]
[null,null,"   CR2  การสร้างความสัมพันธ์กับลูกค้าในระยะยาว",null,"        กลุ่มลูกค้ารายใหญ่ (อุตสาหกรรม และพาณิชย์รายใหญ่)",null,null,null,null,null,null," - ไม่น้อยกว่าระดับ…………"]
[null,null,"          และรักษาฐานลูกค้ารายสำคัญ (CRM)",null,"        ภาครัฐและอื่นๆ (ราชการ และรัฐวิสาหกิจ และอื่นๆ)",null,null,null,null,null,null," - ไม่น้อยกว่าระดับ…………"]
[null,null,"   CR3  สร้างประสบการณ์ที่ดีกับลูกค้า  (Customer Experience)",null,"   - ร้อยละต้นทุนการให้บริการลูกค้าที่ลดลง µ",null,null,null,null,null,null," - ไม่น้อยกว่าร้อยละ ........."]
[null,null,"       ",null,"   - ความพึงพอใจลูกค้า Key Account, High Valua",null,null,null,null,null,null," - ไม่น้อยกว่าระดับ…………"]
[null,null,null,null,"   - ความสำเร็จของแผนงานพัฒนา PEA Customer Journey",null,null,null,null,null,null," - ไม่น้อยกว่าร้อยละ 100"]
["8. แผนงาน/โครงการ/งาน","9. แผนปฏิบัติ",null,null,10,11,null,null,null,null,null,null,null,12]
["(Operating Strategies หรือ Strategic Initiatives)","(ระบุกิจกรรมหลักพร้อมปริมาณหรือเป้าหมาย)",null,null,"หน่วยงาน","ช่วงเวลาดำเนินการ และหรือ ปริมาณงานในไตรมาส",null,null,null,null,null,null,null,"หน่วยงาน"]
[null,"(Activities / Action Steps)",null,null,"ดำเนินการ","Plan Q1 ","Action Q1 ","Plan Q2 ","Action Q2 ","Plan Q3","Action Q3 ","Plan Q4","Action Q4 ","หลัก",null,null,"ข้อ 1.1","จำนวน",52022010,52022020,52022030,52030030]
["1. แผนงานขยายผลปฏิบัติงานของผู้จัดการศูนย์ ","1.2 ติดตามและประเมินผลการดำเนินงาน (KPI) ของผู้จัดการศูนย์งานบริการลูกค้า ",null,null,"กฟฟ.ชั้น 1-3",null,null,null,null,null,null,null,null,"ผลส.กบล."]
["งานบริการลูกค้า (Front Manager) (ต่อ)","(Front manager) ตามคู่มือการปฏิบัติงานของผู้จัดการศูนย์งานบริการลูกค้า "]
["(นโยบาย KEEN 14 ด้าน NH1: Smart Workforce)"]
[null,"กฟจ.หนองบัวลำภู (รวมสังกัด)",4,"ครั้ง",null,"1 ครั้ง",null,"1 ครั้ง",null,"1 ครั้ง",null,"1 ครั้ง"]
["2. แผนงานพัฒนาศักยภาพพนักงานในด้าน","2.2 กฟฟ.ชั้น 1-3 จัดอบรม/OJT การบริการด้วยใจ (Service mind) ให้กับตัวแทน เช่น ",null,null,"ผสบ.กรท.",null,null,null,null,null,null,null,null,"ผสบ.กรท.",null,null,null,null,{"$f":"#REF!*1000000","v":{"$error":"#REF!"}},{"$f":"#REF!*1000000","v":{"$error":"#REF!"}},{"$f":"#REF!*1000000","v":{"$error":"#REF!"}},{"$f":"#REF!*1000000","v":{"$error":"#REF!"}}]
["การสร้างความสัมพันธ์กับลูกค้า","ตัวแทนตัด ต่อกลับมิเตอร์, ตัวแทนตัดต้นไม้, ตัวแทนติดตั้ง รื้อถอน สับเปลี่ยน มิเตอร์ เป็นต้น",null,null,null,null,null,null,null,null,null,null,null,null,null,null,"ข้อ 3.2  ไม่ของบ"]
["(นโยบาย KEEN 14 ด้าน NH1: Smart Workforce)"]
["(แผนการดำเนินงาน กฟภ. ปี2563)"]
[null,"กฟจ.หนองบัวลำภู (รวมสังกัด)",1,"ครั้ง (ภายในไตรมาส 2)",null,null,null,"1 ครั้ง"]
["3. แผนงานพัฒนาการให้บริการลูกค้า","3.1 ทุก กฟฟ. จัดกิจกรรมประชาสัมพันธ์เชิญชวนลูกค้ารับบริการผ่าน Internet และ ",null,null,"กฟฟ.ชั้น 1-3,กฟส.",null,null,null,null,null,null,null,null,"กรท.,กอก.",null,null,"ข้อ 3.1","งบประชาสัมพันธ์อื่นๆ"]
["ด้วยเทคโนโลยีดิจิทัล","PEA smart plus",null,null,null,null,null,null,null,null,null,null,null,null,null,null,null,"ค่าแผ่นพับ เขตละ 10,000 แผ่นๆละ 10 บาท","บูธPEA Smart plus","ของที่ระลึก"]
["(แผนการดำเนินงาน กฟภ. ปี2563)",null,null,null,null,null,null,null,null,null,null,null,null,null,null,null,"กฟฉ.1",0.1,0.2,0.05,{"$f":"SUM(R38:T38)","v":0.35000000000000003}]
[null,"กฟจ.อุดรธานี",12,"\"",null,3,null,3,null,3,null,3]
[null,"กฟส.บ้านผือ",12,"\"",null,3,null,3,null,3,null,3]
[null,"กฟส.หนองวัวซอ",12,"\"",null,3,null,3,null,3,null,3]
[null,"กฟส.กุดจับ",12,"\"",null,3,null,3,null,3,null,3]
[null,"กฟจ.หนองบัวลำภู",12,"ครั้ง (จัดกิจกรรม 3 ครั้ง/ไตรมาส)",null,3,null,3,null,3,null,3]
[null,"กฟส.ศรีบุญเรือง",12,"\"",null,3,null,3,null,3,null,3]
[null,"กฟส.นากลาง",12,"\"",null,3,null,3,null,3,null,3]
[null,"กฟจ.หนองบัวลำภู (รวมสังกัด)",{"$f":"SUM(C43:C45)","v":36},"\"",null,{"$f":"SUM(F43:F45)","v":9},null,{"$f":"SUM(H43:H45)","v":9},null,{"$f":"SUM(J43:J45)","v":9},null,{"$f":"SUM(L43:L45)","v":9}]
[null,"กฟอ.บ้านไผ่",12,"\"",null,3,null,3,null,3,null,3]
[null,"กฟส.พล",12,"\"",null,3,null,3,null,3,null,3]
[null,"กฟส.มัญจาคีรี",12,"\"",null,3,null,3,null,3,null,3]
["4. แผนงานพัฒนากระบวนการให้บริการธุรกิจ","4.1 การให้บริการทางธุรกิจเพื่ออำนวยความสะดวกให้บริการขอใช้ไฟฟ้า",null,null,"กฟฟ.ชั้น 1-3",null,null,null,null,null,null,null,null,"ผบธ.กบล."]
["ตามแนวทาง Doing Business : World Bank","ตามแนวทาง (Doing Business : World Bank) ให้กับลูกค้าประเภทธุรกิจ",null,null,null,null,null,null,null,null,null,null,null,null,null,null,"ไม่ของบ"]
["(แผนการดำเนินงาน กฟภ. ปี2563)","อุตสาหกรรม สามารถดำเนินการได้ด้วยความสะดวก รวดเร็ว และคล่องตัวยิ่งขึ้น"]
[null,"ดำเนินการภายใน 20 วันปฏิทิน  "]
[null,"(ติดตั้งมิเตอร์ 3 เฟส 30(100) หรือติดตั้งหม้อแปลงไม่เกิน 250 kVA)"]
[null,"กฟจ.หนองบัวลำภู (รวมสังกัด)",1,null,null,1,null,1,null,1,null,1]
["7. แผนงานเพิ่มประสิทธิภาพการจัดการข้อร้องเรียน","7.1 ทุก กฟฟ. ดำเนินการระบุสถานะการปิดข้อร้องเรียน/ข้อเสนอแนะ และอื่นๆ ",null,null,"กฟฟ.ชั้น 1-3,กฟส.",null,null,null,null,null,null,null,null,"ผลส.กบล."]
["ด้านคุณภาพไฟฟ้า","ด้านคุณภาพไฟฟ้า (แก้ไขปัญหาสิ้นสุด/จำเป็นต้องวางแผนแก้ไขต่อ) ลงในเอกสาร VOC 03"]
[null,"พร้อมแนบเอกสารในระบบ PEA VOC SYSTEM ทุกครั้งที่มีการปิดข้อร้องเรียน"]
[null,"กฟฉ.1",1,null,null,1,null,1,null,1,null,1]
[null,"เริ่มดำเนินการตามแนวทางฯ ตั้งแต่เดือนมกราคม 2563",null,"      "]
[null,"7.2 ตรวจสอบและคัดกรองข้อร้องเรียน/ข้อเสนอแนะ และอื่นๆด้านคุณภาพไฟฟ้า ",null,null,"กฟฟ.ชั้น 1-3,กฟส.",null,null,null,null,null,null,null,null,"ผลส.กบล."]
[null,"ที่ปิดข้อร้องเรียนแล้ว จากระบบ PEA VOC SYSTEM แต่ยังไม่ดำเนินการแก้ไข "]
[null,"(ให้ดำเนินการแก้ไขให้แล้วเสร็จ)"]
[null,"กฟฉ.1","รายงานงานที่คงเหลือทุกไตรมาส",null,null,1,null,1,null,1,null,1]
[null,"end",null,null,null,null,null,null,null,null,null,7,null,10]

{"sheet":"C2 (NW1)","index":5,"n_rows":27,"n_cols":14,"rows_kept":27,"cut":false,"hidden":false,"merged":[[13,1,13,3],[11,1,11,3],[12,1,12,3],[11,5,11,11],[12,5,12,11]]}
["แผนปฏิบัติการ กฟฉ.1 ประจำปี 2563",null,"ด้านลูกค้า"]
["(ฉบับทบทวนครั้งที่ 1)",null,"(Customer Value Proposition )"]
["1. วัตถุประสงค์เชิงยุทธศาสตร์",null,"2. กลยุทธ์ระดับองค์กร",null,"3. เกณฑ์วัดการดำเนินงานระดับองค์กร",null,null,null,null,null,null,"4. เป้าหมาย"]
["(Strategic Objective)",null,"   NM1  ส่งเสริมการลงทุนและใช้ประโยชน์ความร่วมือ ",null,"   - ความสำเร็จของแผนการดำเนินธุรกิจเกี่ยวเนื่อง",null,null,null,null,null,null," -ไม่น้อยกว่าร้อยละ 100"]
["SO4   การเพิ่มมูลค่าทางธุรกิจขององค์กร โดยสร้าง Advantaged Portfolio",null,"           เพื่อพัฒนาธุรกิจเกี่ยวเนื่อง",null,"   - รายได้ธุรกิจเกี่ยวเนื่อง",null,null,null,null,null,null," -ไม่น้อยกว่า 6,525 ล้านบาท"]
[]
[]
[null,null,"5. กลยุทธ์ระดับสายงาน",null,"6. เกณฑ์วัดการดำเนินงานระดับสายงาน",null,null,null,null,null,null,"7. เป้าหมาย"]
[null,null,"   NM1  ส่งเสริมการลงทุนและใช้ประโยชน์ความร่วมือ ",null,"   -  รายได้ธุรกิจเกี่ยวเนื่อง",null,null,null,null,null,null," -ไม่น้อยกว่า………ล้านบาท"]
[null,null,"           เพื่อพัฒนาธุรกิจเกี่ยวเนื่อง"]
[]
["8. แผนงาน/โครงการ/งาน","9. แผนปฏิบัติ",null,null,10,11,null,null,null,null,null,null,null,12]
["(Operating Strategies หรือ Strategic Initiatives)","(ระบุกิจกรรมหลักพร้อมปริมาณหรือเป้าหมาย)",null,null,"หน่วยงาน","ช่วงเวลาดำเนินการ และหรือ ปริมาณงานในไตรมาส",null,null,null,null,null,null,null,"หน่วยงาน"]
[null,"(Activities / Action Steps)",null,null,"ดำเนินการ","Plan Q1 ","Action Q1 ","Plan Q2 ","Action Q2 ","Plan Q3","Action Q3 ","Plan Q4","Action Q4 ","หลัก"]
["9. แผนงานเพิ่มรายได้ธุรกิจเสริมและธุรกิจที่เกี่ยวเนื่อง","9.1 ดำเนินการตลาดเชิงรุกกับกลุ่มลูกค้าเป้าหมาย  เช่น กลุ่มราชการ, "]
["ทั้งหมด 17 บัญชี","องค์กรปกครองส่วนท้องถิ่น, กลุ่มลูกค้าหม้อแปลงเฉพาะราย"]
["(นโยบาย KEEN 14 ด้าน KE2 : Smart Service)","9.1.1 แต่งตั้ง พนักงานขาย ครบทุก กฟฟ. ชั้น 1-3, กฟส. และ กฟข. ละ 1 คน",null,null,"กฟฟ.ชั้น 1-3,กฟส.",null,null,null,null,null,null,null,null,"ผลส.กบล."]
[null,"กฟจ.หนองบัวลำภู",1,"คน",null,"1 คน"]
[null,"กฟส.ศรีบุญเรือง",1,"\"",null,"1 คน"]
[null,"กฟส.นากลาง",1,"\"",null,"1 คน"]
[null,"กฟจ.หนองบัวลำภู (รวมสังกัด)",{"$f":"SUM(C18:C20)","v":3},"\"",null,"3 คน"]
[null,"กฟอ.บ้านไผ่",1,"\"",null,"1 คน"]
[null,"กฟส.พล",1,"\"",null,"1 คน"]
[null,"กฟส.มัญจาคีรี",1,"\"",null,"1 คน"]
[null,"กฟส.หนองสองห้อง",1,"\"",null,"1 คน"]
[null,"end",null,null,null,null,null,null,null,null,null,2,null,5]
[null,null,null,null,null,null,null,null,null,null,null,{"$f":"L26+'C1 (CR1,CR2,CR3)'!L65","v":9},null,{"$f":"N26+'C1 (CR1,CR2,CR3)'!N65","v":15}]

{"sheet":"I1 OM1(SAIFISAIDI)","index":6,"n_rows":90,"n_cols":22,"rows_kept":90,"cut":false,"hidden":false,"merged":[[2,9,2,13],[4,9,4,13],[8,9,8,13],[21,1,21,3],[3,9,3,13],[5,9,5,13],[6,9,6,13],[9,9,9,13],[10,9,10,13],[11,9,11,13],[14,9,14,13],[20,5,20,11],[21,5,21,11],[22,1,22,3],[15,9,15,13],[16,9,16,13],[20,1,20,3],[41,2,41,3]]}
["แผนปฏิบัติการ กฟฉ.1 ประจำปี 2563",null,"ด้านกระบวนการภายใน"]
["(ฉบับทบทวนครั้งที่ 1)",null,"(Internal Process)"]
["1. วัตถุประสงค์เชิงยุทธศาสตร์",null,"2. กลยุทธ์ระดับองค์กร",null,"3. เกณฑ์วัดการดำเนินงานระดับองค์กร",null,null,null,null,"4. เป้าหมาย"]
["(Strategic Objective)",null," OM1 การเพิ่มประสิทธิภาพและความน่าเชื่อถือ",null,"    - ดัชนีจำนวนครั้งที่ไฟฟ้าขัดข้อง (SAIFI)",null,null,null,null,"-ไม่มากกว่า 2.91 ครั้ง/ราย/ปี"]
["    SO2 มุ่งสู่องค์กรที่เป็นเลิศในด้านจำหน่ายกระแสไฟฟ้า",null,"         ของระบบจำหน่าย",null,"    - ดัชนีจำนวนครั้งที่ไฟฟ้าขัดข้อง (SAIFI) เมืองใหญ่",null,null,null,null,"-ไม่มากกว่า 1.075 ครั้ง/ราย/ปี"]
["             โดยบูรณาการทุกระบบงานด้วย Digitalization",null,null,null,"    - ดัชนีระยะเวลาที่ไฟฟ้าขัดข้อง (SAIDI) ",null,null,null,null,"- ไม่มากกว่า 69.84 นาที/ราย/ปี"]
[null,null,null,null,"    - ดัชนีระยะเวลาที่ไฟฟ้าขัดข้อง (SAIDI)  เมืองใหญ่",null,null,null,null,"- ไม่มากกว่า 14.860 นาที/ราย/ปี"]
[null,null,null,null," - ความพึงพอใจด้านคุณภาพผลิตภัณฑ์ของ กฟภ.",null,null,null,null,"ไม่น้อยกว่าระดับ 4.39"]
[null,null,"5. กลยุทธ์ระดับสายงาน",null,"6. เกณฑ์วัดการดำเนินงานระดับสายงาน",null,null,null,null,"7. เป้าหมาย"]
[null,null," OM1 การเพิ่มประสิทธิภาพและความน่าเชื่อถือ",null,"    - ดัชนีจำนวนครั้งที่ไฟฟ้าขัดข้อง (SAIFI)",null,null,null,null,"-ไม่มากกว่า…... ครั้ง/ราย/ปี"]
[null,null,"         ของระบบจำหน่าย",null,"    - ดัชนีจำนวนครั้งที่ไฟฟ้าขัดข้อง (SAIFI)  เมืองใหญ่",null,null,null,null,"-ไม่มากกว่า…….ครั้ง/ราย/ปี"]
[null,null,null,null,"    - ดัชนีจำนวนครั้งที่ไฟฟ้าขัดข้อง (SAIFI) ",null,null,null,null,"-ไม่มากกว่า……..ครั้ง/ราย/ปี"]
[null,null,null,null,"       ใน 6 กฟฟ.จุดรวมงาน(รวมสังกัด)"]
[null,null,null,null,"       ที่มีค่ามากสุดในปี 2562 (PA)"]
[null,null,null,null,"    - ดัชนีระยะเวลาที่ไฟฟ้าขัดข้อง (SAIDI) ",null,null,null,null,"- ไม่มากกว่า…….นาที/ราย/ปี"]
[null,null,null,null,"    - ดัชนีระยะเวลาที่ไฟฟ้าขัดข้อง (SAIDI)  เมืองใหญ่",null,null,null,null,"- ไม่มากกว่า……..นาที/ราย/ปี"]
[null,null,null,null,"    - ดัชนีระยะเวลาที่ไฟฟ้าขัดข้อง (SAIDI)",null,null,null,null,"- ไม่มากกว่า……...นาที/ราย/ปี"]
[null,null,null,null,"       ใน 6 กฟฟ.จุดรวมงาน(รวมสังกัด)"]
[null,null,null,null,"       ที่มีค่ามากสุดในปี 2562 (PA)"]
[null,null,null,null," - ความพึงพอใจด้านคุณภาพผลิตภัณฑ์ของ กฟภ.µ",null,null,null,null,"ไม่น้อยกว่าระดับ 4.37"]
["8. แผนงาน/โครงการ/งาน","9. แผนปฏิบัติ",null,null,10,11,null,null,null,null,null,null,null,12]
["(Operating Strategies หรือ Strategic Initiatives)","(ระบุกิจกรรมหลักพร้อมปริมาณหรือเป้าหมาย)",null,null,"หน่วยงาน","ช่วงเวลาดำเนินการ และหรือ ปริมาณงานในไตรมาส",null,null,null,null,null,null,null,"หน่วยงาน"]
[null,"(Activities / Action Steps)",null,null,"ดำเนินการ","Plan Q1 ","Action Q1 ","Plan Q2 ","Action Q2 ","Plan Q3","Action Q3 ","Plan Q4","Action Q4 ","หลัก"]
["1. แผนงานเพิ่มคุณภาพระบบจำหน่ายไฟฟ้า","1.1 กิจกรรมป้องกันไฟดับจากสัตว์"]
["(นโยบาย KEEN 14 ด้าน EI3 : Smart Utilization)","1.1.1 สำรวจขออนุมัติติดตั้ง Cover และเปลี่ยนสายหลีดของหม้อแปลงเป็น",null,null,"กฟฟ.ชั้น 1-3",null,null,null,null,null,null,null,null,"ผตบ.กบษ."]
[null,"ชนิดหุ้มฉนวนสำหรับหม้อแปลงของ กฟฟ.ชั้น 1-3 เป้าหมาย 20% ของหม้อแปลง 3 เฟส ทั้งหมด"]
[null," (สำรวจ-ขออนุมัติภายใน ไตรมาส  1)"]
[null,"กฟจ.หนองบัวลำภู (รวมสังกัด)",137,"เครื่อง",null,137]
[null,"1.1.2 ดำเนินการติดตั้ง Cover และเปลี่ยนสายหลีดของหม้อแปลงเป็นชนิดหุ้มฉนวน ",null,null,"กฟฟ.ชั้น 1-3",null,null,null,null,null,null,null,null,"ผตบ.กบษ."]
[null,"ตามข้อ 1.1.1 ให้แล้วเสร็จภายในไตรมาส 4"]
[null,"กฟจ.หนองบัวลำภู (รวมสังกัด)",137,"เครื่อง",null,null,null,null,null,null,null,137]
[null,"1.3.2 ทุก กฟฟ.ชั้น 1-3 กำหนดเส้นทางและ ดำเนินการตัดต้นไม้เพื่อทัศนียภาพที่สวยงาม ",null,null,"กฟฟ.ชั้น 1-3",null,null,null,null,null,null,null,null,"ผตบ.กบษ."]
[null,"ตามหลักรุกขกรรม (ควบคุม/ตรวจสอบโดยรุกขกร)  "]
[null,"โดยดำเนินการ กฟฟ.ชั้น 1-3 ละ 5 กม. อย่างน้อยปีละ 1 ครั้ง"]
[null,"กฟจ.หนองบัวลำภู (รวมสังกัด)",5,"กม.",null,null,null,5]
[null,"1.4 กิจกรรมป้องกันไฟดับจากภัยธรรมชาติ"]
[null,"1.4.1 สำรวจออกแบบ และดำเนินการปรับปรุงเสริมความมั่นคงระบบจำหน่าย",null,null,"กฟฟ.ชั้น 1-3,กฟส.",null,null,null,null,null,null,null,null,"ผตบ.กบษ."]
[null,"(เพิ่มสายยึดโยง,ปรับแต่งเสาเอน,เทโคนเสา,ปักเสาแซมไลน์ ฯลฯ)"]
[null,"เพื่อป้องกันความเสียหายจากวาตภัย ในปี 2563 ดำเนินการทุกจุดในไลน์ที่มีความเสี่ยงสูง"]
[null,"(จุดต่อสตับ,สายยึดโยงไม่เพียงพอและอยู่ในที่โล่ง) ดำเนินการโดยทีม Patrol"]
[null,"ภายในไตรมาส 1 หรืออย่างช้าไม่เกินไตรมาส 2"]
[null,"กฟจ.หนองบัวลำภู (รวมสังกัด)","ทุกจุดในไลน์ที่มีความเสี่ยง",null,null,null,null,1]
[null,"1.4.2 สำรวจออกแบบ และดำเนินการปรับปรุงเสริมความมั่นคงระบบจำหน่าย",null,null,"กฟฟ.ชั้น 1-3,กฟส.",null,null,null,null,null,null,null,null,"ผตบ.กบษ."]
[null," (เพิ่มสายยึดโยง,ปรับแต่งเสาเอน,เทโคนเสา,ปักเสาแซมไลน์ ฯลฯ)"]
[null," เพื่อป้องกันความเสียหายจากวาตภัย ในปี 2564 ดำเนินการทุกจุดในไลน์ที่มีความเสี่ยงสูง "]
[null,"(สำรวจออกแบบขออนุมัติฯ ภายในไตรมาส 2 และดำเนินการปรับปรุงฯ ภายในไตรมาส 4/2563)",null,null,null,null,null,null,null,null,null,null,null,null,null,null,null,null,null,null,null,"รวมทั้งสิ้น"]
[null,"กฟจ.หนองบัวลำภู (รวมสังกัด)","ทุกจุดในไลน์ที่มีความเสี่ยง",null,null,null,null,null,null,null,null,1]
[null,"**เพื่อป้องกันวาตภัยในปี 2564"]
[null,"1.5 เปลี่ยนสายเปลือยเป็นสาย SAC  ในเขตเทศบาลเมือง 100% (ทุกโครงการที่อนุมัติแล้ว )",null,null,"กฟฟ.ชั้น 1-3,กฟส.",null,null,null,null,null,null,null,null,"ผจร.กกค."]
[null,"กฟจ.หนองบัวลำภู",1]
[null,"กฟส.ศรีบุญเรือง",1]
[null,"กฟส.นากลาง",1]
[null,"กฟจ.หนองบัวลำภู (รวมสังกัด)",1]
["2. แผนงาน Smart Patrol ","2.1 สำรวจ-ปรับปรุงระบบไฟฟ้า วงจรที่ชำรุดเสื่อมสภาพจำนวนมาก ตามแผนงานเปลี่ยนทดแทนฯ",null,null,"กฟฟ.ชั้น 1-3,กฟส.",null,null,null,null,null,null,null,null,"ผตบ.กบษ."]
["(นโยบาย KEEN 14 ด้าน EI3 : Smart Utilization)","(MR.2000) รวบรวมข้อมูลแจ้ง กบร. ปีละครั้ง "]
[null,"ค่าเกณฑ์วัด"]
[null," - มีงานสำรวจ-ประมาณการปรับปรุงฯ ได้ ระดับ 5"]
[null," - ไมมีงานสำรวจ-ประมาณการปรับปรุงฯ ได้ ระดับ 1"]
[null,"กฟจ.หนองบัวลำภู",1,"งาน (อย่างน้อย 1 งาน)",null,null,null,1]
[null,"กฟส.ศรีบุญเรือง",1,"\"",null,null,null,1]
[null,"กฟส.นากลาง",1,"\"",null,null,null,1]
[null,"กฟจ.หนองบัวลำภู (รวมสังกัด)",1,"\"",null,null,null,1]
["3. แผนงานก่อสร้าง/ปรับปรุงระบบสายส่ง, หม้อแปลง ","3.2 ก่อสร้างระบบจำหน่ายแรงสูง (งบ I,P)",null,null,"กฟฟ.ชั้น 1-3,กฟส.",0.2,null,0.3,null,0.3,null,0.2,null,"ผจร.กกค."]
["และระบบจำหน่าย (แรงสูง-แรงต่ำ)","กฟจ.หนองบัวลำภู",0,"วงจร - กม.",null,{"$f":"C64*$F$63","v":0},null,{"$f":"C64*$H$63","v":0},null,{"$f":"C64*$J$63","v":0},null,{"$f":"C64*$L$63","v":0}]
[null,"กฟส.ศรีบุญเรือง",0,"\"",null,0,null,0,null,0,null,0]
[null,"กฟส.นากลาง",0,"\"",null,0,null,0,null,0,null,0]
[null,"กฟจ.หนองบัวลำภู (รวมสังกัด)",0,"\"",null,0,null,0,null,0,null,0]
[null,"กฟอ.บ้านไผ่",0,"\"",null,0,null,0,null,0,null,0]
[null,"กฟส.พล",5.0813846607409303,"\"",null,1.0162769321481862,null,1.524415398222279,null,1.524415398222279,null,1.0162769321481862]
[null,"กฟส.มัญจาคีรี",4.84,"\"",null,0.96799999999999997,null,1.452,null,1.452,null,0.96799999999999997]
[null,"กฟส.หนองสองห้อง",0,"\"",null,0,null,0,null,0,null,0]
[null,"3.3 ก่อสร้างระบบจำหน่ายแรงต่ำ (งบ I,P)",null,null,"กฟฟ.ชั้น 1-3,กฟส.",0.15,null,0.35,null,0.35,null,0.15,null,"ผปร.กวว."]
[null,"กฟจ.หนองบัวลำภู",21,"วงจร - กม.",null,{"$f":"+C73*0.15","v":3.15},null,{"$f":"+C73*0.35","v":7.35},null,{"$f":"+C73*0.35","v":7.35},null,{"$f":"+C73*0.15","v":3.15}]
[null,"กฟส.ศรีบุญเรือง",10,"\"",null,1.5,null,3.5,null,3.5,null,1.5]
[null,"กฟส.นากลาง",10,"\"",null,1.5,null,3.5,null,3.5,null,1.5]
[null,"กฟจ.หนองบัวลำภู (รวมสังกัด)",41,"\"",null,6.1499999999999995,null,14.35,null,14.35,null,6.1499999999999995]
[null,"กฟอ.บ้านไผ่",21,"\"",null,3.15,null,7.35,null,7.35,null,3.15]
[null,"กฟส.พล",10,"\"",null,1.5,null,3.5,null,3.5,null,1.5]
[null,"กฟส.มัญจาคีรี",10,"\"",null,1.5,null,3.5,null,3.5,null,1.5]
[null,"กฟส.หนองสองห้อง",10,"\"",null,1.5,null,3.5,null,3.5,null,1.5]
[null,"3.4 ติดตั้งระบบหม้อแปลง  (งบ I,P)",null,null,"กฟฟ.ชั้น 1-3,กฟส.",0.15,null,0.35,null,0.35,null,0.15,null,"ผปร.กวว."]
[null,"กฟจ.หนองบัวลำภู",2000,"kVA",null,{"$f":"+C82*0.15","v":300},null,{"$f":"+C82*0.35","v":700},null,{"$f":"+C82*0.35","v":700},null,{"$f":"+C82*0.15","v":300}]
[null,"กฟส.ศรีบุญเรือง",1000,"\"",null,150,null,350,null,350,null,150]
[null,"กฟส.นากลาง",1000,"\"",null,150,null,350,null,350,null,150]
[null,"กฟจ.หนองบัวลำภู (รวมสังกัด)",4000,"\"",null,600,null,1400,null,1400,null,600]
[null,"กฟอ.บ้านไผ่",2000,"\"",null,300,null,700,null,700,null,300]
[null,"กฟส.พล",1000,"\"",null,150,null,350,null,350,null,150]
[null,"กฟส.มัญจาคีรี",1000,"\"",null,150,null,350,null,350,null,150]
[null,"กฟส.หนองสองห้อง",1000,"\"",null,150,null,350,null,350,null,150]
[null,"end",null,null,null,null,null,null,null,null,null,3,null,17]

{"sheet":"I2 OM1(LOSS)","index":7,"n_rows":218,"n_cols":14,"rows_kept":218,"cut":false,"hidden":false,"merged":[[7,9,7,13],[2,9,2,13],[3,9,3,13],[4,9,4,13],[5,9,5,13],[6,9,6,13],[8,1,8,3],[9,1,9,3],[10,1,10,3],[8,5,8,11],[9,5,9,11]]}
["แผนปฏิบัติการ กฟฉ.1 ประจำปี 2563",null,"ด้านกระบวนการภายใน"]
["(ฉบับทบทวนครั้งที่ 1)",null,"(Internal Process)"]
["1. วัตถุประสงค์เชิงยุทธศาสตร์",null,"2. กลยุทธ์ระดับองค์กร",null,"3. เกณฑ์วัดการดำเนินงานระดับองค์กร",null,null,null,null,"4. เป้าหมาย"]
["(Strategic Objective)",null," OM1  การเพิ่มประสิทธิภาพและความน่าเชื่อถือของระบบจำหน่าย",null,"    - ร้อยละของหน่วยสูญเสีย (Loss)",null,null,null,null,"- ไม่มากกว่าร้อยละ 5.18"]
["    SO2 มุ่งสู่องค์กรที่เป็นเลิศในด้านจำหน่ายกระแสไฟฟ้า"]
[" โดยบูรณาการทุกระบบงานด้วย Digitalization",null,"5. กลยุทธ์ระดับสายงาน",null,"6. เกณฑ์วัดการดำเนินงานระดับสายงาน",null,null,null,null,"7. เป้าหมาย"]
[null,null," OM1  การเพิ่มประสิทธิภาพและความน่าเชื่อถือของระบบจำหน่าย",null,"    - ร้อยละของหน่วยสูญเสีย (Loss)",null,null,null,null,"- ไม่มากกว่าร้อยละ………."]
[]
["8. แผนงาน/โครงการ/งาน","9. แผนปฏิบัติ",null,null,10,11,null,null,null,null,null,null,null,12]
["(Operating Strategies หรือ Strategic Initiatives)","(ระบุกิจกรรมหลักพร้อมปริมาณหรือเป้าหมาย)",null,null,"หน่วยงาน","ช่วงเวลาดำเนินการ และหรือ ปริมาณงานในไตรมาส",null,null,null,null,null,null,null,"หน่วยงาน"]
[null,"(Activities / Action Steps)",null,null,"ดำเนินการ","Plan Q1 ","Action Q1 ","Plan Q2 ","Action Q2 ","Plan Q3","Action Q3 ","Plan Q4","Action Q4 ","หลัก"]
["4. แผนงานด้าน Non-Technical Loss","4.1 มาตรการ Big Patrolling and Cleansing \n for Strong Grid ด้านมิเตอร์"]
["(นโยบาย KEEN 14 ด้าน KE2 : Smart Service)","4.1.1 มิเตอร์ผู้ใช้ไฟฟ้ารายย่อย"]
[null,"4.1.1.1 การตรวจสอบและแก้ปัญหามิเตอร์ผิดปกติ ตามใบสั่งงาน U-Cube โดยพิจารณาจาก",null,null,"กฟฟ.ชั้น 1-3,กฟส.",null,null,null,null,null,null,null,null,"ผมม.กบล."]
[null,"คะแนน (NL1) โดยได้ระดับคะแนน NL1 (สะสม) มากกว่าหรือเท่ากับ 4.5"]
[null,"กฟจ.หนองบัวลำภู",4.5,"โดยได้ระดับคะแนน NL1 (สะสม) มากกว่าหรือเท่ากับ 4.5",null,4.5,null,4.5,null,4.5,null,4.5]
[null,"กฟส.ศรีบุญเรือง",4.5,null,null,4.5,null,4.5,null,4.5,null,4.5]
[null,"กฟส.นากลาง",4.5,null,null,4.5,null,4.5,null,4.5,null,4.5]
[null,"กฟจ.หนองบัวลำภู (รวมสังกัด)",4.5,null,null,4.5,null,4.5,null,4.5,null,4.5]
[null,"4.1.1.2 สำรวจและปรับปรุงอุปกรณ์ประกอบมิเตอร์ ที่มีสภาพเอียง ชำรุด เสื่อมสภาพ",null,null,"กฟฟ.ชั้น 1-3,กฟส.",null,null,null,null,null,null,null,null,"ผมม.กบล."]
[null,"หรือไม่ปลอดภัยตามมิเตอร์ชำรุด รหัส 05 ใน U-Cube"]
[null,"กฟจ.หนองบัวลำภู",1," (ติดตามการเปิด/ปิดงานจากโปรแกรม ucube)",null,1,null,1,null,1,null,1]
[null,"กฟส.ศรีบุญเรือง",1,null,null,1,null,1,null,1,null,1]
[null,"กฟส.นากลาง",1,null,null,1,null,1,null,1,null,1]
[null,"4.1.2 มิเตอร์ผู้ใช้ไฟฟ้ารายใหญ่"]
[null,"4.1.2.1 มิเตอร์ AMR ดำเนินการตรวจสอบหาสาเหตุและแก้ไขตามใบสั่งงานจากระบบ AMR",null,null,"กฟฟ.ชั้น 1-3,กฟส.",null,null,null,null,null,null,null,null,"ผมม.กบล."]
[null,"กฟจ.หนองบัวลำภู",4.5,null,null,4.5,null,4.5,null,4.5,null,4.5]
[null,"กฟส.ศรีบุญเรือง",4.5,null,null,4.5,null,4.5,null,4.5,null,4.5]
[null,"กฟส.นากลาง",4.5,null,null,4.5,null,4.5,null,4.5,null,4.5]
[null,"กฟจ.หนองบัวลำภู (รวมสังกัด)",4.5,null,null,4.5,null,4.5,null,4.5,null,4.5]
[null,"4.1.2.2 ตรวจสอบมิเตอร์ผู้ใช้ไฟฟ้ารายใหญ่ที่หน่วยการใช้ไฟฟ้าลดลงมากกว่า 25% ทุกเครื่อง",null,null,"กฟฟ.ชั้น 1-3,กฟส.",null,null,null,null,null,null,null,null,"ผมม.กบล.,กซข."]
[null,"กฟจ.หนองบัวลำภู",1,null,null,1,null,1,null,1,null,1]
[null,"กฟส.ศรีบุญเรือง",1,null,null,1,null,1,null,1,null,1]
[null,"กฟส.นากลาง",1,null,null,1,null,1,null,1,null,1]
[null,"กฟจ.หนองบัวลำภู (รวมสังกัด)",1,null,null,1,null,1,null,1,null,1]
[null,"4.2 มาตรการตรวจสอบและแก้ไขมิเตอร์ที่มีสภาพผิดปกติที่ได้รับรายงาน",null,null,"กฟฟ.ชั้น 1-3,กฟส.",null,null,null,null,null,null,null,null,"ผมม.กบล."]
[null,"จากผู้อ่านหน่วย (NL2)"]
[null,"กฟจ.หนองบัวลำภู",4.5,"โดยได้ระดับคะแนน NL2 (สะสม) มากกว่าหรือเท่ากับ 4.5",null,4.5,null,4.5,null,4.5,null,4.5]
[null,"กฟส.ศรีบุญเรือง",4.5,null,null,4.5,null,4.5,null,4.5,null,4.5]
[null,"กฟส.นากลาง",4.5,null,null,4.5,null,4.5,null,4.5,null,4.5]
[null,"กฟจ.หนองบัวลำภู (รวมสังกัด)",4.5,null,null,4.5,null,4.5,null,4.5,null,4.5]
[null,"กฟอ.บ้านไผ่",4.5,null,null,4.5,null,4.5,null,4.5,null,4.5]
[null,"กฟส.พล",4.5,null,null,4.5,null,4.5,null,4.5,null,4.5]
[null,"กฟส.มัญจาคีรี",4.5,null,null,4.5,null,4.5,null,4.5,null,4.5]
[null,"กฟส.หนองสองห้อง",4.5,null,null,4.5,null,4.5,null,4.5,null,4.5]
[null,"4.3.2 มิเตอร์แรงสูง 22/33 เควีทุกเครื่อง  (มิเตอร์ผู้ใช้ไฟ)",null,null,"กฟฟ.ชั้น 1-3",null,null,null,null,null,null,null,null,"ผมม.กบล."]
[]
[null,"กฟจ.หนองบัวลำภู (รวมสังกัด)",116,"เครื่อง",null,{"$f":"ROUNDUP(C48/4,0)","v":29},null,{"$f":"2*ROUNDUP(C48/4,0)","v":58},null,{"$f":"3*ROUNDUP(C48/4,0)","v":87},null,{"$f":"C48","v":116}]
[null,"4.3.3 มิเตอร์ประกอบซีทีแรงต่ำทุกเครื่อง (รวมมิเตอร์ผู้ใช้ไฟหม้อแปลงเฉพาะราย) (ทุกราย)",null,null,"กฟฟ.ชั้น 1-3,กฟส.",null,null,null,null,null,null,null,null,"ผมม.กบล."]
[null,"กฟจ.หนองบัวลำภู",201,"เครื่อง",null,{"$f":"ROUNDUP(C50/4,0)","v":51},null,{"$f":"2*ROUNDUP(C50/4,0)","v":102},null,{"$f":"3*ROUNDUP(C50/4,0)","v":153},null,{"$f":"C50","v":201}]
[null,"กฟส.ศรีบุญเรือง",63,"\"",null,16,null,32,null,48,null,63]
[null,"กฟส.นากลาง",69,"\"",null,18,null,36,null,54,null,69]
[null,"กฟจ.หนองบัวลำภู (รวมสังกัด)",{"$f":"SUM(C50:C52)","v":333},"\"",null,84,null,168,null,252,null,333]
[null,"กฟอ.บ้านไผ่",265,"\"",null,67,null,134,null,201,null,265]
[null,"กฟส.พล",135,"\"",null,34,null,68,null,102,null,135]
[null,"กฟส.มัญจาคีรี",74,"\"",null,19,null,38,null,57,null,74]
[null,"กฟส.หนองสองห้อง",32,"\"",null,8,null,16,null,24,null,32]
[null,"4.3.4 มิเตอร์แรงต่ำ (รายย่อย ; 33% ของจำนวนผู้ใช้ไฟทั้งหมด )",null,null,"กฟฟ.ชั้น 1-3,กฟส.",null,null,null,null,null,null,null,null,"ผมม.กบล."]
[null,"กฟจ.หนองบัวลำภู",25000,"เครื่อง",null,{"$f":"ROUNDUP(C59/4,0)","v":6250},null,{"$f":"2*ROUNDUP(C59/4,0)","v":12500},null,{"$f":"3*ROUNDUP(C59/4,0)","v":18750},null,{"$f":"C59","v":25000}]
[null,"กฟส.ศรีบุญเรือง",11000,"\"",null,2750,null,5500,null,8250,null,11000]
[null,"กฟส.นากลาง",11000,"\"",null,2750,null,5500,null,8250,null,11000]
[null,"กฟจ.หนองบัวลำภู (รวมสังกัด)",{"$f":"SUM(C59:C61)","v":47000},"\"",null,11750,null,23500,null,35250,null,47000]
[null,"กฟอ.บ้านไผ่",25000,"\"",null,6250,null,12500,null,18750,null,25000]
[null,"กฟส.พล",11000,"\"",null,2750,null,5500,null,8250,null,11000]
[null,"กฟส.มัญจาคีรี",11000,"\"",null,2750,null,5500,null,8250,null,11000]
[null,"กฟส.หนองสองห้อง",11000,"\"",null,2750,null,5500,null,8250,null,11000]
[null,"4.4 ตรวจสอบมิเตอร์ที่มีความเสี่ยงต่อการละเมิดการใช้ไฟฟ้า "]
[null,"และที่มีประวัติการละเมิดฯ ซ้ำซ้อน"]
[null,"4.4.1 ตรวจสอบมิเตอร์ที่มีความเสี่ยงต่อการละเมิด เช่น โรงโม่หิน โรงน้ำแข็ง",null,null,"กฟฟ.ชั้น 1-3,กฟส.",null,null,null,null,null,null,null,null,"ผมม.กบล."]
[null,"กฟฉ.1",100,"เครื่อง",null,25,null,50,null,75,null,100]
[null,"กฟฟ.หน้างาน รับผิดชอบ โดย ผมม.จะเป็นผู้กำหนดจำนวนและ PEA ให้แต่ละ กฟฟ."]
[null,"4.4.2 ตรวจสอบมิเตอร์ที่มีประวัติการละเมิดฯ  ",null,null,"กฟฟ.ชั้น 1-3,กฟส.",null,null,null,null,null,null,null,null,"ผมม.กบล."]
[null,"กฟฉ.1",200,"เครื่อง",null,50,null,100,null,150,null,200]
[null,"กฟฟ.หน้างาน รับผิดชอบ โดย ผมม.จะเป็นผู้กำหนดจำนวนและ PEA ให้แต่ละ กฟฟ."]
[null,"4.5 มาตรการสำรวจและตรวจสอบมิเตอร์ไฟฟ้าสาธารณะ  และไฟทางหลวง "]
[null,"กรณีติดตั้งมิเตอร์และเหมาจ่าย"]
[null,"4.5.1 สำรวจจุดติดตั้งดวงโคมเหมาจ่ายไฟสาธารณะและประเมินหน่วยการใช้ไฟฟ้า",null,null,"กฟฟ.ชั้น 1-3,กฟส.",null,null,null,null,null,null,null,null,"ผมม.กบล.,กซข."]
[null,"ให้ถูกต้องครบถ้วน"]
[null,"กฟจ.หนองบัวลำภู",1,"ดวงโคม",null,0.25,null,0.5,null,0.75,null,1]
[null,"กฟส.ศรีบุญเรือง",1,"\"",null,0.25,null,0.5,null,0.75,null,1]
[null,"กฟส.นากลาง",1,"\"",null,0.25,null,0.5,null,0.75,null,1]
[null,"กฟจ.หนองบัวลำภู (รวมสังกัด)",1,"\"",null,0.25,null,0.5,null,0.75,null,1]
[null,"กฟอ.บ้านไผ่",1,"\"",null,0.25,null,0.5,null,0.75,null,1]
[null,"กฟส.พล",1,"\"",null,0.25,null,0.5,null,0.75,null,1]
[null,"กฟส.มัญจาคีรี",1,"\"",null,0.25,null,0.5,null,0.75,null,1]
[null,"กฟส.หนองสองห้อง",1,"\"",null,0.25,null,0.5,null,0.75,null,1]
[null,"4.5.2 ตรวจสอบและบำรุงรักษามิเตอร์ไฟฟ้าสาธารณะ  และไฟทางหลวง ให้อยู่ในสภาพที่ปลอดภัย  ",null,null,"กฟฟ.ชั้น 1-3,กฟส.",null,null,null,null,null,null,null,null,"ผมม.กบล."]
[null,"พร้อมใช้และวัดค่าการใช้ไฟฟ้าได้ถูกต้อง"]
[null,"กฟจ.หนองบัวลำภู",1,"\"",null,0.25,null,0.5,null,0.75,null,1]
[null,"กฟส.ศรีบุญเรือง",1,"\"",null,0.25,null,0.5,null,0.75,null,1]
[null,"กฟส.นากลาง",1,"\"",null,0.25,null,0.5,null,0.75,null,1]
[null,"กฟจ.หนองบัวลำภู (รวมสังกัด)",1,"\"",null,0.25,null,0.5,null,0.75,null,1]
[null,"กฟอ.บ้านไผ่",1,"\"",null,0.25,null,0.5,null,0.75,null,1]
[null,"กฟส.พล",1,"\"",null,0.25,null,0.5,null,0.75,null,1]
[null,"กฟส.มัญจาคีรี",1,"\"",null,0.25,null,0.5,null,0.75,null,1]
[null,"กฟส.หนองสองห้อง",1,"\"",null,0.25,null,0.5,null,0.75,null,1]
[null,"4.6 มาตรการตรวจสอบมิเตอร์อุปกรณ์สื่อสารต่างๆ เช่น  ตู้โทรศัพท์สาธารณะ Wifi CCTV "]
[null,"และอื่น ๆ กรณีติดตั้งมิเตอร์และเหมาจ่าย"]
[null,"4.6.1 สำรวจจุดติดตั้ง ตู้โทรศัพท์สาธารณะ Wifi CCTV  และประเมินหน่วยการใช้ไฟฟ้า",null,null,"กฟฟ.ชั้น 1-3,กฟส.",null,null,null,null,null,null,null,null,"ผมม.กบล."]
[null,"ให้ถูกต้องครบถ้วน"]
[null,"กฟฉ.1",1,"จุดติดตั้ง",null,0.25,null,0.5,null,0.75,null,1]
[null,"4.6.2 ตรวจสอบและบำรุงรักษามิเตอร์อุปกรณ์สื่อสารต่างๆ ให้อยู่ในสภาพที่ปลอดภัย   ",null,null,"กฟฟ.ชั้น 1-3,กฟส.",null,null,null,null,null,null,null,null,"ผมม.กบล."]
[null,"พร้อมใช้และวัดค่าการใช้ไฟฟ้าได้ถูกต้อง"]
[null,"กฟฉ.1",1,"เครื่อง",null,0.25,null,0.5,null,0.75,null,1]
[null,"4.8 มาตรการตรวจสอบมิเตอร์ประกอบซีที. แรงต่ำ และมิเตอร์ประกอบซีที. วีที.แรงสูง",null,null,"กฟฟ.ชั้น 1-3,กฟส.",null,null,null,null,null,null,null,null,"ผมม.กบล."]
[null,"ในกรณีติดตั้งใหม่ให้ครบถ้วนทุกราย ภายใน 30 วันหลังจ่ายไฟฟ้า"]
[null,"กฟฉ.1",1,null,null,1,null,1,null,1,null,1]
[]
[null,"4.9 มาตรการสับเปลี่ยนมิเตอร์ อิเล็กทรอนิกส์"]
[null,"4.9.1 สับเปลี่ยนมิเตอร์อิเล็กทรอนิกส์ 1 เฟส",null,null,"กฟฟ.ชั้น 1-3,กฟส.",null,null,null,null,null,null,null,null,"ผมม.กบล."]
[null,"กฟจ.หนองบัวลำภู",10000,"เครื่อง",null,{"$f":"ROUNDUP(C111/4,0)","v":2500},null,{"$f":"2*ROUNDUP(C111/4,0)","v":5000},null,{"$f":"3*ROUNDUP(C111/4,0)","v":7500},null,{"$f":"C111","v":10000}]
[null,"กฟส.ศรีบุญเรือง",4000,"\"",null,1000,null,2000,null,3000,null,4000]
[null,"กฟส.นากลาง",4000,"\"",null,1000,null,2000,null,3000,null,4000]
[null,"กฟจ.หนองบัวลำภู (รวมสังกัด)",{"$f":"SUM(C111:C113)","v":18000},"\"",null,4500,null,9000,null,13500,null,18000]
[null,"กฟอ.บ้านไผ่",10000,"\"",null,2500,null,5000,null,7500,null,10000]
[null,"กฟส.พล",4000,"\"",null,1000,null,2000,null,3000,null,4000]
[null,"กฟส.มัญจาคีรี",4000,"\"",null,1000,null,2000,null,3000,null,4000]
[null,"กฟส.หนองสองห้อง",4000,"\"",null,1000,null,2000,null,3000,null,4000]
[null,"4.9.2 สับเปลี่ยนมิเตอร์อิเล็กทรอนิกส์ 3 เฟส",null,null,"กฟฟ.ชั้น 1-3,กฟส.",null,null,null,null,null,null,null,null,"ผมม.กบล."]
[null,"กฟจ.หนองบัวลำภู",1000,"เครื่อง",null,{"$f":"ROUNDUP(C120/4,0)","v":250},null,{"$f":"2*ROUNDUP(C120/4,0)","v":500},null,{"$f":"3*ROUNDUP(C120/4,0)","v":750},null,{"$f":"C120","v":1000}]
[null,"กฟส.ศรีบุญเรือง",500,"\"",null,125,null,250,null,375,null,500]
[null,"กฟส.นากลาง",500,"\"",null,125,null,250,null,375,null,500]
[null,"กฟจ.หนองบัวลำภู (รวมสังกัด)",{"$f":"SUM(C120:C122)","v":2000},"\"",null,500,null,1000,null,1500,null,2000]
[null,"กฟอ.บ้านไผ่",1000,"\"",null,250,null,500,null,750,null,1000]
[null,"กฟส.พล",500,"\"",null,125,null,250,null,375,null,500]
[null,"กฟส.มัญจาคีรี",500,"\"",null,125,null,250,null,375,null,500]
[null,"กฟส.หนองสองห้อง",500,"\"",null,125,null,250,null,375,null,500]
["5. แผนงานด้าน Technical Loss","5.3 การเปลี่ยนสายขนาดใหญ่ขึ้น 22/33 เควี  ",null,null,"กฟฟ.ชั้น 1-3,กฟส.",0.2,null,0.3,null,0.3,null,0.2,null,"ผจร.กกค."]
["(นโยบาย KEEN 14 ด้าน KE1 : Grid Excellence)"]
[null,"กฟจ.อุดรธานี",22.52842794034423,"\"",null,{"$f":"C130*$F$128","v":4.5056855880688458},null,{"$f":"C130*$H$128","v":6.7585283821032691},null,{"$f":"C130*$J$128","v":6.7585283821032691},null,{"$f":"C130*$L$128","v":4.5056855880688458}]
[null,"กฟส.บ้านผือ",0,"\"",null,0,null,0,null,0,null,0]
[null,"กฟส.หนองวัวซอ",1.3534627065429303,"\"",null,0.27069254130858605,null,0.40603881196287911,null,0.40603881196287911,null,0.27069254130858605]
[null,"กฟส.กุดจับ",0,"\"",null,0,null,0,null,0,null,0]
[null,"กฟจ.หนองบัวลำภู",0,"วงจร-กม.",null,0,null,0,null,0,null,0]
[null,"กฟส.ศรีบุญเรือง",0,"\"",null,0,null,0,null,0,null,0]
[null,"กฟส.นากลาง",0,"\"",null,0,null,0,null,0,null,0]
[null,"กฟจ.หนองบัวลำภู (รวมสังกัด)",0,"\"",null,0,null,0,null,0,null,0]
[null,"กฟอ.บ้านไผ่",0,"\"",null,0,null,0,null,0,null,0]
[null,"กฟส.พล",5.0813846607409303,"\"",null,1.0162769321481862,null,1.524415398222279,null,1.524415398222279,null,1.0162769321481862]
[null,"กฟส.มัญจาคีรี",4.84,"\"",null,0.96799999999999997,null,1.452,null,1.452,null,0.96799999999999997]
[null,"กฟส.หนองสองห้อง",0,"\"",null,0,null,0,null,0,null,0]
[null,"5.6.1.3 การตรวจสอบแก้ไขจุดต่อจุดสัมผัสใน ระบบจำหน่าย",null,null,"กฟฟ.ชั้น 1-3,กฟส.",null,null,null,null,null,null,null,null,"ผตบ.กบษ."]
[null,"กฟจ.หนองบัวลำภู",12,"ฟีดเดอร์",null,{"$f":"ROUNDUP(C143/3,)","v":4},null,{"$f":"C143-F143-J143","v":4},null,{"$f":"ROUNDDOWN(C143/3,)","v":4}]
[null,"กฟส.ศรีบุญเรือง",5,"\"",null,2,null,2,null,1]
[null,"กฟส.นากลาง",4,"\"",null,2,null,1,null,1]
[null,"กฟจ.หนองบัวลำภู (รวมสังกัด)",{"$f":"SUM(C143:C145)","v":21},"\"",null,7,null,7,null,7]
[null,"กฟอ.บ้านไผ่",8,"\"",null,3,null,3,null,2]
[null,"กฟส.พล",10,"\"",null,4,null,3,null,3]
[null,"กฟส.มัญจาคีรี",6,"\"",null,{"$f":"ROUNDUP(C149/3,)","v":2},null,2,null,{"$f":"ROUNDDOWN(C149/3,)","v":2}]
[null,"กฟส.หนองสองห้อง",2,"\"",null,1,null,1,null,0]
[null,"5.6.2 การแก้ไขคาปาซิเตอร์ 22/33 เควี ที่หลุดจากระบบให้สามารถ ใช้ได้(100%)",null,null,"กฟฟ.ชั้น 1-3,กฟส.",null,null,null,null,null,null,null,null,"ผบอ.กบษ."]
[null,"กฟจ.หนองบัวลำภู",1,null,null,1,null,1,null,1,null,1]
[null,"กฟส.ศรีบุญเรือง",1,null,null,1,null,1,null,1,null,1]
[null,"กฟส.นากลาง",1,null,null,1,null,1,null,1,null,1]
[null,"กฟจ.หนองบัวลำภู (รวมสังกัด)",1,null,null,1,null,1,null,1,null,1]
[null,"กฟอ.บ้านไผ่",1,null,null,1,null,1,null,1,null,1]
[null,"กฟส.พล",1,null,null,1,null,1,null,1,null,1]
[null,"กฟส.มัญจาคีรี",1,null,null,1,null,1,null,1,null,1]
[null,"กฟส.หนองสองห้อง",1,null,null,1,null,1,null,1,null,1]
[null,"ชำรุด...จุด  ดำเนินการได้…จุด"]
[null,"5.9 หม้อแปลงจำหน่าย"]
[null,"5.9.1 การแก้ไขหม้อแปลง Unbalance เกินกว่า 20%  (เครื่อง)",null,null,"กฟฟ.ชั้น 1-3,กฟส.",null,null,null,null,null,null,null,null,"ผมม.กบล."]
[null,"กฟจ.หนองบัวลำภู",20,"เครื่อง",null,{"$f":"ROUNDUP(C163/4,0)","v":5},null,{"$f":"2*ROUNDUP(C163/4,0)","v":10},null,{"$f":"3*ROUNDUP(C163/4,0)","v":15},null,{"$f":"C163","v":20}]
[null,"กฟส.ศรีบุญเรือง",20,null,null,5,null,10,null,15,null,20]
[null,"กฟส.นากลาง",20,null,null,5,null,10,null,15,null,20]
[null,"กฟจ.หนองบัวลำภู (รวมสังกัด)",60,null,null,15,null,30,null,45,null,60]
[null,"กฟอ.บ้านไผ่",20,null,null,5,null,10,null,15,null,20]
[null,"กฟส.พล",20,null,null,5,null,10,null,15,null,20]
[null,"กฟส.มัญจาคีรี",20,null,null,5,null,10,null,15,null,20]
[null,"กฟส.หนองสองห้อง",20,null,null,5,null,10,null,15,null,20]
[null,"5.9.2 การสับเปลี่ยนหม้อแปลงที่จ่ายโหลดไม่เหมาะสม",null,null,"กฟฟ.ชั้น 1-3,กฟส.",null,null,null,null,null,null,null,null,"ผมม.กบล./ผปร.กวว."]
[null," (จ่ายโหลดน้อยกว่า 40 %ของขนาดหม้อแปลง)"]
[null,"กฟจ.หนองบัวลำภู",10,"เครื่อง",null,{"$f":"ROUNDUP(C173/4,0)","v":3},null,{"$f":"2*ROUNDUP(C173/4,0)","v":6},null,{"$f":"3*ROUNDUP(C173/4,0)","v":9},null,{"$f":"C173","v":10}]
[null,"กฟส.ศรีบุญเรือง",10,null,null,3,null,6,null,9,null,10]
[null,"กฟส.นากลาง",10,null,null,3,null,6,null,9,null,10]
[null,"กฟจ.หนองบัวลำภู (รวมสังกัด)",30,null,null,8,null,16,null,24,null,30]
[null,"กฟอ.บ้านไผ่",10,null,null,3,null,6,null,9,null,10]
[null,"กฟส.พล",10,null,null,3,null,6,null,9,null,10]
[null,"กฟส.มัญจาคีรี",10,null,null,3,null,6,null,9,null,10]
[null,"กฟส.หนองสองห้อง",10,null,null,3,null,6,null,9,null,10]
[null,"5.9.3 การติดตั้งหม้อแปลงเสริมเพื่อเพิ่มประสิทธิภาพการจ่ายไฟ (เควีเอ)",null,null,"กฟฟ.ชั้น 1-3,กฟส.",0.15,null,0.35,null,0.35,null,0.15,null,"ผปร.กวว."]
[null,"กฟจ.หนองบัวลำภู",2000,"kVA",null,{"$f":"+C182*0.15","v":300},null,{"$f":"+C182*0.35","v":700},null,{"$f":"+C182*0.35","v":700},null,{"$f":"+C182*0.15","v":300}]
[null,"กฟส.ศรีบุญเรือง",1000,"\"",null,150,null,350,null,350,null,150]
[null,"กฟส.นากลาง",1000,"\"",null,150,null,350,null,350,null,150]
[null,"กฟจ.หนองบัวลำภู (รวมสังกัด)",4000,"\"",null,600,null,1400,null,1400,null,600]
[null,"กฟอ.บ้านไผ่",2000,"\"",null,300,null,700,null,700,null,300]
[null,"กฟส.พล",1000,"\"",null,150,null,350,null,350,null,150]
[null,"กฟส.มัญจาคีรี",1000,"\"",null,150,null,350,null,350,null,150]
[null,"กฟส.หนองสองห้อง",1000,"\"",null,150,null,350,null,350,null,150]
[null,"5.10 ระบบจำหน่ายแรงต่ำ"]
[null,"5.10.1 การเปลี่ยนสายแรงต่ำให้มีขนาดใหญ่ขึ้น",null,null,"กฟฟ.ชั้น 1-3,กฟส.",0.15,null,0.35,null,0.35,null,0.15,null,"ผปร.กวว."]
[null,"กฟจ.หนองบัวลำภู",15,"วงจร-กม.",null,{"$f":"C192*0.15","v":2.25},null,{"$f":"C192*0.35","v":5.25},null,{"$f":"C192*0.35","v":5.25},null,{"$f":"C192*0.15","v":2.25}]
[null,"กฟส.ศรีบุญเรือง",5,null,null,0.75,null,1.75,null,1.75,null,0.75]
[null,"กฟส.นากลาง",5,null,null,0.75,null,1.75,null,1.75,null,0.75]
[null,"กฟจ.หนองบัวลำภู (รวมสังกัด)",{"$f":"SUM(C192:C194)","v":25},null,null,3.75,null,8.75,null,8.75,null,3.75]
[null,"กฟอ.บ้านไผ่",15,null,null,2.25,null,5.25,null,5.25,null,2.25]
[null,"กฟส.พล",5,null,null,0.75,null,1.75,null,1.75,null,0.75]
[null,"กฟส.มัญจาคีรี",5,null,null,0.75,null,1.75,null,1.75,null,0.75]
[null,"กฟส.หนองสองห้อง",5,null,null,0.75,null,1.75,null,1.75,null,0.75]
[null,"5.10.2 การตัดจ่ายไฟใหม่แรงต่ำ (หน่วยนับจากจำนวนเครื่องหม้อแปลง)",null,null,"กฟฟ.ชั้น 1-3,กฟส.",0.15,null,0.35,null,0.35,null,0.15,null,"ผปร.กวว."]
[null,"กฟจ.หนองบัวลำภู",17,"เครื่อง",null,{"$f":"C201*0.15","v":2.5499999999999998},null,{"$f":"C201*0.35","v":5.9499999999999993},null,{"$f":"C201*0.35","v":5.9499999999999993},null,{"$f":"C201*0.15","v":2.5499999999999998}]
[null,"กฟส.ศรีบุญเรือง",8,null,null,1.2,null,2.8,null,2.8,null,1.2]
[null,"กฟส.นากลาง",8,null,null,1.2,null,2.8,null,2.8,null,1.2]
[null,"กฟจ.หนองบัวลำภู (รวมสังกัด)",{"$f":"SUM(C201:C203)","v":33},null,null,4.95,null,11.549999999999999,null,11.549999999999999,null,4.95]
[null,"กฟอ.บ้านไผ่",17,null,null,2.5499999999999998,null,5.9499999999999993,null,5.9499999999999993,null,2.5499999999999998]
[null,"กฟส.พล",8,null,null,1.2,null,2.8,null,2.8,null,1.2]
[null,"กฟส.มัญจาคีรี",8,null,null,1.2,null,2.8,null,2.8,null,1.2]
[null,"กฟส.หนองสองห้อง",8,null,null,1.2,null,2.8,null,2.8,null,1.2]
[null,"5.10.3 การปรับปรุงระบบ 1 เฟส 2 สาย เป็นระบบ 1 เฟส 3 สาย",null,null,"กฟฟ.ชั้น 1-3,กฟส.",0.15,null,0.35,null,0.35,null,0.15,null,"ผปร.กวว."]
[null,"กฟจ.หนองบัวลำภู",7,"วงจร-กม.",null,{"$f":"C210*0.15","v":1.05},null,{"$f":"C210*0.35","v":2.4499999999999997},null,{"$f":"C210*0.35","v":2.4499999999999997},null,{"$f":"C210*0.15","v":1.05}]
[null,"กฟส.ศรีบุญเรือง",5,null,null,0.75,null,1.75,null,1.75,null,0.75]
[null,"กฟส.นากลาง",5,null,null,0.75,null,1.75,null,1.75,null,0.75]
[null,"กฟจ.หนองบัวลำภู (รวมสังกัด)",{"$f":"SUM(C210:C212)","v":17},null,null,2.5499999999999998,null,5.9499999999999993,null,5.9499999999999993,null,2.5499999999999998]
[null,"กฟอ.บ้านไผ่",7,null,null,1.05,null,2.4499999999999997,null,2.4499999999999997,null,1.05]
[null,"กฟส.พล",5,null,null,0.75,null,1.75,null,1.75,null,0.75]
[null,"กฟส.มัญจาคีรี",5,null,null,0.75,null,1.75,null,1.75,null,0.75]
[null,"กฟส.หนองสองห้อง",5,null,null,0.75,null,1.75,null,1.75,null,0.75]
[null,"end",null,null,null,null,null,null,null,null,null,2,null,51]

{"sheet":"I3 OM1(GIS)","index":8,"n_rows":75,"n_cols":14,"rows_kept":75,"cut":false,"hidden":false,"merged":[[17,1,17,3],[18,1,18,3],[16,5,16,11],[17,5,17,11],[12,9,12,13],[16,1,16,3],[2,9,2,13],[4,9,4,13],[10,9,10,13],[3,9,3,13],[5,9,5,13],[6,9,6,13],[7,9,7,13],[8,9,8,13]]}
["แผนปฏิบัติการ กฟฉ.1 ประจำปี 2563",null,"ด้านกระบวนการภายใน"]
["(ฉบับทบทวนครั้งที่ 1)",null,"(Internal Process)"]
["1. วัตถุประสงค์เชิงยุทธศาสตร์",null,"2. กลยุทธ์ระดับองค์กร",null,"3. เกณฑ์วัดการดำเนินงานระดับองค์กร",null,null,null,null,"4. เป้าหมาย"]
["(Strategic Objective)",null," OM1 การเพิ่มประสิทธิภาพและความน่าเชื่อถือ",null,"   -",null,null,null,null,"   -"]
["    SO2 มุ่งสู่องค์กรที่เป็นเลิศในด้านจำหน่ายกระแสไฟฟ้า",null,"         ของระบบจำหน่าย"]
["             โดยบูรณาการทุกระบบงานด้วย Digitalization",null,"5. กลยุทธ์ระดับสายงาน",null,"6. เกณฑ์วัดการดำเนินงานระดับสายงาน",null,null,null,null,"7. เป้าหมาย"]
[null,null," OM1 การเพิ่มประสิทธิภาพและความน่าเชื่อถือ",null,"    - ร้อยละของความถูกต้องของข้อมูลหม้อแปลง",null,null,null,null," - ไม่น้อยกว่าร้อยละ………………"]
[null,null,"         ของระบบจำหน่าย",null,"      ในฐานข้อมูลระบบ GIS"]
[null,null,null,null,"    - ร้อยละของความถูกต้องของข้อมูลมิเตอร์",null,null,null,null," - ไม่น้อยกว่าร้อยละ………………"]
[null,null,null,null,"      ในฐานข้อมูลระบบ GIS"]
[null,null,null,null,"    - ร้อยละของความถูกต้องของข้อมูลอุปกรณ์ตัดตอน",null,null,null,null," - ไม่น้อยกว่าร้อยละ………………."]
[null,null,null,null,"      และอุปกรณ์ป้องกันในฐานข้อมูลระบบ GIS"]
[null,null,null,null,"    - ร้อยละความสำเร็จของการปรับปรุงคุณภาพ",null,null,null,null," - ไม่น้อยกว่าร้อยละ……………….."]
[null,null,null,null,"      เชิงข้อมูลตำแหน่งของข้อมูลมิเตอร์ในระบบ GIS "]
[null,null,null,null,"      เมื่อเทียบกับระบบจดหน่วย"]
[]
["8. แผนงาน/โครงการ/งาน","9. แผนปฏิบัติ",null,null,10,11,null,null,null,null,null,null,null,12]
["(Operating Strategies หรือ Strategic Initiatives)","(ระบุกิจกรรมหลักพร้อมปริมาณหรือเป้าหมาย)",null,null,"หน่วยงาน","ช่วงเวลาดำเนินการ และหรือ ปริมาณงานในไตรมาส",null,null,null,null,null,null,null,"หน่วยงาน"]
[null,"(Activities / Action Steps)",null,null,"ดำเนินการ","Plan Q1 ","Action Q1 ","Plan Q2 ","Action Q2 ","Plan Q3","Action Q3 ","Plan Q4","Action Q4 ","หลัก"]
["6. แผนการปรับปรุงข้อมูลในระบบ GIS ","6.1 การปรับปรุงข้อมูลงานก่อสร้างระบบจำหน่ายไฟฟ้าก่อนปี 2562  (เป้าหมายจำนวนงาน ",null,null,"กฟฟ.ชั้น 1-3,กฟส.",null,null,null,null,null,null,null,null,"ผผร.กวว."]
["(นโยบาย KEEN 14 ด้าน EB3 : Behind Meter,","ธ.ค.2561 สถานะ F4) ตรงกันใน 2 ระบบ (GIS เฟส 2 กับ SAP (PS)) ทุกงบ ทุกโครงการ "]
[" EI2 : Digital revolution และ EI3 : Smart Utilization)","ข้อมูลของ GIS เฟส 2 เมื่อเปรียบเทียบกับSAP (PS)"]
[null,"กฟจ.หนองบัวลำภู",1,null,null,0.8,null,1]
[null,"กฟส.ศรีบุญเรือง",1,null,null,0.8,null,1]
[null,"กฟส.นากลาง",1,null,null,0.8,null,1]
[null,"กฟจ.หนองบัวลำภู (รวมสังกัด)",1,null,null,0.8,null,1]
[null,"กฟอ.บ้านไผ่",1,null,null,0.8,null,1]
[null,"กฟส.พล",1,null,null,0.8,null,1]
[null,"กฟส.มัญจาคีรี",1,null,null,0.8,null,1]
[null,"กฟส.หนองสองห้อง",1,null,null,0.8,null,1]
[null,"6.2 การปรับปรุงข้อมูลงานก่อสร้างระบบจำหน่ายไฟฟ้าปี 2562  (เป้าหมายจำนวนงาน ",null,null,"กฟฟ.ชั้น 1-3,กฟส.",null,null,null,null,null,null,null,null,"ผผร.กวว."]
[null,"ธ.ค. 2562 สถานะ F4) ตรงกันใน 2 ระบบ (GIS เฟส 2 กับ SAP (PS)) ทุกงบ ทุกโครงการ "]
[null,"ข้อมูลของ GIS เฟส 2 เมื่อเปรียบเทียบกับSAP (PS)  "]
[null,"กฟจ.หนองบัวลำภู",0.8,null,null,0.6,null,0.8,null,1]
[null,"กฟส.ศรีบุญเรือง",0.8,null,null,0.6,null,0.8,null,1]
[null,"กฟส.นากลาง",0.8,null,null,0.6,null,0.8,null,1]
[null,"กฟจ.หนองบัวลำภู (รวมสังกัด)",0.8,null,null,0.6,null,0.8,null,1]
[null,"กฟอ.บ้านไผ่",0.8,null,null,0.6,null,0.8,null,1]
[null,"กฟส.พล",0.8,null,null,0.6,null,0.8,null,1]
[null,"กฟส.มัญจาคีรี",0.8,null,null,0.6,null,0.8,null,1]
[null,"กฟส.หนองสองห้อง",0.8,null,null,0.6,null,0.8,null,1]
[]
[null,"6.3 การปรับปรุงข้อมูลงานก่อสร้างระบบจำหน่ายไฟฟ้าปี 2563  (เป้าหมายจำนวนงาน ",null,null,"กฟฟ.ชั้น 1-3,กฟส.",null,null,null,null,null,null,null,null,"ผผร.กวว."]
[null,"ทุกสิ้นไตรมาส สถานะ F4) ตรงกันใน 2 ระบบ (GIS เฟส 2 กับ SAP (PS)) ทุกงบ ทุกโครงการ "]
[null,"ข้อมูลของ GIS เฟส 2 เมื่อเปรียบเทียบกับSAP (PS)  "]
[null,"กฟจ.หนองบัวลำภู",0.6,null,null,0.6,null,0.6,null,0.6,null,0.6]
[null,"กฟส.ศรีบุญเรือง",0.6,null,null,0.6,null,0.6,null,0.6,null,0.6]
[null,"กฟส.นากลาง",0.6,null,null,0.6,null,0.6,null,0.6,null,0.6]
[null,"กฟจ.หนองบัวลำภู (รวมสังกัด)",0.6,null,null,0.6,null,0.6,null,0.6,null,0.6]
[null,"กฟอ.บ้านไผ่",0.6,null,null,0.6,null,0.6,null,0.6,null,0.6]
[null,"กฟส.พล",0.6,null,null,0.6,null,0.6,null,0.6,null,0.6]
[null,"กฟส.มัญจาคีรี",0.6,null,null,0.6,null,0.6,null,0.6,null,0.6]
[null,"กฟส.หนองสองห้อง",0.6,null,null,0.6,null,0.6,null,0.6,null,0.6]
[null,"6.4 ปรับปรุงพิกัดมิเตอร์ในระบบ GIS ให้ตรงกันกับข้อมูลพิกัดมิเตอร์จากระบบจดหน่วยที่มี",null,null,"กฟฟ.ชั้น 1-3",null,null,null,null,null,null,null,null,"ผผร.กวว."]
[null,"พิกัดมีค่าคาดเคลื่อนไม่เกิน 10 เมตรต่อเนื่อง 4 เดือน (เป้าหมายจากรายงานเทียบพิกัด"]
[null,"จดหน่วยตำแหน่งเดียวกัน) ทุก กฟฟ.ชั้น 1-3  (ไตรมาส 1 รายงาน 80% ของเป้าหมาย)"]
[null,"กฟจ.หนองบัวลำภู (รวมสังกัด)",0.9,null,null,0.8,null,0.9,null,1]
[null,"6.6 สำรวจและปรับปรุงข้อมูลเฟสมิเตอร์ในระบบ GIS 30% ของจำนวนหม้อแปลง กฟภ.",null,null,"กฟฟ.ชั้น 1-3,กฟส.",null,null,null,null,null,null,null,null,"ผผร.กวว."]
[null,"ในพื้นที่ รายงานไตรมาสละ 25% ของเป้าหมาย"]
[null,"กฟจ.อุดรธานี",350,"\"",null,88,null,88,null,88,null,86]
[null,"กฟส.บ้านผือ",220,"\"",null,55,null,55,null,55,null,55]
[null,"กฟส.หนองวัวซอ",80,"\"",null,20,null,20,null,20,null,20]
[null,"กฟส.กุดจับ",80,"\"",null,20,null,20,null,20,null,20]
[null,"กฟจ.หนองบัวลำภู",290,"เครื่อง (หม้อแปลง)",null,73,null,73,null,73,null,71]
[null,"กฟส.ศรีบุญเรือง",130,"\"",null,33,null,33,null,33,null,31]
[null,"กฟส.นากลาง",130,"\"",null,33,null,33,null,33,null,31]
[null,"กฟจ.หนองบัวลำภู (รวมสังกัด)",{"$f":"SUM(C64:C66)","v":550},"\"",null,{"$f":"SUM(F64:F66)","v":139},null,{"$f":"SUM(H64:H66)","v":139},null,{"$f":"SUM(J64:J66)","v":139},null,{"$f":"SUM(L64:L66)","v":133}]
[null,"กฟอ.บ้านไผ่",325,"\"",null,81,null,81,null,81,null,82]
[null,"กฟส.พล",150,"\"",null,38,null,38,null,38,null,36]
[null,"กฟส.มัญจาคีรี",100,"\"",null,25,null,25,null,25,null,25]
[null,"กฟส.หนองสองห้อง",100,"\"",null,25,null,25,null,25,null,25]
[null,"end",null,null,null,null,null,null,null,null,null,1,null,6]
[]
[]
[null,null,null,null,null,null,null,null,null,{"$f":"255*2","v":510}]

{"sheet":"I4 OM4(SLA)","index":9,"n_rows":26,"n_cols":14,"rows_kept":26,"cut":false,"hidden":false,"merged":[[16,1,16,3],[17,1,17,3],[14,1,14,3],[14,5,14,11],[15,5,15,11],[15,1,15,3],[10,9,10,13],[2,9,2,13],[3,9,3,13],[4,9,4,13],[6,9,6,13],[9,9,9,13]]}
["แผนปฏิบัติการ กฟฉ.1 ประจำปี 2563",null,"ด้านกระบวนการภายใน"]
["(ฉบับทบทวนครั้งที่ 1)",null,"(Internal Process)"]
["1. วัตถุประสงค์เชิงยุทธศาสตร์",null,"2. กลยุทธ์ระดับองค์กร",null,"3. เกณฑ์วัดการดำเนินงานระดับองค์กร",null,null,null,null,"4. เป้าหมาย"]
["(Strategic Objective)",null,"OM4 ปรับปรุงกระบวนการดำเนินงานให้มีประสิทธิภาพ ",null,"  - ความสำเร็จของการดำเนินการตาม Service ",null,null,null,null," -ไม่น้อยกว่าระดับ 5"]
["    SO2 มุ่งสู่องค์กรที่เป็นเลิศในด้านจำหน่ายกระแสไฟฟ้า",null,"โดยให้ครอบคลุมทั้งห่วงโซ่อุปทาน",null," level Agreement ที่ระบุในห่วงโซ่อุปทาน "]
["             โดยบูรณาการทุกระบบงานด้วย Digitalization",null,null,null,"โดยบูรณาการระดับหน่วยงาน"]
[null,null,null,null,"  - ความสำเร็จของการปรับปรุงกระบวนการทำงาน",null,null,null,null," -ไม่น้อยกว่าระดับ 5"]
[null,null,null,null,"ขององค์กร (Digital Operational Excellence)"]
[null,null,null,null,"ด้วยการสนับสนุนของเทคโนโลยีดิจิทัล"]
[null,null,"5. กลยุทธ์ระดับสายงาน",null,"6. เกณฑ์วัดการดำเนินงานระดับสายงาน",null,null,null,null,"7. เป้าหมาย"]
[null,null,"OM4 ปรับปรุงกระบวนการดำเนินงานให้มีประสิทธิภาพ ",null,"  - ความสำเร็จของการดำเนินการตาม Service ",null,null,null,null," -ไม่น้อยกว่าระดับ 5"]
[null,null,"โดยให้ครอบคลุมทั้งห่วงโซ่อุปทาน",null," Level Agreement ที่ระบุในห่วงโซ่อุปทาน "]
[null,null,null,null,"โดยบูรณาการระดับหน่วยงานµ"]
[]
["8. แผนงาน/โครงการ/งาน","9. แผนปฏิบัติ",null,null,10,11,null,null,null,null,null,null,null,12]
["(Operating Strategies หรือ Strategic Initiatives)","(ระบุกิจกรรมหลักพร้อมปริมาณหรือเป้าหมาย)",null,null,"หน่วยงาน","ช่วงเวลาดำเนินการ และหรือ ปริมาณงานในไตรมาส",null,null,null,null,null,null,null,"หน่วยงาน"]
[null,"(Activities / Action Steps)",null,null,"ดำเนินการ","Plan Q1 ","Action Q1 ","Plan Q2 ","Action Q2 ","Plan Q3","Action Q3 ","Plan Q4","Action Q4 ","หลัก"]
["7. แผนงานดำเนินงานตามระบบประกันคุณภาพ","7.1 รายงานผลการดำเนินงานการจัดทำข้อตกลงระดับการให้บริการ (SLA)",null,null,"กฟฟ.ชั้น 1-3,กฟส.",null,null,null,null,null,null,null,null,"(ผผธ.,ผบธ.)กบล."]
["งานตามข้อตกลงระดับการให้บริการ (SLA) "," กระบวนการ P1-P11 ของ กฟฟ.ชั้น 1-3 และ กฟส."]
["(นโยบาย KEEN 14 ด้าน KE3: Smart  Operation)","กฟฉ.1"]
[null,"กบล.ฉ.1 สรุปข้อมูลจาก http://om.pea.co.th/ รายงาน กบว.(ภ2) ภายใน 10 วันหลังสิ้นไตรมาส"]
[]
[null,"end",null,null,null,null,null,null,null,null,null,1,null,1]
[]
[]
[null,null,null," "]

{"sheet":"I5 IP1(นวัตกรรม)","index":10,"n_rows":38,"n_cols":10,"rows_kept":38,"cut":false,"hidden":false,"merged":[[11,1,11,3],[12,1,12,3],[2,7,2,9],[3,7,3,9],[4,7,4,9],[10,1,10,3],[10,5,10,8],[11,5,11,8]]}
["แผนปฏิบัติการ กฟฉ.1 ประจำปี 2563",null,"ด้านกระบวนการภายใน"]
["(ฉบับทบทวนครั้งที่ 1)",null,"(Internal Process)"]
["1. วัตถุประสงค์เชิงยุทธศาสตร์",null,"2. กลยุทธ์ระดับองค์กร",null,"3. เกณฑ์วัดการดำเนินงานระดับองค์กร",null,null,"4. เป้าหมาย"]
["(Strategic Objective)",null,"IP 1  พัฒนาโครงสร้างและกระบวนการด้านนวัตกรรม",null,"- ความสำเร็จการดำเนินงานตามแผนงาน",null,null,"- ไม่น้อยกว่าระดับ  5"]
["SO5 ขับเคลื่อนองค์กรให้ทันสมัยด้วยทุนมนุษย์\n",null,null,null,"การพัฒนาระบบการจัดการนวัตกรรมองค์กร"]
[" เทคโนโลยีดิจิทัล และนวัตกรรม",null,null,null,"( Corporate Innovation System)"]
[null,null,"5. กลยุทธ์ระดับสายงาน",null,"6. เกณฑ์วัดการดำเนินงานระดับสายงาน",null,null,"7. เป้าหมาย"]
[null,null,"IP 1  พัฒนาโครงสร้างและกระบวนการด้านนวัตกรรม",null,"- ความสำเร็จการดำเนินงานตามแผนงาน",null,null,"- ไม่น้อยกว่าระดับ…………"]
[null,null,null,null,"การพัฒนาระบบการจัดการนวัตกรรมองค์กร"]
[null,null,null,null,"( Corporate Innovation System)"]
["8. แผนงาน/โครงการ/งาน","9. แผนปฏิบัติ",null,null,10,11,null,null,null,12]
["(Operating Strategies หรือ Strategic Initiatives)","(ระบุกิจกรรมหลักพร้อมปริมาณหรือเป้าหมาย)",null,null,"หน่วยงาน","ช่วงเวลาดำเนินการ และหรือ ปริมาณงานในไตรมาส",null,null,null,"หน่วยงาน"]
[null,"(Activities / Action Steps)",null,null,"ดำเนินการ",1,2,3,4,"หลัก"]
["8. แผนงานส่งเสริมและผลักดันงานวิจัยไปใช้ประโยชน์ ","8.1 ให้รายงานตามแผนงานส่งเสริมและผลักดันงานวิจัยไปใช้ประโยชน์",null,null,"ผพอ.กอก.",null,null,null,null,"ผพอ.กอก."]
["(นโยบาย KEEN 14 ด้าน NH1 : Smart Workforce","ตามแผนงานของ กวน."]
[" และ EI1 : Innovative Process)","กฟฉ.1","รายงานไตรมาสละ 1 ครั้ง",null,null,"1 ครั้ง","1 ครั้ง","1 ครั้ง","1 ครั้ง"]
[null,"รายงานภายใน 20 วันหลังวันสิ้นไตรมาส"]
[]
[]
[null,"8.2 ขยายผลนวัตกรรมใช้งานภายใน กฟข. อย่างน้อย 2 ชิ้นงาน",null,null,"ผพอ.กอก.",null,null,null,null,"ผพอ.กอก."]
[null,"กฟฉ.1",2,"ชิ้นงาน",null,null,null,null,"2 ชิ้นงาน"]
[]
[]
[null,"8.3 ขยายผลนวัตกรรมใช้งานภายในภาค อย่างน้อย 1 ชิ้นงาน",null,null,"ฝวธ.(ภ2)",null,null,null,null,"คณะทำงานฯ ภ2"]
[null,"ภาค 2",1,"ชิ้นงาน",null,null,null,null,"1 ชิ้นงาน"]
[]
[]
[null,"8.4 จัดอบรมเพื่อพัฒนาศักยภาพของนักประดิษฐ์ แบ่งเป็น 2 ด้าน ได้แก่ ",null,null,"ฝวธ.(ภ2)",null,null,null,null,"กบว.(ภ2)"]
[null,"สิ่งประดิษฐ์ 1 ครั้ง และ ดิจิทัล 1 ครั้ง ฝวธ.(ภ2) ดำเนินการภายในเดือน พ.ย. 2563"]
[null,"ภาค 2",2,"ครั้ง",null,null,null,null,"2 ครั้ง"]
[]
[]
[null,"8.5 จัดประชุมทบทวนนวัตกรรมและดิจิทัลของสายงานการไฟฟ้าภาค 2",null,null,"คณะทำงานฯ ภ2",null,null,null,null,"คณะทำงานฯ ภ2"]
[null,"ไตรมาสละ 1 ครั้ง"]
[null,"ภาค 2",3,"ครั้ง",null,"1 ครั้ง","1 ครั้ง","1 ครั้ง"]
[]
[]
[null,"end",null,null,null,null,null,null,1,5]

{"sheet":"I6 RS1 (พลังงาน)","index":11,"n_rows":33,"n_cols":10,"rows_kept":33,"cut":false,"hidden":false,"merged":[[17,1,17,3],[15,1,15,3],[16,1,16,3],[15,5,15,8],[16,5,16,8]]}
["แผนปฏิบัติการ กฟฉ.1 ประจำปี 2563",null,"ด้านกระบวนการภายใน"]
["(ฉบับทบทวนครั้งที่ 1)",null,"(Internal Process)"]
["1. วัตถุประสงค์เชิงยุทธศาสตร์",null,"2. กลยุทธ์ระดับองค์กร",null,"3. เกณฑ์วัดการดำเนินงานระดับองค์กร",null,null,null,"4. เป้าหมาย"]
["(Strategic Objective)",null,"RS1  สนับสนุนการใช้พลังงานอย่างมีประสิทธิภาพ",null," - มาตรการส่งเสริมการเพิ่มประสิทธิภาพ",null,null,null," - ไม่น้อยกว่าระดับ 5"]
["    SO1 ดำเนินธุรกิจตามหลักธรรมาภิบาลเพื่อการเติบโตอย่างยั่งยืน",null,null,null,"การใช้พลังงานสำหรับผู้ผลิตและจำหน่าย"]
[null,null,null,null,"พลังงาน (Energy Efficiency Resources"]
[null,null,null,null,"Standards : EERS)"]
[null,null,null,null," - จำนวนหน่วย (kWh) ที่ประหยัดพลังงานไฟฟ้าได้สะสม",null,null,null," - ไม่น้อยกว่า 80 ล้าน kWh"]
[null,null,"5. กลยุทธ์ระดับสายงาน",null,"6. เกณฑ์วัดการดำเนินงานระดับสายงาน",null,null,null,"7. เป้าหมาย"]
[null,null,"RS1  สนับสนุนการใช้พลังงานอย่างมีประสิทธิภาพ",null," - มาตรการส่งเสริมการเพิ่มประสิทธิภาพ",null,null,null," - ไม่น้อยกว่าระดับ………"]
[null,null,null,null,"การใช้พลังงานสำหรับผู้ผลิตและจำหน่าย"]
[null,null,null,null,"พลังงาน (Energy Efficiency Resources"]
[null,null,null,null,"Standards : EERS)"]
[null,null,null,null," -จำนวนหน่วย (kWh) ที่ประหยัดพลังงาน",null,null,null," - ไม่น้อยกว่า………... kWh"]
[null,null,null,null,"ไฟฟ้าได้เหมาะสม"]
["8. แผนงาน/โครงการ/งาน","9. แผนปฏิบัติ",null,null,10,11,null,null,null,12]
["(Operating Strategies หรือ Strategic Initiatives)","(ระบุกิจกรรมหลักพร้อมปริมาณหรือเป้าหมาย)",null,null,"หน่วยงาน","ช่วงเวลาดำเนินการ และหรือ ปริมาณงานในไตรมาส",null,null,null,"หน่วยงาน"]
[null,"(Activities / Action Steps)",null,null,"ดำเนินการ",1,2,3,4,"หลัก"]
["9. สนับสนุนการใช้พลังงานอย่างมีประสิทธิภาพ","9.1 ดำเนินโครงการนำร่องมาตรการบังคับใช้เกณฑ์มาตรฐานอนุรักษ์พลังงานสำหรับ",null,null,"ผสอ.กวว.",null,null,null,null,"ผสอ.กวว."]
["(นโยบาย KEEN 14 ด้าน EB3 : Behind Meter)","ผู้ผลิตและจำหน่ายพลังงาน (Energy Efficiency Resource Standdards : EERS)"]
[null,"ระดับคะแนน ","กิจกรรมที่ต้องดำเนินการ ปี 2563"]
[null,1," - จัดสัมมนารับฟังความคิดเห็นโครงการนำร่องแก่ผู้รับบริการไฟฟ้า"]
[null,2," - กำหนดแผนปฏิบัติการ และเป้าหมายผลประหยัดพลังงาน ในการดำเนินโครงการ"]
[null,null,"  นำร่องเพื่อส่งเสริมให้เกิดการใช้พลังงานอย่างมีประสิทธิภาพตามเกณฑ์ EERS"]
[null,3," - ดำเนินการครบถ้วนตามกิจกรรมที่ได้กำหนดไว้ในแผนงานโครงการนำร่อง"]
[null,4," - ประหยัดพลังงานได้ไม่น้อยกว่า (กฟฉ.1 = 300,000 หน่วย, กฟฉ.2 = 250,000 หน่วย, กฟฉ.3 = 300,000 หน่วย)"]
[null,5," - ประหยัดพลังงานได้ไม่น้อยกว่า (กฟฉ.1 = 600,000 หน่วย, กฟฉ.2 = 500,000 หน่วย, กฟฉ.3 = 600,000 หน่วย)"]
[null,"กฟฉ.1","คะแนนระดับ 5",null,null,"1 ครั้ง","1 ครั้ง","1 ครั้ง","1 ครั้ง"]
[null,"สรุปรายงานผลการดำเนินงานทุกวันที่ 15 หลังสิ้นไตรมาส"]
[null,null,null," "]
[]
[null,"end",null,null,null,null,null,null,1,1]
[null,null,null,null,null,null,null,null,{"$f":"I32+'I5 IP1(นวัตกรรม)'!I38+'I4 OM4(SLA)'!L23+'I3 OM1(GIS)'!L72+'I2 OM1(LOSS)'!L218+'I1 OM1(SAIFISAIDI)'!L90","v":9},{"$f":"J32+'I5 IP1(นวัตกรรม)'!J38+'I4 OM4(SLA)'!N23+'I3 OM1(GIS)'!N72+'I2 OM1(LOSS)'!N218+'I1 OM1(SAIFISAIDI)'!N90","v":81}]

{"sheet":"L1 (DT1)","index":12,"n_rows":38,"n_cols":10,"rows_kept":38,"cut":false,"hidden":false,"merged":[[2,7,2,9],[3,7,3,9],[15,1,15,3],[16,1,16,3],[10,7,10,9],[11,7,11,9],[13,7,13,9],[14,1,14,3],[14,5,14,8],[15,5,15,8]]}
["แผนปฏิบัติการ กฟฉ.1 ประจำปี 2563",null,"ด้านการเรียนรู้และพัฒนา"]
["(ฉบับทบทวนครั้งที่ 1)",null,"(Learning and Growth)"]
["1. วัตถุประสงค์เชิงยุทธศาสตร์",null,"2. กลยุทธ์ระดับองค์กร",null,"3. เกณฑ์วัดการดำเนินงานระดับองค์กร",null,null,"4. เป้าหมาย"]
["(Strategic Objective)",null,"DT 1 พัฒนาขีดความสามารถด้านเทคโนโลยีดิจิทัล ",null," - ความสำเร็จของแผนปฏิบัติการดิจิทัลของ กฟภ.",null,null," - ไม่น้อยกว่าร้อยละ 100"]
["SO5 ขับเคลื่อนองค์กรให้ทันสมัยด้วยทุนมนุษย์",null,"เพื่อสะท้อนถึงประสิทธิภาพของการบริหารค่าใช้จ่าย",null," - ความสำเร็จการดำเนินงานตามแผนงาน",null,null," - ไม่น้อยกว่าร้อยละ 100"]
["        เทคโนโลยีดิจิทัล และนวัตกรรม",null,"และประสิทธิภาพของกระบวนการดำเนินงาน",null,"การยกระดับการกำกับดูแลข้อมูลฯ"]
[null,null,null,null," -ความสาเร็จในการพัฒนามาตรฐานการกากับดูแลที่ดี",null,null," - ไม่น้อยกว่าร้อยละ 100"]
[null,null,null,null,"และบริหารจัดการด้านเทคโนโลยีสารสนเทศ"]
[null,null,null,null," - ความสาเร็จการดาเนินงานตามแผนงาน ",null,null," - ไม่น้อยกว่าร้อยละ 100"]
[null,null,null,null,"EA Governance & Development"]
[null,null,"5. กลยุทธ์ระดับสายงาน",null,"6. เกณฑ์วัดการดำเนินงานระดับสายงาน",null,null,"7. เป้าหมาย"]
[null,null,"DT 1 พัฒนาขีดความสามารถด้านเทคโนโลยีดิจิทัล ",null," - ความสำเร็จการดำเนินงานตามแผนงาน",null,null," - ไม่น้อยกว่าร้อยละ 100"]
[null,null,"เพื่อสะท้อนถึงประสิทธิภาพของการบริหารค่าใช้จ่าย",null,"การยกระดับการกำกับดูแลข้อมูลฯ"]
[null,null,"และประสิทธิภาพของกระบวนการดำเนินงาน"]
["8. แผนงาน/โครงการ/งาน","9. แผนปฏิบัติ",null,null,10,11,null,null,null,12]
["(Operating Strategies หรือ Strategic Initiatives)","(ระบุกิจกรรมหลักพร้อมปริมาณหรือเป้าหมาย)",null,null,"หน่วยงาน","ช่วงเวลาดำเนินการ และหรือ ปริมาณงานในไตรมาส",null,null,null,"หน่วยงาน"]
[null,"(Activities / Action Steps)",null,null,"ดำเนินการ",1,2,3,4,"หลัก"]
["1. แผนงานการขับเคลื่อนองค์กรเป็น Digital Utility ","1.1 จัดอบรมผู้บริหารของสายงานการไฟฟ้า ภาค 2 เพื่อเตรียมความพร้อม",null,null,"คณะทำงานฯ ภ2",null,null,null,null,"คณะทำงานฯ ภ2"]
[" แผนการดำเนินงานด้าน Digital Utility ","สู่การเป็น PEA Digital Utility"]
[null,"ภาค 2",1,"ครั้ง",null,null,"1 ครั้ง"]
[null,"คณะทำงานด้านนวัตกรรมและดิจิทัล  จัดอบรมภายในไตรมาส 2/2563  "]
[null,null,null,"             "]
[null,"1.2 จัดอบรม ผจก.กฟย. เพื่อเตรียมความพร้อมสู่การเป็น PEA Digital Utility",null,null,"คณะทำงานฯ ภ2",null,null,null,null,"คณะทำงานฯ ภ2"]
[null,"ภาค 2",1,"ครั้ง",null,null,"1 ครั้ง"]
[null,"คณะทำงานด้านนวัตกรรมและดิจิทัล  จัดอบรมภายในไตรมาส 2/2563  "]
[]
[null,"1.3 จัดอบรมพนักงานในสายงานฯ ภาค 2 ตั้งแต่ หผ.ขึ้นไป หรือ The Trainner ",null,null,"คณะทำงานฯ ภ2",null,null,null,null,"คณะทำงานฯ ภ2"]
[null,"(ตัวแทนของ กฟฟ.) เพื่อเตรียมความพร้อมสู่การเป็น PEA Digital Utility"]
[null,"ภาค 2",1,"ครั้ง",null,null,"1 ครั้ง"]
[null,"คณะทำงานด้านนวัตกรรมและดิจิทัล  จัดอบรมภายในไตรมาส 2/2563  "]
[]
[null,"1.4 จัดอบรมให้ความรู้เกี่ยวกับ Big Data และ Data Analytics",null,null,"คณะทำงานฯ ภ2",null,null,null,null,"คณะทำงานฯ ภ2"]
[null,"ผู้เข้ารับการอบรม จำนวน 26 คน ได้แก่ ผู้บริหาร ฝวธ.(ภ2) จำนวน 2 คน, ผู้บริหารของ กฟฉ.1-2-3",null,null,null,null,"1 ครั้ง"]
[null,"เขตละ 2 คน, ตัวแทน กฟฉ.1-2-3 เขตละ 5 คน และตัวแทน ฝวธ.(ภ2) จำนวน 3 คน "]
[null,"ภาค 2",1,"ครั้ง",null,"1 ครั้ง"]
[]
[]
[null,"end"]

{"sheet":"L2 OC1(สู่ความยั่งยืน)","index":13,"n_rows":38,"n_cols":10,"rows_kept":38,"cut":false,"hidden":false,"merged":[[2,7,2,9],[3,4,3,6],[3,7,3,9],[11,7,11,9],[12,4,12,6],[12,7,12,9],[21,1,21,3],[22,1,22,3],[20,1,20,3],[20,5,20,8],[21,5,21,8]]}
["แผนปฏิบัติการ กฟฉ.1 ประจำปี 2563",null,"ด้านการเรียนรู้และพัฒนา"]
["(ฉบับทบทวนครั้งที่ 1)",null,"(Learning and Growth)"]
["1. วัตถุประสงค์เชิงยุทธศาสตร์",null,"2. กลยุทธ์ระดับองค์กร",null,"3. เกณฑ์วัดการดำเนินงานระดับองค์กร",null,null,"4. เป้าหมาย"]
["(Strategic Objective)",null,"OC 1 วิเคราะห์ GAP และแนวทางการผักดันองค์กรสู่ความยั่งยืน",null,"- คะแนนประเมิน ITA",null,null,"-  ไม่น้อยกว่า  80-100  คะแนน "]
["SO1 ดำเนินธุรกิจหลักธรรมาภิบาลเพื่อการเติบโตอย่างยั่งยืน",null,null,null," - ความสำเร็จเพื่อยกระดับการดำเนินงาน",null,null," - ไม่น้อยกว่าร้อยละ 100"]
[null,null,null,null,"ให้ได้ตามมาตรฐาน OECD, DJSI และเกณฑ์"]
[null,null,null,null,"การกำกับดูแลของ สคร."]
[null,null,null,null," - ความสำเร็จในการดำเนินงานเพื่อยกระดับ",null,null," - ไม่น้อยกว่าร้อยละ 100"]
[null,null,null,null,"สู่ความยั่งยืน "]
[null,null,null,null," - ความสำเร็จในการยกระดับโครงการ",null,null," - ไม่น้อยกว่าร้อยละ 100"]
[null,null,null,null,"ด้านสังคมและสิ่งแวดล้อม "]
[null,null,"5. กลยุทธ์ระดับสายงาน",null,"6. เกณฑ์วัดการดำเนินงานระดับสายงาน",null,null,"7. เป้าหมาย"]
[null,null,"OC 1 วิเคราะห์ GAP และแนวทางการผักดันองค์กรสู่ความยั่งยืน",null,"- คะแนนประเมิน ITAµ",null,null,"-  ไม่น้อยกว่า  80-100  คะแนน "]
[null,null,null,null," - ความสำเร็จเพื่อยกระดับการดำเนินงาน",null,null," - ไม่น้อยกว่าร้อยละ 100"]
[null,null,null,null,"ให้ได้ตามมาตรฐาน OECD, DJSI และเกณฑ์"]
[null,null,null,null,"การกำกับดูแลของ สคร.µ"]
[null,null,null,null," - ความสำเร็จในการดำเนินงานเพื่อยกระดับ",null,null," - ไม่น้อยกว่าร้อยละ 100"]
[null,null,null,null,"สู่ความยั่งยืน µ"]
[null,null,null,null," - ความสำเร็จในการยกระดับโครงการ",null,null," - ไม่น้อยกว่าร้อยละ 100"]
[null,null,null,null,"ด้านสังคมและสิ่งแวดล้อม µ"]
["8. แผนงาน/โครงการ/งาน","9. แผนปฏิบัติ",null,null,10,11,null,null,null,12]
["(Operating Strategies หรือ Strategic Initiatives)","(ระบุกิจกรรมหลักพร้อมปริมาณหรือเป้าหมาย)",null,null,"หน่วยงาน","ช่วงเวลาดำเนินการ และหรือ ปริมาณงานในไตรมาส",null,null,null,"หน่วยงาน"]
[null,"(Activities / Action Steps)",null,null,"ดำเนินการ",1,2,3,4,"หลัก"]
["2. แผนงานเสริมสร้างการกำกับดูแลกิจการที่ดี วัฒนธรรมและ","2.1 กอก.กฟข. จัดการบรรยายหรือกิจกรรมที่สอดแทรกเนื้อหาด้านการกำกับ",null,null,"ผพอ.กอก.",null,null,null,null,"ผพอ.กอก."]
["ค่านิยมสุจริต คุณธรรม จริยธรรม ความโปร่งใส และการ","ดูแลกิจการที่ดี คุณธรรม จริยธรรม และความโปร่งใส ให้พนักงาน กฟข,กฟฟ."]
["ต่อต้านการทุจริตในการปฏิบัติงาน (Soft Control)","ในสังกัด "]
["(นโยบาย KEEN 14 ด้าน KE4 : Good Governance)","กฟฉ.1",null,"คน(จำนวนผู้เข้ารอค่าเป้าหมายจากองค์กร)",null,"1 ครั้ง"]
[]
[]
["3. แผนงานยกระดับความผูกพันของบุคคลากร กฟภ.","3.1 ดำเนินการตามแผนงานยกระดับความผูกพันของบุคลากร กฟภ. ",null,null,"ผบก.กอก.",null,null,null,null,"ผบก.กอก."]
["(นโยบาย KEEN 14 ด้าน NH2 : Smart Workplace)","กฟฉ.1",1,null,null,null,null,null,1]
[null,"ดำเนินการตามแผนงานยกระดับความผูกพันของบุคลากร กฟภ. ทุกไตรมาส หลังจากได้รับอนุมัติจาก รผก.(ภ2)"]
[]
[]
[null,"3.2 ติดตามรายงานผลความก้าวหน้าตามแผนงานข้อ 3.1 ส่งให้ ฝวธ.(ภ2) ตามกำหนด ",null,null,"ผบก.กอก.",null,null,null,null,"ผบก.กอก."]
[null,"กฟฉ.1","     ",null,null,null,"1 ครั้ง",null,"1 ครั้ง"]
[]
[null,"end",null,null,null,null,null,null,2,3]

{"sheet":"L3 OC1 (ความปลอดภัย)","index":14,"n_rows":68,"n_cols":35,"rows_kept":68,"cut":false,"hidden":false,"merged":[[22,1,22,3],[2,9,2,13],[23,1,23,3],[40,1,40,3],[15,9,15,13],[21,1,21,3],[21,5,21,11],[22,5,22,11]]}
["แผนปฏิบัติการ กฟฉ.1 ประจำปี 2563",null,"ด้านการเรียนรู้และพัฒนา"]
["(ฉบับทบทวนครั้งที่ 1)",null,"(Learning and Growth)"]
["1. วัตถุประสงค์เชิงยุทธศาสตร์",null,"2. กลยุทธ์ระดับองค์กร",null,"3. เกณฑ์วัดการดำเนินงานระดับองค์กร",null,null,null,null,"4. เป้าหมาย"]
["(Strategic Objective)",null,"OC 1 วิเคราะห์ GAP และแนวทางการผักดันองค์กรสู่ความยั่งยืน",null,"- ค่าดัชนีการประสบอุบัติภัย",null,null,null,null,"-  ดัชนีไม่มากกว่า  0.0978"]
["SO1 ดำเนินธุรกิจหลักธรรมาภิบาลเพื่อการเติบโตอย่างยั่งยืน",null,null,null,"  (Disabling Injury Index: √DI)"]
[null,null,null,null," - ความสาเร็จของการดาเนินงานด้านความปลอดภัย",null,null,null,null," - ไม่น้อยกว่าร้อยละ 100"]
[null,null,null,null,"และอาชีวอนามัย"]
[null,null,null,null," - ความสำเร็จเพื่อยกระดับการดำเนินงาน",null,null,null,null," - ไม่น้อยกว่าร้อยละ 100"]
[null,null,null,null,"ให้ได้ตามมาตรฐาน OECD, DJSI และเกณฑ์"]
[null,null,null,null,"การกำกับดูแลของ สคร."]
[null,null,null,null," - ความสำเร็จในการดำเนินงานเพื่อยกระดับ",null,null,null,null," - ไม่น้อยกว่าร้อยละ 100"]
[null,null,null,null,"สู่ความยั่งยืน "]
[null,null,null,null," - ความสำเร็จในการยกระดับโครงการ",null,null,null,null," - ไม่น้อยกว่าร้อยละ 100"]
[null,null,null,null,"ด้านสังคมและสิ่งแวดล้อม "]
[]
[null,null,"5. กลยุทธ์ระดับสายงาน",null,"6. เกณฑ์วัดการดำเนินงานระดับสายงาน",null,null,null,null,"7. เป้าหมาย"]
[null,null,"OC 1 วิเคราะห์ GAP และแนวทางการผักดันองค์กรสู่ความยั่งยืน",null,"- ค่าดัชนีการประสบอุบัติภัยของสายงานการไฟฟ้า"]
[null,null,null,null,"  ภาค 2  (Disabling Injury Index:               )µ",null,null,null,null,"-  ดัชนี   ≤  0.0978"]
[null,null,null,null," - ความสำเร็จของการดำเนินงาน",null,null,null,null," - ไม่น้อยกว่าร้อยละ 100"]
[null,null,null,null,"ด้านความปลอดภัยและอาชีวอนามัยµ"]
[]
["8. แผนงาน/โครงการ/งาน","9. แผนปฏิบัติ",null,null,10,11,null,null,null,null,null,null,null,12]
["(Operating Strategies หรือ Strategic Initiatives)","(ระบุกิจกรรมหลักพร้อมปริมาณหรือเป้าหมาย)",null,null,"หน่วยงาน","ช่วงเวลาดำเนินการ และหรือ ปริมาณงานในไตรมาส",null,null,null,null,null,null,null,"หน่วยงาน"]
[null,"(Activities / Action Steps)",null,null,"ดำเนินการ","Plan Q1 ","Action Q1 ","Plan Q2 ","Action Q2 ","Plan Q3","Action Q3 ","Plan Q4","Action Q4 ","หลัก"]
["4. แผนงานความปลอดภัย สำหรับพนักงานและลูกจ้าง","4.1 ทุกหน่วยงาน ทบทวนการแต่งตั้งและขึ้นทะเบียน จป. ให้เป็นปัจจุบัน",null,null,"ผปอ.กวว.",null,null,null,null,null,null,null,null,"ผปอ.กวว."]
[null,"ให้แล้วเสร็จ ภายในไตรมาส 2/2563"]
[null,"กฟฉ.1",117,"แห่ง",null,null,null,"117 แห่ง"]
[null,"4.2 จัดหลักสูตรฝึกอบรมเจ้าหน้าที่ความปลอดภัยในการทำงาน (จป.)",null,null,"ผปอ.กวว.",null,null,null,null,null,null,null,null,"ผปอ.กวว.",null,null,null,null,null,null,null,null,null,null,null,null,null,"บล",255,{"$f":"AC28*$Q$32*#REF!","v":{"$error":"#REF!"}},{"$f":"315*#REF!*$Q$36","v":{"$error":"#REF!"}},{"$f":"AC28*#REF!*#REF!","v":{"$error":"#REF!"}},{"$f":"AC28*#REF!*$Q$43","v":{"$error":"#REF!"}},{"$f":"315*#REF!*#REF!","v":{"$error":"#REF!"}},{"$f":"SUM(AD28:AH28)","v":{"$error":"#REF!"}}]
[null," เพิ่มเติมให้ครบถ้วน เพื่อให้ทุกสถานประกอบการ (สนง.เขต, สนง.กฟฟ.",null,null,null,null,null,null,null,null,null,null,null,null,null,null,null,null,null,null,null,null,null,null,null,null,null,"ทพ",500,{"$f":"AC29*$Q$32*#REF!","v":{"$error":"#REF!"}},{"$f":"750*#REF!*$Q$36","v":{"$error":"#REF!"}},{"$f":"AC29*#REF!*#REF!","v":{"$error":"#REF!"}},{"$f":"AC29*#REF!*$Q$43","v":{"$error":"#REF!"}},{"$f":"750*#REF!*#REF!","v":{"$error":"#REF!"}},{"$error":"#REF!"}]
[null," ชั้น1-3/กฟส./กฟย.) ทุกแห่ง มีการแต่งตั้งและขึ้นทะเบียน จป. ครบถ้วน",null,null,null,null,null,null,null,null,null,null,null,null,null,null,null,null,null,null,null,null,null,null,null,null,null,"เบรก",80,{"$f":"AC30*2*2*Q32","v":0},{"$f":"AC30*2*2*Q36","v":0},{"$f":"50*2*#REF!","v":{"$error":"#REF!"}},{"$f":"AC30*2*2*$Q$43","v":0},{"$f":"AC30*#REF!*2","v":{"$error":"#REF!"}},{"$error":"#REF!"}]
[null,"ตามที่กฎหมายกำหนด (โดยเฉพาะอย่างยิ่งกรณีโยกย้ายแต่งตั้ง) ",null,null,null,null,null,null,null,null,null,null,null,null,null,null,null,null,null,null,null,null,null,null,null,null,null,null,null,{"$f":"SUM(AD28:AD30)","v":{"$error":"#REF!"}},{"$f":"SUM(AE28:AE30)","v":{"$error":"#REF!"}},{"$f":"SUM(AF28:AF30)","v":{"$error":"#REF!"}},{"$f":"SUM(AG28:AG30)","v":{"$error":"#REF!"}},{"$f":"SUM(AH28:AH30)","v":{"$error":"#REF!"}},{"$error":"#REF!"}]
[null,"กฟฉ.1",117,"แห่ง",null,null,null,null,null,"1 ครั้ง",null,null,null,null,null,null,null,null,null,null,null,null,null,null,null,null,null,"วิทยากร+ค่าห้อง",null,25000,25000,0,5000,1000,56000]
[null,"4.3 จัดหลักสูตรฝึกอบรมเจ้าหน้าที่ความปลอดภัยในการทำงาน (จป.บริหาร) ",null,null,"ผปอ.กวว.",null,null,null,null,null,null,null,null,"ผปอ.กวว."]
[null,"สำหรับหัวหน้าแผนก (หผ.ปบ., หผ.กส., หผ.บค., หผ.มต., หผ.วต.) ให้ทุกสถานประกอบการ "]
[null,"ให้แล้วเสร็จ ภายในไตรมาส 2/2563"]
[null,"กฟฉ.1",16,"แห่ง",null,null,null,"16 แห่ง"]
[null,"4.4 ฝึกอบรมทบทวนการปฏิบัติงานด้วยความปลอดภัยสำหรับ พนักงาน, ลูกจ้าง",null,null,"กวว. หรือ กฟฟ.ชั้น 1-3 จัดอบรม***",null,null,null,null,null,null,null,null,"ผปอ.กวว."]
[null,"ที่มีความเสี่ยงในการปฏิบัติงาน ในระบบไฟฟ้า ภายในไตรมาส 2",null,null,"(รอ ผปอ.กวว. หารือเพื่อกำหนดแนวทาง)"]
[null,"(กฟข., กฟฟ.ชั้น 1-3,กฟส.,กฟย. จัดอบรมรวม กฟฟ. ในสังกัด)"]
[null,"กฟจ.หนองบัวลำภู (รวมสังกัด)"]
["4. แผนงานความปลอดภัย สำหรับพนักงานและลูกจ้าง","4.5 จัดประชุมสัมมนางานด้านความปลอดภัยของ จป.วิชาชีพ/ เทคนิค",null,null,"ผปอ.กวว.",null,null,null,null,null,null,null,null,"ผปอ.กวว.",null,null,null,null,null,null,null,null,null,null,null,null,null,null,null,"ค่าพาหนะ","ค่าเบี้ยเลี้ยง","ค่าที่พัก","ค่าใช้จ่ายประชุมชี้แจง"]
["(ต่อ)","ขั้นสูง เพื่อแลกเปลี่ยนความรู้และประสบการณ์ด้านความปลอดภัย (ภายในไตรมาส 3)",null,null,null,null,null,null,null,null,null,null,null,null,null,null,null,null,null,null,null,null,null,null,null,null,null,null,null,500,315,750,80,"ค่าห้องประชุม"]
[null,"กฟฉ.1",1,"ครั้ง",null,"1 ครั้ง",null,null,null,null,null,null,null,null,null,null,null,null,null,null,null,null,null,null,null,null,null,"ฝวธ.(ภ2)",15,{"$f":"AC43*$R$24","v":0},{"$f":"AC43*$S$24","v":0},{"$f":"AC43*$T$24","v":0},{"$f":"AC43*$U$24","v":0}]
[null,"4.6 ศึกษาดูงาน ด้านความปลอดภัย หน่วยงานภายนอกเพื่อยกระดับความปลอดภัย ของ ",null,null,"ฝวธ.(ภ2)",null,null,null,null,null,null,null,null,"ฝวธ.(ภ2)"]
[null,"จป.บริหาร (1 รุ่น), จป.หัวหน้างาน (1 รุ่น) รวม 2 รุ่น  (ภาค 2 เป็นเจ้าภาพในการจัด) "]
[null,"ภาค 2                ",null,null,null,null,null,"2 รุ่น"]
["5. แผนงานความปลอดภัย สำหรับประชาชน","5.1 กฟฟ. ทุกแห่ง ตรวจสอบและดำเนินการแก้ไขระบบไฟฟ้าจุดที่อาจก่อให้เกิดอันตรายแก่ประชาชน",null,null,"กฟฟ.ชั้น 1-3,กฟส.",null,null,null,null,null,null,null,null,"ผปอ.กวว."]
[null,"  - รายงานผลการตรวจสอบ และดำเนินการแก้ไขจุดบกพร่องให้แล้วเสร็จ "]
[null,"(พร้อมภาพถ่ายแนบ) เป็นประจำทุกไตรมาส"]
[null,"กฟจ.หนองบัวลำภู","รายงานทุกไตรมาส",null,null,"1 ครั้ง",null,"1 ครั้ง",null,"1 ครั้ง",null,"1 ครั้ง"]
[null,"กฟส.ศรีบุญเรือง","รายงานทุกไตรมาส",null,null,"1 ครั้ง",null,"1 ครั้ง",null,"1 ครั้ง",null,"1 ครั้ง"]
[null,"กฟส.นากลาง","รายงานทุกไตรมาส",null,null,"1 ครั้ง",null,"1 ครั้ง",null,"1 ครั้ง",null,"1 ครั้ง"]
[null,"กฟจ.หนองบัวลำภู (รวมสังกัด)","รายงานทุกไตรมาส",null,null,"1 ครั้ง",null,"1 ครั้ง",null,"1 ครั้ง",null,"1 ครั้ง"]
[null,"กฟอ.บ้านไผ่","รายงานทุกไตรมาส",null,null,"1 ครั้ง",null,"1 ครั้ง",null,"1 ครั้ง",null,"1 ครั้ง"]
[null,"กฟส.พล","รายงานทุกไตรมาส",null,null,"1 ครั้ง",null,"1 ครั้ง",null,"1 ครั้ง",null,"1 ครั้ง"]
[null,"กฟส.มัญจาคีรี","รายงานทุกไตรมาส",null,null,"1 ครั้ง",null,"1 ครั้ง",null,"1 ครั้ง",null,"1 ครั้ง"]
[null,"กฟส.หนองสองห้อง","รายงานทุกไตรมาส",null,null,"1 ครั้ง",null,"1 ครั้ง",null,"1 ครั้ง",null,"1 ครั้ง"]
["6. แผนงานระบบการจัดการความปลอดภัยของ กฟภ. ","6.1 ติดตามการตรวจประเมิน ระบบการจัดการความปลอดภัยของ กฟภ. (PEA- SMS)  ",null,null,"ผปอ.กวว.",null,null,null,null,null,null,null,null,"ผปอ.กวว."]
["(PEA- SMS)","สำหรับ กฟข.,กฟฟ.ชั้น.1-3,กฟส. โดยมีเป้าหมาย จำนวนหน่วยงานที่ผ่าน"]
[null,"เกณฑ์ประเมิน "]
[null,"กฟฉ.1",43,"แห่ง",null,"1 ครั้ง",null,"1 ครั้ง",null,"1 ครั้ง",null,"1 ครั้ง"]
[null,"ผปอ.กวว. ติดตามทุกไตรมาส"]
["7. แผนงานกิจกรรม ส่งเสริมความปลอดภัย ","7.1 จัดกิจกรรม สัปดาห์ ความปลอดภัย ประจำปี (แต่ละ กฟข.) ภายในไตรมาส 2",null,null,"ผปอ.กวว.",null,null,null,null,null,null,null,null,"ผปอ.กวว.",null,null,null,null,null,null,null,null,null,null,null,null,255,500,80]
[null,"กฟฉ.1",1,"ครั้ง",null,null,null,"1 ครั้ง",null,null,null,null,null,null,null,null,null,null,null,null,null,null,null,null,null,null,{"$f":"Y64*$S$24","v":0},{"$f":"Y64*$T$24","v":0},{"$f":"Y64*$U$24","v":0},{"$f":"((500+255+500)*3*60)+(2*80*60)","v":235500},5000,{"$f":"AD64+AE64","v":240500}]
[null,"7.2 จัดอบรมปรับเปลี่ยน mind set ด้านความปลอดภัย สำหรับพนักงานสายงานการไฟฟ้า ",null,null,"ฝวธ.(ภ2)",null,null,null,null,null,null,null,null,"ฝวธ.(ภ2)"]
[null,"ภาค 2 จำนวน 60 คน จำนวน 1 รุ่น  ภายในไตรมาส 2   (ภาค 2 เป็นเจ้าภาพในการจัด) ",null,null,null,null,null,null,null,null,null,null,null,null,null,null,null,null,null,null,null,null,null,null,null,null,null,null,null,null,"ค่าใช้จ่าย 7. แผนงานกิจกรรม ส่งเสริมความปลอดภัย "]
[null,"ภาค 2     ",null,null,null,null,null,"1 ครั้ง",null,null,null,null,null,null,null,null,null,null,null,null,null,null,null,null,null,null,null,null,null,null,"บล",255,{"$f":"AF67*$Y$64*3","v":0},{"$f":"315*$Q$67*3","v":0},{"$f":"AG67+AH67","v":0}]
[null,"end",null,null,null,null,null,null,null,null,null,4,null,10]

{"sheet":"L4 OC1(ลดกระดาษ)","index":15,"n_rows":18,"n_cols":10,"rows_kept":18,"cut":false,"hidden":false,"merged":[[2,7,2,9],[3,2,3,3],[6,7,6,9],[7,2,7,3],[10,1,10,3],[11,1,11,3],[12,1,12,3],[19,7,19,9],[20,7,20,9],[10,5,10,8],[11,5,11,8]]}
["แผนปฏิบัติการ กฟฉ.1 ประจำปี 2563",null,"ด้านการเรียนรู้และพัฒนา"]
["(ฉบับทบทวนครั้งที่ 1)",null,"(Learning and Growth)"]
["1. วัตถุประสงค์เชิงยุทธศาสตร์",null,"2. กลยุทธ์ระดับองค์กร",null,"3. เกณฑ์วัดการดำเนินงานระดับองค์กร",null,null,"4. เป้าหมาย"]
["(Strategic Objective)",null,"OC 1 วิเคราะห์ GAP และแนวทางการผักดันองค์กรสู่ความยั่งยืน",null,null," -",null," -"]
["SO1 ดำเนินธุรกิจหลักธรรมาภิบาลเพื่อการเติบโตอย่างยั่งยืน"]
[]
[null,null,"5. กลยุทธ์ระดับสายงาน",null,"6. เกณฑ์วัดการดำเนินงานระดับสายงาน",null,null,"7. เป้าหมาย"]
[null,null,"OC 1 วิเคราะห์ GAP และแนวทางการผักดันองค์กรสู่ความยั่งยืน",null,"- ร้อยละของปริมาณกระดาษที่ลดได้",null,null," - ไม่น้อยกว่าร้อยละ................"]
[null,null,null,null,"(ของสายงานฯ)"]
[]
["8. แผนงาน/โครงการ/งาน","9. แผนปฏิบัติ",null,null,10,11,null,null,null,12]
["(Operating Strategies หรือ Strategic Initiatives)","(ระบุกิจกรรมหลักพร้อมปริมาณหรือเป้าหมาย)",null,null,"หน่วยงาน","ช่วงเวลาดำเนินการ และหรือ ปริมาณงานในไตรมาส",null,null,null,"หน่วยงาน"]
[null,"(Activities / Action Steps)",null,null,"ดำเนินการ",1,2,3,4,"หลัก"]
["8. แผนงานการลดการใช้กระดาษ","8.1 แต่งตั้งคณะทำงานลดการใช้กระดาษ เพื่อทำหน้าที่ติดตามและตรวจสอบ",null,null,"กอก.",null,null,null,null,"กอก."]
[null,"ความถูกต้องของการบันทึกข้อมูลในระบบ SAP (ZAPE007)"]
[null,"กฟฉ.1","ภายในไตรมาส 1",null,null,"แต่งตั้งคณะทำงานฯ"]
[null,"แต่งตั้งคณะทำงานฯ ภายใน มกราคม 2563"]
[null,"end",null,null,null,null,null,null,1,1]

{"sheet":"L5 ประเมินผล Enablers 8 ด้าน","index":16,"n_rows":87,"n_cols":14,"rows_kept":87,"cut":false,"hidden":false,"merged":[[13,1,13,3],[14,1,14,3],[12,1,12,3],[12,5,12,11],[13,5,13,11],[2,9,2,13],[6,9,6,13],[3,2,3,3],[7,2,7,3],[11,4,11,7]]}
["แผนปฏิบัติการ กฟฉ.1 ประจำปี 2563",null,"ด้านการเรียนรู้และพัฒนา"]
["(ฉบับทบทวนครั้งที่ 1)",null,"(Learning and Growth)"]
["1. วัตถุประสงค์เชิงยุทธศาสตร์",null,"2. กลยุทธ์ระดับองค์กร",null,"3. เกณฑ์วัดการดำเนินงานระดับองค์กร",null,null,null,null,"4. เป้าหมาย"]
["(Strategic Objective)",null,"OC 1 วิเคราะห์ GAP และแนวทางการผักดันองค์กรสู่ความยั่งยืน",null,null," -",null,null,null," -"]
["SO1 ดำเนินธุรกิจหลักธรรมาภิบาลเพื่อการเติบโตอย่างยั่งยืน"]
[]
[null,null,"5. กลยุทธ์ระดับสายงาน",null,"6. เกณฑ์วัดการดำเนินงานระดับสายงาน",null,null,null,null,"7. เป้าหมาย"]
[null,null,"OC 1 วิเคราะห์ GAP และแนวทางการผักดันองค์กรสู่ความยั่งยืน",null,"-ระบบประเมินผลใหม่ของ สคร.  ",null,null,null,null," - ไม่น้อยกว่า...............คะแนน"]
[null,null,null,null," (Enablers 8 ด้าน) ขององค์กร µ"]
[null,null,null,null,"-ระบบประเมินผลใหม่ของ สคร.  ",null,null,null,null," - ไม่น้อยกว่าระดับ 5"]
[null,null,null,null," (Enablers 8 ด้าน) ของสายงานฯ"]
[]
["8. แผนงาน/โครงการ/งาน","9. แผนปฏิบัติ",null,null,10,11,null,null,null,null,null,null,null,12]
["(Operating Strategies หรือ Strategic Initiatives)","(ระบุกิจกรรมหลักพร้อมปริมาณหรือเป้าหมาย)",null,null,"หน่วยงาน","ช่วงเวลาดำเนินการ และหรือ ปริมาณงานในไตรมาส",null,null,null,null,null,null,null,"หน่วยงาน"]
[null,"(Activities / Action Steps)",null,null,"ดำเนินการ","Plan Q1 ","Action Q1 ","Plan Q2 ","Action Q2 ","Plan Q3","Action Q3 ","Plan Q4","Action Q4 ","หลัก"]
["10. แผนงานการปรับปรุงการควบคุมภายใน ","10.1 ปรับปรุง/จัดวางระบบการควบคุมภายในของหน่วยงานประจำ ปี 2563",null,null,"กฟฟ.ชั้น 1-3,กฟส.",null,null,null,null,null,null,null,null,"ผผธ.กบล."]
["(นโยบาย KEEN 14 ด้าน KE3: Smart  Operation)","กฟฉ.1","ภายในวันที่  30  มกราคม 2563",null,null,"1 ครั้ง"]
[null,"10.2 ดำเนินการ ติดตามผล และจัดทำรายงานตามแผนการปรับปรุงการควบคุมภายใน",null,null,"กฟฟ.ชั้น 1-3",null,null,null,null,null,null,null,null,"ผผธ.กบล."]
[null,"(ตามแผน ปย.2 รายงานผล) (ไตรมาสละ 1 ครั้ง)"]
[null,"กฟฉ.1","รายงานภายใน  10  วัน หลังสิ้นไตรมาส",null,null,"1 ครั้ง",null,"1 ครั้ง",null,"1 ครั้ง",null,"1 ครั้ง"]
["12. แผนงานปรับปรุงความพึงพอใจของลูกค้า","12.2 สรุปข้อมูลเสียงของลูกค้าแต่ละกลุ่ม (ความต้องการ ความคาดหวัง "]
["(นโยบาย KEEN 14 ด้าน KE2 : Smart Service)","ความไม่พึงพอใจ/ ร้องเรียน/ข้อร้องขอ ความพึงพอใจ/ข้อชื่นชม และข้อเสนอแนะ)"]
[null," ปี 2562 ในแต่ละช่องทาง ส่งให้คณะทำงานด้านการบริการลูกค้า ทุกไตรมาส "]
[null,"12.2.1 การรับฟังเสียงลูกค้าทางโทรศัพท์ (Voice-based) (VOC-03-005)",null,null,"กฟฟ.ชั้น 1-3",null,null,null,null,null,null,null,null,"ผลส.กบล."]
[null,"- โทรศัพท์สำนักงาน"]
[null,"-1129 PEA Call Center"]
[null,"กฟจ.หนองบัวลำภู (รวมสังกัด)","รายงานภายใน 5 วันหลังสิ้นไตรมาส",null,null,"1 ครั้ง",null,"1 ครั้ง",null,"1 ครั้ง",null,"1 ครั้ง"]
["12. แผนงานปรับปรุงความพึงพอใจของลูกค้า (ต่อ)","12.2.2 การรับฟังด้วยการปฏิสัมพันธ์ (Interaction-based)",null,null,"กฟฟ.ชั้น 1-3",null,null,null,null,null,null,null,null,"ผลส.กบล."]
["(นโยบาย KEEN 14 ด้าน KE2 : Smart Service)"," -การสานเสวนา ปีละ 1 ครั้ง (กบล. ดำเนินการ)",null,"(VOC-IB-2-01,VOC-IB-2-02, VOC-60-003)",null,null,null,"1 ครั้ง"]
[null,"- ติดต่อโดยตรงที่สำนักงาน ",null,"(VOC-60-001)"]
[null," -กิจกรรมลูกค้าสัมพันธ์ ",null,"(VOC-60-001,VOC-60-003, VOC-60-004)"]
[null,"กฟจ.หนองบัวลำภู (รวมสังกัด)","รายงานภายใน 5 วันหลังสิ้นไตรมาส",null,null,"1 ครั้ง",null,"1 ครั้ง",null,"1 ครั้ง",null,"1 ครั้ง"]
[null,"12.2.3 การสำรวจข้อมูลลูกค้าธุรกิจเสริมโดยการใช้โทรศัพท์สอบถามความ",null,null,"กฟฟ.ชั้น 1-3",null,null,null,null,null,null,null,null,"ผลส.กบล."]
[null,"พึงพอใจภายหลังจากใช้บริการ 15 วัน ตามแบบฟอร์ม (ธุรกิจเสริม 6 กิจกรรม)"]
[null,"กฟจ.หนองบัวลำภู (รวมสังกัด)","รายงานภายใน 5 วันหลังสิ้นไตรมาส",null,null,"1 ครั้ง",null,"1 ครั้ง",null,"1 ครั้ง",null,"1 ครั้ง"]
[null,"12.3 ความพึงพอใจและความภักดีโดยรวมของลูกค้าปี 2563"]
[null,"12.3.1 สรุปผลการสำรวจความพึงพอใจของลูกค้าที่ใช้บริการธุรกิจเสริม ทุกไตรมาส ",null,null,"กฟฟ.ชั้น 1-3",null,null,null,null,null,null,null,null,"ผลส.กบล."]
[null,"กฟจ.หนองบัวลำภู (รวมสังกัด)","รายงานภายใน 5 วันหลังสิ้นไตรมาส",null,null,"1 ครั้ง",null,"1 ครั้ง",null,"1 ครั้ง",null,"1 ครั้ง"]
[]
["12. แผนงานปรับปรุงความพึงพอใจของลูกค้า (ต่อ)","12.5 ดำเนินการปิดข้อร้องเรียนทั่วไปได้ภายใน 15 วัน",null,null,"กฟฟ.ชั้น 1-3",null,null,null,null,null,null,null,null,"ผลส.กบล."]
["(นโยบาย KEEN 14 ด้าน KE2 : Smart Service)","กฟฉ.1","ประสิทธิภาพการตอบสนองข้อร้องเรียน ร้อยละ 60",null,null,0.6,null,0.6,null,0.6,null,0.6]
[null,"กฟจ.หนองบัวลำภู (รวมสังกัด)",0.6,null,null,0.6,null,0.6,null,0.6,null,0.6]
[null,"12.6 ดำเนินการปิดข้อร้องเรียนทั่วไป ปิดได้ภายใน 30 วัน",null,null,"กฟฟ.ชั้น 1-3",null,null,null,null,null,null,null,null,"ผลส.กบล."]
[null,"กฟจ.หนองบัวลำภู (รวมสังกัด)",1,null,null,1,null,1,null,1,null,1]
["13.แผนงานขยายผลการนำระบบรับฟังเสียงลูกค้า","13.1 สรุปรายงานสถิติ วิเคราะห์ความพึงพอใจ/ความต้องการ/ข้อเสนอแนะ"]
[" (PEA VOC System) และระบบบริหารลูกค้าสัมพันธ์ ","จากการสำรวจข้อมูลป้อนกลับจากลูกค้า ส่งให้คณะทำงานด้านการบริการลูกค้า"]
[" (Customer Relationship Management : CRM)","13.1.1 สรุปผลการสำรวจข้อมูลป้อนกลับจากลูกค้า โดยวิธีโทรศัพท์สอบถาม"]
["(นโยบาย KEEN 14 ด้าน KE2 : Smart Service)","ความพึงพอใจภายหลังจากใช้บริการ ทุกไตรมาส "]
[null,"13.1.1.1 สุ่มสอบถามลูกค้าโดยวิธีโทรศัพท์ ดังนี้",null,null,"กฟฟ.ชั้น 1-3",null,null,null,null,null,null,null,null,"ผลส.กบล."]
[null," - งานขอใช้ไฟติดตั้งมิเตอร์ กฟฟ.ชั้น1-3 จำนวน 3 ราย/ไตรมาส"]
[null," - งานขอขยายเขตแรงต่ำและติดตั้งมิเตอร์ กฟฟ.ชั้น1-3 จำนวน 3 ราย/ไตรมาส"]
[null,"  - งานขยายเขตติดตั้งหม้อแปลงเฉพาะราย กฟฟ.ชั้น1-3 "]
[null,"กฟจ.หนองบัวลำภู (รวมสังกัด)",7,"ราย/ไตรมาส",null,"7 ราย",null,"7 ราย",null,"7 ราย",null,"7 ราย"]
[null,"13.1.1.2 สรุปรายงานสถิติ วิเคราะห์ความพึงพอใจ/ข้อคิดเห็น/ความต้องการ/ข้อเสนอแนะ",null,null,"กฟฟ.ชั้น 1-3",null,null,null,null,null,null,null,null,"ผลส.กบล."]
[null," จากการสำรวจข้อมูลป้อนกลับจากลูกค้าให้คณะทำงานด้าน การบริการลูกค้า ทุกไตรมาส "]
[null,"กฟจ.หนองบัวลำภู (รวมสังกัด)","รายงานภายใน 5 วันหลังสิ้นไตรมาส ",null,null,"1 ครั้ง",null,"1 ครั้ง",null,"1 ครั้ง",null,"1 ครั้ง"]
[null,"13.1.2  นำข้อมูลป้อนกลับจากลูกค้า จากระบบประเมินความพึงพอใจ (Smile Box)",null,null,"กฟฟ.ชั้น 1-3",null,null,null,null,null,null,null,null,"ผลส.กบล."]
[null,"มาสรุปวิเคราะห์และรายงานผล ทุกไตรมาส"]
[null,"กฟจ.หนองบัวลำภู (รวมสังกัด)","รายงานภายใน 5 วันหลังสิ้นไตรมาส ",null,null,"1 ครั้ง",null,"1 ครั้ง",null,"1 ครั้ง",null,"1 ครั้ง"]
["13.แผนงานขยายผลการนำระบบรับฟังเสียงลูกค้า","13.2 เพิ่มสัดส่วนจำนวนลูกค้าที่กดประเมินความพึงพอใจ ผ่านระบบกล่อง",null,null,"กฟฟ.ชั้น 1-3",null,null,null,null,null,null,null,null,"ผลส.กบล."]
[" (PEA VOC System) และระบบบริหารลูกค้าสัมพันธ์ ","ประเมินความพึงพอใจ(Smile Box) เทียบกับจำนวนคิวทั้งหมด ไม่น้อยกว่าร้อยละ 60 "]
[" (Customer Relationship Management : CRM)(ต่อ)"]
["(นโยบาย KEEN 14 ด้าน KE2 : Smart Service)"]
[null,"กฟจ.หนองบัวลำภู (รวมสังกัด)",0.6,null,null,0.6,null,0.6,null,0.6,null,0.6]
[null,"ผลส.กบล. ประเมินผลจากโปรแกรม Smart Queue จากทุกไตรมาส"]
[null,"13.3 ระดับความสำเร็จการสรุปผลดำเนินการและการควบคุมติดตามแผน"]
[null,"และคู่มือกระบวนการสร้างและการจัดการความสัมพันธ์กับลูกค้า "]
[null,"ส่งให้คณะทำงานด้านการบริการลูกค้า ทุกไตรมาส"]
[null,"13.3.1 สรุปรายงานการสนับสนุนลูกค้ารายใหม่ตามข้อมูล BOI/หน่วยงานท้องถิ่น",null,null,"กฟฟ.ชั้น 1-3",null,null,null,null,null,null,null,null,"ผลส.กบล."]
[null,"/แหล่งข้อมูลอื่นๆ (ติดตั้งหม้อแปลงเฉพาะรายทุกขนาด)"]
[null,"กฟจ.หนองบัวลำภู (รวมสังกัด)","รายงานภายใน 10 วัน หลังสิ้นไตรมาส",null,null,"1 ครั้ง",null,"1 ครั้ง",null,"1 ครั้ง",null,"1 ครั้ง"]
[" ","13.3.2 การเยี่ยมเยือนลูกค้า high value และ/หรือลูกค้ารายสำคัญอื่น ",null,null,"กฟฟ.ชั้น 1-3",null,null,null,null,null,null,null,null,"ผลส.กบล."]
[null,"กฟจ.หนองบัวลำภู (รวมสังกัด)",18,"ราย/ไตรมาส",null,18,null,18,null,18,null,18]
[null,"กบล. รายงานภายใน 15 วันหลังสิ้นไตรมาส"]
[null,"กฟฟ.ชั้น 1-3 รายงานให้ กฟฉ.1 ภายใน 5 วันหลังสิ้นไตรมาส "]
["13.แผนงานขยายผลการนำระบบรับฟังเสียงลูกค้า","13.3.3 เยี่ยมเยือนลูกค้ารายสำคัญโดยผู้บริหารระดับสูง/หรือผู้แทนของหน่วยงาน ",null,null,"กฟฟ.ชั้น 1-3",null,null,null,null,null,null,null,null,"ผลส.กบล."]
[" (PEA VOC System) และระบบบริหารลูกค้าสัมพันธ์ ","(รผก.(ภ2),อข.ฉ.1-3, ผจก.)) พร้อม สรุปรายงานความต้องการและแนวทางแก้ไข"]
[" (Customer Relationship Management : CRM)(ต่อ)"]
["(นโยบาย KEEN 14 ด้าน KE2 : Smart Service)"]
[null,"กฟจ.หนองบัวลำภู (รวมสังกัด)",6,"ราย/ไตรมาส",null,6,null,6,null,6,null,6]
[null,"กฟฉ.1 รายงานภายใน 15 วันหลังสิ้นไตรมาส"]
[null,"กฟฟ.ชั้น 1-3 รายงานให้ กฟฉ.1 ภายใน 5 วันหลังสิ้นไตรมาส "]
[null,"13.3.4 พนักงาน KAMR สรุปวิเคราะห์ปัญหา/ความต้องการลูกค้า high value ",null,null,"กฟฟ.ชั้น 1-3",null,null,null,null,null,null,null,null,"ผลส.กบล."]
[null,"และ/หรือลูกค้ารายสำคัญอื่น จากข้อมูลในระบบบริหารลูกค้า CRM Plus "]
[null," (บันทึกข้อมูลทุกรายที่เข้าเยี่ยมตามข้อ 13.3.2 ) ไตรมาสละ1 ครั้ง  "]
[null,"กฟจ.หนองบัวลำภู (รวมสังกัด)","รายงานภายใน 5 วันหลังสิ้นไตรมาส ",null,null,"1 ครั้ง",null,"1 ครั้ง",null,"1 ครั้ง",null,"1 ครั้ง"]
[null,"end",null,null,null,null,null,null,null,null,null,6,null,26]

{"sheet":"L6 OC1 (งานตามนโยบาย)","index":17,"n_rows":44,"n_cols":14,"rows_kept":44,"cut":false,"hidden":false,"merged":[[2,9,2,13],[3,2,3,3],[5,9,5,13],[6,2,6,3],[9,1,9,3],[8,1,8,3],[7,1,7,3],[7,5,7,11],[8,5,8,11]]}
["แผนปฏิบัติการ กฟฉ.1 ประจำปี 2563",null,"ด้านการเรียนรู้และพัฒนา"]
["(ฉบับทบทวนครั้งที่ 1)",null,"(Learning and Growth)"]
["1. วัตถุประสงค์เชิงยุทธศาสตร์",null,"2. กลยุทธ์ระดับองค์กร",null,"3. เกณฑ์วัดการดำเนินงานระดับองค์กร",null,null,null,null,"4. เป้าหมาย"]
["(Strategic Objective)",null,"OC 1 วิเคราะห์ GAP และแนวทางการผักดันองค์กรสู่ความยั่งยืน",null,null," -",null,null,null," -"]
["SO1 ดำเนินธุรกิจหลักธรรมาภิบาลเพื่อการเติบโตอย่างยั่งยืน"]
[null,null,"5. กลยุทธ์ระดับสายงาน",null,"6. เกณฑ์วัดการดำเนินงานระดับสายงาน",null,null,null,null,"7. เป้าหมาย"]
[null,null,"OC 1 วิเคราะห์ GAP และแนวทางการผักดันองค์กรสู่ความยั่งยืน",null,null," -",null,null,null," -"]
["8. แผนงาน/โครงการ/งาน","9. แผนปฏิบัติ",null,null,10,11,null,null,null,null,null,null,null,12]
["(Operating Strategies หรือ Strategic Initiatives)","(ระบุกิจกรรมหลักพร้อมปริมาณหรือเป้าหมาย)",null,null,"หน่วยงาน","ช่วงเวลาดำเนินการ และหรือ ปริมาณงานในไตรมาส",null,null,null,null,null,null,null,"หน่วยงาน"]
[null,"(Activities / Action Steps)",null,null,"ดำเนินการ","Plan Q1 ","Action Q1 ","Plan Q2 ","Action Q2 ","Plan Q3","Action Q3 ","Plan Q4","Action Q4 ","หลัก"]
["15. แผนงานจัดทำฐานข้อมูลสายสื่อสารในระบบ TAMS","15.1 งานสำรวจนำเข้าข้อมูลสายสื่อสารโทรคมนาคมของหน่วยงานต่างๆ ",null,null,"กฟฟ.ชั้น 1-3,กฟส.",null,null,null,null,null,null,null,null,"ผธท.กบล."]
[null,"บนเสาไฟฟ้าของ กฟภ. ในระบบ TAMS "]
[null,"กฟฉ.1",25000,"ต้น",null,null,null,null,null,null,null,1]
["16. แผนงานจัดความเป็นระเบียบเรียบร้อยของ","16.1 จัดระเบียบสายสื่อสาร ตามนโยบาย ผวก. (แล้วเสร็จภายในเดือนมิถุนายน 2563)"]
["สายสื่อสารบนเสาไฟฟ้า","16.1.1 จัดระเบียบฯ เส้นทางที่มีขนาดเส้นผ่านศูนย์กลางของสายสื่อสารรวม มากกว่า 300 มม.",null,null,"กฟฟ.ชั้น 1-3,กฟส.",null,null,null,null,null,null,null,null,"ผธท.กบล."]
[null,"กฟฉ.1","รวมเส้นผ่านศูนย์กลางฯ ทุกขนาด 427 เส้นทาง  ",null,null,null,null,1]
[null,"16.1.2 จัดระเบียบฯ เส้นทางที่มีขนาดเส้นผ่านศูนย์กลางของสายสื่อสารรวม 100- 300 มม.                  ",null,null,"กฟฟ.ชั้น 1-3,กฟส.",null,null,null,null,null,null,null,null,"ผธท.กบล."]
[null,"กฟฉ.1","รวมเส้นผ่านศูนย์กลางฯ ทุกขนาด 427 เส้นทาง  ",null,null,null,null,1]
[null,"16.2 สำรวจตรวจสอบสายสื่อสารที่หย่อนยาน และมีความสูง  ต่ำกว่าระดับมาตรฐาน",null,null,"กฟฟ.ชั้น 1-3,กฟส.",null,null,null,null,null,null,null,null,"ผธท.กบล."]
[null,"ที่มีความเสี่ยงสูง  (เป็นอันตรายต่อชีวิตและทรัพย์สินของประชาชน)"]
[null,"เมื่อตรวจสอบพบ ให้ กฟฟ. ดำเนินการแจ้งผู้ประกอบการให้ดำเนินการแก้ไข"]
[null,"แล้วเสร็จภายใน 24 ชม."]
[null,"กฟฉ.1    ",1,null,null,1,null,1,null,1,null,1]
[null,"กฟฟ. รายงานผลให้ ผธท.กบล.ฉ.1 ทุกสิ้นเดือน"]
[null,"16.3 สำรวจตรวจสอบสายสื่อสารที่หย่อนยาน และมีความสูง  ต่ำกว่าระดับมาตรฐาน",null,null,"กฟฟ.ชั้น 1-3,กฟส.",null,null,null,null,null,null,null,null,"ผธท.กบล."]
[null,"ที่มีความเสี่ยงปานกลาง (ไม่เป็นไปตามมาตรฐาน กฟภ. แต่อยู่ในแนวทางสัญจร"]
[null,"ไม่พลุกพล่าน พาดตามแนวเสาไฟฟ้าขอบทางจราจร เป็นต้น)"]
[null,"เมื่อตรวจสอบพบ ให้ กฟฟ. ดำเนินการแจ้งผู้ประกอบการให้ดำเนินการแก้ไข"]
[null,"ภายใน 7 วัน",null,null,null,1,null,1,null,1,null,1]
[null,"กฟฉ.1    ",1]
[null,"กฟฟ. รายงานผลให้ ผธท.กบล.ฉ.1 ทุกสิ้นเดือน"]
["18. แผนงานมาตรฐานการให้บริการของศูนย์ราชการ","18.1 รักษามาตรฐานการให้บริการของศูนย์ราชการสะดวก (Government Easy Contact",null,null,"กฟฟ.ที่เข้าร่วม",null,null,null,null,null,null,null,null,"ผลส.กบล."]
["สะดวก (Government Easy Contact Center : GECC)","Center : GECC) (สำหรับ กฟฟ. ที่ได้รับการรับรองแล้ว เมื่อปี 2560 ) "]
["(นโยบาย KEEN 14 ด้าน KE4 : Good Governance)"]
[null,"กฟจ.หนองบัวลำภู"]
[null,"18.1.1 จัดอบรมให้ความรู้ เกี่ยวกับมาตรฐานศูนย์ราชการสะดวก (GECC) ให้กับ กฟฟ.ที่ขอ",null,null,"กฟฟ.ที่เข้าร่วม",null,null,null,null,null,null,null,null,"ผลส.กบล."]
[null,"ใบรับรองศูนย์ราชการสะดวก (GECC)"]
[null,"กฟฉ.1",1,"ครั้ง",null,"1 ครั้ง"]
[null,"จัดอบรมฯ ภายใน มกราคม 2563"]
["19. แผนงานเร่งรัดดำเนินการตามแผนสนับสนุน","19.1 ติดตามประเมินผลการจัดเก็บข้อมูลงานยานพาหนะ โดยมีการ Update ",null,null,"กฟฟ.ชั้น 1-3,กฟส.",null,null,null,null,null,null,null,null,"ผยค.กกค."]
["การดำเนินงานระยะที่ 3-4 ","ข้อมูล ประเภท,จำนวน และการบำรุงรักษา ยานพาหนะ เป็นประจำทุกเดือน "]
[null,"(โดยตรวจสอบ การ Update ข้อมูล จากโปรแกรม Car Management System (CMS)"]
[null,"กฟฉ.1","รายงาน ฝวธ.(ภ2) ไตรมาสละ 1 ครั้ง (ภายใน 10 วันหลังสิ้นไตรมาส)",null,null,"1 ครั้ง",null,"1 ครั้ง",null,"1 ครั้ง",null,"1 ครั้ง"]
[null,"end",null,null,null,null,null,null,null,null,null,6,null,16]